{"text_format":"1","workbook":"xlsx","n_sheets":42,"sheets":["Info+Engagés","Cav1","Cav2","Cav3","Cav4","Cav5","Cav6","Cav7","Cav8","Cav9","Cav10","Cav11","Cav12","Cav13","Cav14","Cav15","Cav16","Cav17","Cav18","Cav19","Cav20","Cav21","Cav22","Cav23","Cav24","Cav25","Cav26","Cav27","Cav28","Cav29","Cav30","Cav31","Cav32","Cav33","Cav34","Cav35","Cav36","Cav37","Cav38","Cav39","Cav40","Résultats"],"not_rendered":{"charts":0,"images":0,"macros":1,"external_links":0,"defined_names":2,"comments":3,"pivot_tables":0},"unopened":[],"bounds":{"document_bytes":16777216,"sheet_cells":100000,"rows_first":2000,"rows_last":500,"rows_between":2000,"halvings":0,"cell_chars":16384,"cell_head_chars":4096},"cells_cut":0,"cells_raw":0,"read":"whole","date_system":"1900"}

{"sheet":"Info+Engagés","index":0,"n_rows":12,"n_cols":11,"rows_kept":12,"cut":false,"hidden":false,"merged":[[1,1,1,4],[1,7,1,10],[2,1,2,4],[2,7,2,10],[3,1,3,4],[3,7,3,10],[4,1,4,2],[4,7,4,10],[5,1,5,2],[5,7,5,10],[7,1,8,7]]}
[]
["Date du concours","Quelle Date",null,null,null,null,"Juge E"]
["Lieu du concours","Quel Lieu (Dép)",null,null,null,null,"Juge H"]
["N° de concours","Quel N°",null,null,null,null,"Juge C","X"]
["N° d’épreuve","Quel N°",null,null,null,null,"Juge M"]
["N° de piste","Piste ?",null,null,null,null,"Juge B"]
[null,null,null,null,null,null," "]
[null,"Club 4 Imposée",null,null,null,null,null,null,null,"Dotation",100]
[]
[]
["N° Départ","Cheval","Age","Sexe","Robe","Race","Cavalier","Licence","CRE","Club","Etat"]
[1,"Y",null,null,null,null,"Z"]

{"sheet":"Cav1","index":1,"n_rows":40,"n_cols":9,"rows_kept":40,"cut":false,"hidden":false,"merged":[[0,0,1,2],[0,3,1,6],[0,7,1,8],[2,0,2,2],[2,3,3,4],[2,5,3,6],[3,0,3,2],[4,0,4,1],[4,3,6,4],[4,5,6,6],[4,7,5,7],[4,8,5,8],[5,0,5,1],[6,0,7,1],[6,2,7,2],[6,7,7,7],[6,8,7,8],[9,5,10,5],[9,6,10,6],[9,7,10,7],[10,0,10,1],[8,0,8,1],[9,0,9,1],[9,2,10,2],[9,3,10,3],[9,4,10,4],[30,0,34,0],[11,0,29,0],[39,0,43,8],[35,0,35,2],[36,0,36,2],[37,0,37,2],[38,0,38,2]]}
[{"$f":"'Info+Engagés'!B3","v":"Quel Lieu (Dép)"},null,null,{"$f":"'Info+Engagés'!B8","v":"Club 4 Imposée"},null,null,null,{"$f":"'Info+Engagés'!B2","v":"Quelle Date"}]
[]
["N° de concours",null,null,"Cheval",null,"Cavalier",null,"Nt d’ensemble"]
[{"$f":"'Info+Engagés'!B4","v":"Quel N°"},null,null,null,null,null,null,"Points",{"$f":"SUM(D39:H39)","v":0}]
["Épreuve N°",null,{"$f":"'Info+Engagés'!B5","v":"Quel N°"},{"$f":"'Info+Engagés'!B12","v":"Y"},null,{"$f":"'Info+Engagés'!G12","v":"Z"},null,"% Final",{"$f":"AVERAGE(D38:H38)","v":0}]
["Piste  ",null,{"$f":"'Info+Engagés'!B6","v":"Piste ?"}]
["N° Départ BO",null,{"$f":"'Info+Engagés'!A12","v":1},null,null,null,null,"Classement"]
[]
["Imprimé le :",null,null,"Juge E","Juge H","Juge C","Juge M","Juge B"]
[{"$f":"TODAY()","v":"2017-02-17"},null,"Coéff .",{"$f":"IF(ISBLANK('Info+Engagés'!H2),\"\",('Info+Engagés'!H2))","v":""},{"$f":"IF(ISBLANK('Info+Engagés'!H3),\"\",('Info+Engagés'!H3))","v":""},{"$f":"IF(ISBLANK('Info+Engagés'!H4),\"\",('Info+Engagés'!H4))","v":"X"},{"$f":"IF(ISBLANK('Info+Engagés'!H5),\"\",('Info+Engagés'!H5))","v":""},{"$f":"IF(ISBLANK('Info+Engagés'!H6),\"\",('Info+Engagés'!H6))","v":""}]
[{"$f":"NOW()","v":42783.749748032409},null,null,null,null,null,null,null,"écart Max"]
["Notation figures","Figure 1",0,null,null,null,null,null,{"$f":"MAX(D12:H12)-MIN(D12:H12)","v":0}]
[null,"Figure 2",0,null,null,null,null,null,0]
[null,"Figure 3",0,null,null,null,null,null,0]
[null,"Figure 4",0,null,null,null,null,null,0]
[null,"Figure 5",0,null,null,null,null,null,0]
[null,"Figure 6",0,null,null,null,null,null,0]
[null,"Figure 7",0,null,null,null,null,null,0]
[null,"Figure 8",0,null,null,null,null,null,0]
[null,"Figure 9",0,null,null,null,null,null,0]
[null,"Figure 10",0,null,null,null,null,null,0]
[null,"Figure 11",0,null,null,null,null,null,0]
[null,"Figure 12",0,null,null,null,null,null,0]
[null,"Figure 13",0,null,null,null,null,null,0]
[null,"Figure 14",0,null,null,null,null,null,0]
[null,"Figure 15",0,null,null,null,null,null,0]
[null,"Figure 16",0,null,null,null,null,null,0]
[null,"Figure 17",0,null,null,null,null,null,0]
[null,"Figure 18",0,null,null,null,null,null,0]
[null,"Figure 19",0,null,null,null,null,null,0]
[" Critéres d'appréciation","Ensemble 1",1,null,null,null,null,null,0]
[null,"Ensemble 2",1,null,null,null,null,null,0]
[null,"Ensemble 3",1,null,null,null,null,null,0]
[null,"Ensemble 4",1,null,null,null,null,null,{"$f":"MAX(D34:H34)-MIN(D34:H34)","v":0}]
[null,"Ensemble 5",1,null,null,null,null,null,{"$f":"MAX(D35:H35)-MIN(D35:H35)","v":0}]
["Pénalité en points"]
["Erreure(s) de tracé "]
["% Total du juge",null,null,{"$f":"IF(ISBLANK('Info+Engagés'!H2),\"\",D39/0.5-D37)","v":""},{"$f":"IF(ISBLANK('Info+Engagés'!H3),\"\",E39/0.5-E37)","v":""},{"$f":"IF(ISBLANK('Info+Engagés'!H4),\"\",F39/0.5-F37)","v":0},{"$f":"IF(ISBLANK('Info+Engagés'!H5),\"\",G39/0.5-G37)","v":""},{"$f":"IF(ISBLANK('Info+Engagés'!H6),\"\",H39/0.5-H37)","v":""},{"$f":"MAX(D38:H38)-MIN(D38:H38)","v":0}]
["Soit en points",null,null,{"$f":"IF(ISBLANK('Info+Engagés'!H2),\"\",(SUM(D31:D35)-D36))","v":""},{"$f":"IF(ISBLANK('Info+Engagés'!H3),\"\",(SUM(E31:E35)-E36))","v":""},{"$f":"IF(ISBLANK('Info+Engagés'!H4),\"\",(SUM(F31:F35)-F36))","v":0},{"$f":"IF(ISBLANK('Info+Engagés'!H5),\"\",(SUM(G31:G35)-G36))","v":""},{"$f":"IF(ISBLANK('Info+Engagés'!H6),\"\",(SUM(H31:H35)-H36))","v":""}]
["                          Total maxi par juge = 50          1 point correspond à 2,000%              1% correspond en points à : 0,5                                                                  Les notes sont sur 10 et correspondent à la saisie informatique par l'opérateur des protocoles joints, Le total résulte de l'addition des points attribués après application du coefficient et soustraction des points de pénalité encourus après conversion en pourcentage sont déduit les pourcentages de pénalités encourus par suite d'erreurs de tracé pour obtenir le pourcentage par juge."]

{"sheet":"Cav2","index":2,"n_rows":40,"n_cols":9,"rows_kept":40,"cut":false,"hidden":false,"merged":[[0,0,1,2],[0,3,1,6],[0,7,1,8],[2,0,2,2],[2,3,3,4],[2,5,3,6],[3,0,3,2],[4,0,4,1],[4,3,6,4],[4,5,6,6],[4,7,5,7],[4,8,5,8],[5,0,5,1],[6,0,7,1],[6,2,7,2],[6,7,7,7],[6,8,7,8],[9,5,10,5],[9,6,10,6],[9,7,10,7],[10,0,10,1],[8,0,8,1],[9,0,9,1],[9,2,10,2],[9,3,10,3],[9,4,10,4],[30,0,34,0],[11,0,29,0],[39,0,43,8],[35,0,35,2],[36,0,36,2],[37,0,37,2],[38,0,38,2]]}
[{"$f":"'Info+Engagés'!B3","v":"Quel Lieu (Dép)"},null,null,{"$f":"'Info+Engagés'!B8","v":"Club 4 Imposée"},null,null,null,{"$f":"'Info+Engagés'!B2","v":"Quelle Date"}]
[]
["N° de concours",null,null,"Cheval",null,"Cavalier",null,"Note d’ensemble"]
[{"$f":"'Info+Engagés'!B4","v":"Quel N°"},null,null,null,null,null,null,"Points",{"$f":"SUM(D39:H39)","v":0}]
["Épreuve N°",null,{"$f":"'Info+Engagés'!B5","v":"Quel N°"},{"$f":"'Info+Engagés'!B13","v":0},null,{"$f":"'Info+Engagés'!G13","v":0},null,"% Final",{"$f":"AVERAGE(D38:H38)","v":0}]
["Piste  ",null,{"$f":"'Info+Engagés'!B6","v":"Piste ?"}]
["N° Départ BO",null,{"$f":"'Info+Engagés'!A13","v":0},null,null,null,null,"Classement"]
[]
["Imprimé le :",null,null,"Juge E","Juge H","Juge C","Juge M","Juge B"]
[{"$f":"TODAY()","v":"2017-02-17"},null,"Coéff .",{"$f":"IF(ISBLANK('Info+Engagés'!H2),\"\",('Info+Engagés'!H2))","v":""},{"$f":"IF(ISBLANK('Info+Engagés'!H3),\"\",('Info+Engagés'!H3))","v":""},{"$f":"IF(ISBLANK('Info+Engagés'!H4),\"\",('Info+Engagés'!H4))","v":"X"},{"$f":"IF(ISBLANK('Info+Engagés'!H5),\"\",('Info+Engagés'!H5))","v":""},{"$f":"IF(ISBLANK('Info+Engagés'!H6),\"\",('Info+Engagés'!H6))","v":""}]
[{"$f":"NOW()","v":42783.749748032409},null,null,null,null,null,null,null,"écart Max"]
["Notation figures","Figure 1",0,null,null,null,null,null,{"$f":"MAX(D12:H12)-MIN(D12:H12)","v":0}]
[null,"Figure 2",0,null,null,null,null,null,0]
[null,"Figure 3",0,null,null,null,null,null,0]
[null,"Figure 4",0,null,null,null,null,null,0]
[null,"Figure 5",0,null,null,null,null,null,0]
[null,"Figure 6",0,null,null,null,null,null,0]
[null,"Figure 7",0,null,null,null,null,null,0]
[null,"Figure 8",0,null,null,null,null,null,0]
[null,"Figure 9",0,null,null,null,null,null,0]
[null,"Figure 10",0,null,null,null,null,null,0]
[null,"Figure 11",0,null,null,null,null,null,0]
[null,"Figure 12",0,null,null,null,null,null,0]
[null,"Figure 13",0,null,null,null,null,null,0]
[null,"Figure 14",0,null,null,null,null,null,0]
[null,"Figure 15",0,null,null,null,null,null,0]
[null,"Figure 16",0,null,null,null,null,null,0]
[null,"Figure 17",0,null,null,null,null,null,0]
[null,"Figure 18",0,null,null,null,null,null,0]
[null,"Figure 19",0,null,null,null,null,null,0]
[" Critéres d'appréciation","Ensemble 1",1,null,null,null,null,null,0]
[null,"Ensemble 2",1,null,null,null,null,null,0]
[null,"Ensemble 3",1,null,null,null,null,null,0]
[null,"Ensemble 4",1,null,null,null,null,null,{"$f":"MAX(D34:H34)-MIN(D34:H34)","v":0}]
[null,"Ensemble 5",1,null,null,null,null,null,{"$f":"MAX(D35:H35)-MIN(D35:H35)","v":0}]
["Pénalité en points"]
["Erreure(s) de tracé "]
["% Total du juge",null,null,{"$f":"IF(ISBLANK('Info+Engagés'!H2),\"\",D39/0.5-D37)","v":""},{"$f":"IF(ISBLANK('Info+Engagés'!H3),\"\",E39/0.5-E37)","v":""},{"$f":"IF(ISBLANK('Info+Engagés'!H4),\"\",F39/0.5-F37)","v":0},{"$f":"IF(ISBLANK('Info+Engagés'!H5),\"\",G39/0.5-G37)","v":""},{"$f":"IF(ISBLANK('Info+Engagés'!H6),\"\",H39/0.5-H37)","v":""},{"$f":"MAX(D38:H38)-MIN(D38:H38)","v":0}]
["Soit en points",null,null,{"$f":"IF(ISBLANK('Info+Engagés'!H2),\"\",(SUM(D31:D35)-D36))","v":""},{"$f":"IF(ISBLANK('Info+Engagés'!H3),\"\",(SUM(E31:E35)-E36))","v":""},{"$f":"IF(ISBLANK('Info+Engagés'!H4),\"\",(SUM(F31:F35)-F36))","v":0},{"$f":"IF(ISBLANK('Info+Engagés'!H5),\"\",(SUM(G31:G35)-G36))","v":""},{"$f":"IF(ISBLANK('Info+Engagés'!H6),\"\",(SUM(H31:H35)-H36))","v":""}]
["                          Total maxi par juge = 50          1 point correspond à 2,000%              1% correspond en points à : 0,5                                                                  Les notes sont sur 10 et correspondent à la saisie informatique par l'opérateur des protocoles joints, Le total résulte de l'addition des points attribués après application du coefficient et soustraction des points de pénalité encourus après conversion en pourcentage sont déduit les pourcentages de pénalités encourus par suite d'erreurs de tracé pour obtenir le pourcentage par juge."]

{"sheet":"Cav3","index":3,"n_rows":40,"n_cols":9,"rows_kept":40,"cut":false,"hidden":false,"merged":[[0,0,1,2],[0,3,1,6],[0,7,1,8],[2,0,2,2],[2,3,3,4],[2,5,3,6],[3,0,3,2],[4,0,4,1],[4,3,6,4],[4,5,6,6],[4,7,5,7],[4,8,5,8],[5,0,5,1],[6,0,7,1],[6,2,7,2],[6,7,7,7],[6,8,7,8],[8,0,8,1],[9,0,9,1],[9,2,10,2],[9,3,10,3],[9,4,10,4],[36,0,36,2],[37,0,37,2],[38,0,38,2],[39,0,43,8],[9,6,10,6],[9,7,10,7],[10,0,10,1],[35,0,35,2],[9,5,10,5],[30,0,34,0],[11,0,29,0]]}
[{"$f":"'Info+Engagés'!B3","v":"Quel Lieu (Dép)"},null,null,{"$f":"'Info+Engagés'!B8","v":"Club 4 Imposée"},null,null,null,{"$f":"'Info+Engagés'!B2","v":"Quelle Date"}]
[]
["N° de concours",null,null,"Cheval",null,"Cavalier",null,"Note d’ensemble"]
[{"$f":"'Info+Engagés'!B4","v":"Quel N°"},null,null,null,null,null,null,"Points",{"$f":"SUM(D39:H39)","v":0}]
["Épreuve N°",null,{"$f":"'Info+Engagés'!B5","v":"Quel N°"},{"$f":"'Info+Engagés'!B14","v":0},null,{"$f":"'Info+Engagés'!G14","v":0},null,"% Final",{"$f":"AVERAGE(D38:H38)","v":0}]
["Piste  ",null,{"$f":"'Info+Engagés'!B6","v":"Piste ?"}]
["N° Départ BO",null,{"$f":"'Info+Engagés'!A14","v":0},null,null,null,null,"Classement"]
[]
["Imprimé le :",null,null,"Juge E","Juge H","Juge C","Juge M","Juge B"]
[{"$f":"TODAY()","v":"2017-02-17"},null,"Coéff .",{"$f":"IF(ISBLANK('Info+Engagés'!H2),\"\",('Info+Engagés'!H2))","v":""},{"$f":"IF(ISBLANK('Info+Engagés'!H3),\"\",('Info+Engagés'!H3))","v":""},{"$f":"IF(ISBLANK('Info+Engagés'!H4),\"\",('Info+Engagés'!H4))","v":"X"},{"$f":"IF(ISBLANK('Info+Engagés'!H5),\"\",('Info+Engagés'!H5))","v":""},{"$f":"IF(ISBLANK('Info+Engagés'!H6),\"\",('Info+Engagés'!H6))","v":""}]
[{"$f":"NOW()","v":42783.749748032409},null,null,null,null,null,null,null,"écart Max"]
["Notation figures","Figure 1",0,null,null,null,null,null,{"$f":"MAX(D12:H12)-MIN(D12:H12)","v":0}]
[null,"Figure 2",0,null,null,null,null,null,0]
[null,"Figure 3",0,null,null,null,null,null,0]
[null,"Figure 4",0,null,null,null,null,null,0]
[null,"Figure 5",0,null,null,null,null,null,0]
[null,"Figure 6",0,null,null,null,null,null,0]
[null,"Figure 7",0,null,null,null,null,null,0]
[null,"Figure 8",0,null,null,null,null,null,0]
[null,"Figure 9",0,null,null,null,null,null,0]
[null,"Figure 10",0,null,null,null,null,null,0]
[null,"Figure 11",0,null,null,null,null,null,0]
[null,"Figure 12",0,null,null,null,null,null,0]
[null,"Figure 13",0,null,null,null,null,null,0]
[null,"Figure 14",0,null,null,null,null,null,0]
[null,"Figure 15",0,null,null,null,null,null,0]
[null,"Figure 16",0,null,null,null,null,null,0]
[null,"Figure 17",0,null,null,null,null,null,0]
[null,"Figure 18",0,null,null,null,null,null,0]
[null,"Figure 19",0,null,null,null,null,null,0]
[" Critéres d'appréciation","Ensemble 1",1,null,null,null,null,null,0]
[null,"Ensemble 2",1,null,null,null,null,null,0]
[null,"Ensemble 3",1,null,null,null,null,null,0]
[null,"Ensemble 4",1,null,null,null,null,null,{"$f":"MAX(D34:H34)-MIN(D34:H34)","v":0}]
[null,"Ensemble 5",1,null,null,null,null,null,{"$f":"MAX(D35:H35)-MIN(D35:H35)","v":0}]
["Pénalité en points"]
["Erreure(s) de tracé "]
["% Total du juge",null,null,{"$f":"IF(ISBLANK('Info+Engagés'!H2),\"\",D39/0.5-D37)","v":""},{"$f":"IF(ISBLANK('Info+Engagés'!H3),\"\",E39/0.5-E37)","v":""},{"$f":"IF(ISBLANK('Info+Engagés'!H4),\"\",F39/0.5-F37)","v":0},{"$f":"IF(ISBLANK('Info+Engagés'!H5),\"\",G39/0.5-G37)","v":""},{"$f":"IF(ISBLANK('Info+Engagés'!H6),\"\",H39/0.5-H37)","v":""},{"$f":"MAX(D38:H38)-MIN(D38:H38)","v":0}]
["Soit en points",null,null,{"$f":"IF(ISBLANK('Info+Engagés'!H2),\"\",(SUM(D31:D35)-D36))","v":""},{"$f":"IF(ISBLANK('Info+Engagés'!H3),\"\",(SUM(E31:E35)-E36))","v":""},{"$f":"IF(ISBLANK('Info+Engagés'!H4),\"\",(SUM(F31:F35)-F36))","v":0},{"$f":"IF(ISBLANK('Info+Engagés'!H5),\"\",(SUM(G31:G35)-G36))","v":""},{"$f":"IF(ISBLANK('Info+Engagés'!H6),\"\",(SUM(H31:H35)-H36))","v":""}]
["                          Total maxi par juge = 50          1 point correspond à 2,000%              1% correspond en points à : 0,5                                                                  Les notes sont sur 10 et correspondent à la saisie informatique par l'opérateur des protocoles joints, Le total résulte de l'addition des points attribués après application du coefficient et soustraction des points de pénalité encourus après conversion en pourcentage sont déduit les pourcentages de pénalités encourus par suite d'erreurs de tracé pour obtenir le pourcentage par juge."]

{"sheet":"Cav4","index":4,"n_rows":40,"n_cols":9,"rows_kept":40,"cut":false,"hidden":false,"merged":[[36,0,36,2],[37,0,37,2],[38,0,38,2],[39,0,43,8],[9,6,10,6],[9,7,10,7],[10,0,10,1],[35,0,35,2],[9,5,10,5],[30,0,34,0],[11,0,29,0],[8,0,8,1],[9,0,9,1],[9,2,10,2],[9,3,10,3],[9,4,10,4],[4,0,4,1],[4,3,6,4],[4,5,6,6],[4,7,5,7],[4,8,5,8],[5,0,5,1],[6,0,7,1],[6,2,7,2],[6,7,7,7],[6,8,7,8],[0,0,1,2],[0,3,1,6],[0,7,1,8],[2,0,2,2],[2,3,3,4],[2,5,3,6],[3,0,3,2]]}
[{"$f":"'Info+Engagés'!B3","v":"Quel Lieu (Dép)"},null,null,{"$f":"'Info+Engagés'!B8","v":"Club 4 Imposée"},null,null,null,{"$f":"'Info+Engagés'!B2","v":"Quelle Date"}]
[]
["N° de concours",null,null,"Cheval",null,"Cavalier",null,"Note d’ensemble"]
[{"$f":"'Info+Engagés'!B4","v":"Quel N°"},null,null,null,null,null,null,"Points",{"$f":"SUM(D39:H39)","v":0}]
["Épreuve N°",null,{"$f":"'Info+Engagés'!B5","v":"Quel N°"},{"$f":"'Info+Engagés'!B15","v":0},null,{"$f":"'Info+Engagés'!G15","v":0},null,"% Final",{"$f":"AVERAGE(D38:H38)","v":0}]
["Piste  ",null,{"$f":"'Info+Engagés'!B6","v":"Piste ?"}]
["N° Départ BO",null,{"$f":"'Info+Engagés'!A15","v":0},null,null,null,null,"Classement"]
[]
["Imprimé le :",null,null,"Juge E","Juge H","Juge C","Juge M","Juge B"]
[{"$f":"TODAY()","v":"2017-02-17"},null,"Coéff .",{"$f":"IF(ISBLANK('Info+Engagés'!H2),\"\",('Info+Engagés'!H2))","v":""},{"$f":"IF(ISBLANK('Info+Engagés'!H3),\"\",('Info+Engagés'!H3))","v":""},{"$f":"IF(ISBLANK('Info+Engagés'!H4),\"\",('Info+Engagés'!H4))","v":"X"},{"$f":"IF(ISBLANK('Info+Engagés'!H5),\"\",('Info+Engagés'!H5))","v":""},{"$f":"IF(ISBLANK('Info+Engagés'!H6),\"\",('Info+Engagés'!H6))","v":""}]
[{"$f":"NOW()","v":42783.749748032409},null,null,null,null,null,null,null,"écart Max"]
["Notation figures","Figure 1",0,null,null,null,null,null,{"$f":"MAX(D12:H12)-MIN(D12:H12)","v":0}]
[null,"Figure 2",0,null,null,null,null,null,0]
[null,"Figure 3",0,null,null,null,null,null,0]
[null,"Figure 4",0,null,null,null,null,null,0]
[null,"Figure 5",0,null,null,null,null,null,0]
[null,"Figure 6",0,null,null,null,null,null,0]
[null,"Figure 7",0,null,null,null,null,null,0]
[null,"Figure 8",0,null,null,null,null,null,0]
[null,"Figure 9",0,null,null,null,null,null,0]
[null,"Figure 10",0,null,null,null,null,null,0]
[null,"Figure 11",0,null,null,null,null,null,0]
[null,"Figure 12",0,null,null,null,null,null,0]
[null,"Figure 13",0,null,null,null,null,null,0]
[null,"Figure 14",0,null,null,null,null,null,0]
[null,"Figure 15",0,null,null,null,null,null,0]
[null,"Figure 16",0,null,null,null,null,null,0]
[null,"Figure 17",0,null,null,null,null,null,0]
[null,"Figure 18",0,null,null,null,null,null,0]
[null,"Figure 19",0,null,null,null,null,null,0]
[" Critéres d'appréciation","Ensemble 1",1,null,null,null,null,null,0]
[null,"Ensemble 2",1,null,null,null,null,null,0]
[null,"Ensemble 3",1,null,null,null,null,null,0]
[null,"Ensemble 4",1,null,null,null,null,null,{"$f":"MAX(D34:H34)-MIN(D34:H34)","v":0}]
[null,"Ensemble 5",1,null,null,null,null,null,{"$f":"MAX(D35:H35)-MIN(D35:H35)","v":0}]
["Pénalité en points"]
["Erreure(s) de tracé "]
["% Total du juge",null,null,{"$f":"IF(ISBLANK('Info+Engagés'!H2),\"\",D39/0.5-D37)","v":""},{"$f":"IF(ISBLANK('Info+Engagés'!H3),\"\",E39/0.5-E37)","v":""},{"$f":"IF(ISBLANK('Info+Engagés'!H4),\"\",F39/0.5-F37)","v":0},{"$f":"IF(ISBLANK('Info+Engagés'!H5),\"\",G39/0.5-G37)","v":""},{"$f":"IF(ISBLANK('Info+Engagés'!H6),\"\",H39/0.5-H37)","v":""},{"$f":"MAX(D38:H38)-MIN(D38:H38)","v":0}]
["Soit en points",null,null,{"$f":"IF(ISBLANK('Info+Engagés'!H2),\"\",(SUM(D31:D35)-D36))","v":""},{"$f":"IF(ISBLANK('Info+Engagés'!H3),\"\",(SUM(E31:E35)-E36))","v":""},{"$f":"IF(ISBLANK('Info+Engagés'!H4),\"\",(SUM(F31:F35)-F36))","v":0},{"$f":"IF(ISBLANK('Info+Engagés'!H5),\"\",(SUM(G31:G35)-G36))","v":""},{"$f":"IF(ISBLANK('Info+Engagés'!H6),\"\",(SUM(H31:H35)-H36))","v":""}]
["                          Total maxi par juge = 50          1 point correspond à 2,000%              1% correspond en points à : 0,5                                                                  Les notes sont sur 10 et correspondent à la saisie informatique par l'opérateur des protocoles joints, Le total résulte de l'addition des points attribués après application du coefficient et soustraction des points de pénalité encourus après conversion en pourcentage sont déduit les pourcentages de pénalités encourus par suite d'erreurs de tracé pour obtenir le pourcentage par juge."]

{"sheet":"Cav5","index":5,"n_rows":40,"n_cols":9,"rows_kept":40,"cut":false,"hidden":false,"merged":[[36,0,36,2],[37,0,37,2],[38,0,38,2],[39,0,43,8],[9,6,10,6],[9,7,10,7],[10,0,10,1],[35,0,35,2],[9,5,10,5],[30,0,34,0],[11,0,29,0],[8,0,8,1],[9,0,9,1],[9,2,10,2],[9,3,10,3],[9,4,10,4],[4,0,4,1],[4,3,6,4],[4,5,6,6],[4,7,5,7],[4,8,5,8],[5,0,5,1],[6,0,7,1],[6,2,7,2],[6,7,7,7],[6,8,7,8],[0,0,1,2],[0,3,1,6],[0,7,1,8],[2,0,2,2],[2,3,3,4],[2,5,3,6],[3,0,3,2]]}
[{"$f":"'Info+Engagés'!B3","v":"Quel Lieu (Dép)"},null,null,{"$f":"'Info+Engagés'!B8","v":"Club 4 Imposée"},null,null,null,{"$f":"'Info+Engagés'!B2","v":"Quelle Date"}]
[]
["N° de concours",null,null,"Cheval",null,"Cavalier",null,"Note d’ensemble"]
[{"$f":"'Info+Engagés'!B4","v":"Quel N°"},null,null,null,null,null,null,"Points",{"$f":"SUM(D39:H39)","v":0}]
["Épreuve N°",null,{"$f":"'Info+Engagés'!B5","v":"Quel N°"},{"$f":"'Info+Engagés'!B16","v":0},null,{"$f":"'Info+Engagés'!G16","v":0},null,"% Final",{"$f":"AVERAGE(D38:H38)","v":0}]
["Piste  ",null,{"$f":"'Info+Engagés'!B6","v":"Piste ?"}]
["N° Départ BO",null,{"$f":"'Info+Engagés'!A16","v":0},null,null,null,null,"Classement"]
[]
["Imprimé le :",null,null,"Juge E","Juge H","Juge C","Juge M","Juge B"]
[{"$f":"TODAY()","v":"2017-02-17"},null,"Coéff .",{"$f":"IF(ISBLANK('Info+Engagés'!H2),\"\",('Info+Engagés'!H2))","v":""},{"$f":"IF(ISBLANK('Info+Engagés'!H3),\"\",('Info+Engagés'!H3))","v":""},{"$f":"IF(ISBLANK('Info+Engagés'!H4),\"\",('Info+Engagés'!H4))","v":"X"},{"$f":"IF(ISBLANK('Info+Engagés'!H5),\"\",('Info+Engagés'!H5))","v":""},{"$f":"IF(ISBLANK('Info+Engagés'!H6),\"\",('Info+Engagés'!H6))","v":""}]
[{"$f":"NOW()","v":42783.749748032409},null,null,null,null,null,null,null,"écart Max"]
["Notation figures","Figure 1",0,null,null,null,null,null,{"$f":"MAX(D12:H12)-MIN(D12:H12)","v":0}]
[null,"Figure 2",0,null,null,null,null,null,0]
[null,"Figure 3",0,null,null,null,null,null,0]
[null,"Figure 4",0,null,null,null,null,null,0]
[null,"Figure 5",0,null,null,null,null,null,0]
[null,"Figure 6",0,null,null,null,null,null,0]
[null,"Figure 7",0,null,null,null,null,null,0]
[null,"Figure 8",0,null,null,null,null,null,0]
[null,"Figure 9",0,null,null,null,null,null,0]
[null,"Figure 10",0,null,null,null,null,null,0]
[null,"Figure 11",0,null,null,null,null,null,0]
[null,"Figure 12",0,null,null,null,null,null,0]
[null,"Figure 13",0,null,null,null,null,null,0]
[null,"Figure 14",0,null,null,null,null,null,0]
[null,"Figure 15",0,null,null,null,null,null,0]
[null,"Figure 16",0,null,null,null,null,null,0]
[null,"Figure 17",0,null,null,null,null,null,0]
[null,"Figure 18",0,null,null,null,null,null,0]
[null,"Figure 19",0,null,null,null,null,null,0]
[" Critéres d'appréciation","Ensemble 1",1,null,null,null,null,null,0]
[null,"Ensemble 2",1,null,null,null,null,null,0]
[null,"Ensemble 3",1,null,null,null,null,null,0]
[null,"Ensemble 4",1,null,null,null,null,null,{"$f":"MAX(D34:H34)-MIN(D34:H34)","v":0}]
[null,"Ensemble 5",1,null,null,null,null,null,{"$f":"MAX(D35:H35)-MIN(D35:H35)","v":0}]
["Pénalité en points"]
["Erreure(s) de tracé "]
["% Total du juge",null,null,{"$f":"IF(ISBLANK('Info+Engagés'!H2),\"\",D39/0.5-D37)","v":""},{"$f":"IF(ISBLANK('Info+Engagés'!H3),\"\",E39/0.5-E37)","v":""},{"$f":"IF(ISBLANK('Info+Engagés'!H4),\"\",F39/0.5-F37)","v":0},{"$f":"IF(ISBLANK('Info+Engagés'!H5),\"\",G39/0.5-G37)","v":""},{"$f":"IF(ISBLANK('Info+Engagés'!H6),\"\",H39/0.5-H37)","v":""},{"$f":"MAX(D38:H38)-MIN(D38:H38)","v":0}]
["Soit en points",null,null,{"$f":"IF(ISBLANK('Info+Engagés'!H2),\"\",(SUM(D31:D35)-D36))","v":""},{"$f":"IF(ISBLANK('Info+Engagés'!H3),\"\",(SUM(E31:E35)-E36))","v":""},{"$f":"IF(ISBLANK('Info+Engagés'!H4),\"\",(SUM(F31:F35)-F36))","v":0},{"$f":"IF(ISBLANK('Info+Engagés'!H5),\"\",(SUM(G31:G35)-G36))","v":""},{"$f":"IF(ISBLANK('Info+Engagés'!H6),\"\",(SUM(H31:H35)-H36))","v":""}]
["                          Total maxi par juge = 50          1 point correspond à 2,000%              1% correspond en points à : 0,5                                                                  Les notes sont sur 10 et correspondent à la saisie informatique par l'opérateur des protocoles joints, Le total résulte de l'addition des points attribués après application du coefficient et soustraction des points de pénalité encourus après conversion en pourcentage sont déduit les pourcentages de pénalités encourus par suite d'erreurs de tracé pour obtenir le pourcentage par juge."]

{"sheet":"Cav6","index":6,"n_rows":40,"n_cols":9,"rows_kept":40,"cut":false,"hidden":false,"merged":[[36,0,36,2],[37,0,37,2],[38,0,38,2],[39,0,43,8],[9,6,10,6],[9,7,10,7],[10,0,10,1],[35,0,35,2],[9,5,10,5],[30,0,34,0],[11,0,29,0],[8,0,8,1],[9,0,9,1],[9,2,10,2],[9,3,10,3],[9,4,10,4],[4,0,4,1],[4,3,6,4],[4,5,6,6],[4,7,5,7],[4,8,5,8],[5,0,5,1],[6,0,7,1],[6,2,7,2],[6,7,7,7],[6,8,7,8],[0,0,1,2],[0,3,1,6],[0,7,1,8],[2,0,2,2],[2,3,3,4],[2,5,3,6],[3,0,3,2]]}
[{"$f":"'Info+Engagés'!B3","v":"Quel Lieu (Dép)"},null,null,{"$f":"'Info+Engagés'!B8","v":"Club 4 Imposée"},null,null,null,{"$f":"'Info+Engagés'!B2","v":"Quelle Date"}]
[]
["N° de concours",null,null,"Cheval",null,"Cavalier",null,"Note d’ensemble"]
[{"$f":"'Info+Engagés'!B4","v":"Quel N°"},null,null,null,null,null,null,"Points",{"$f":"SUM(D39:H39)","v":0}]
["Épreuve N°",null,{"$f":"'Info+Engagés'!B5","v":"Quel N°"},{"$f":"'Info+Engagés'!B17","v":0},null,{"$f":"'Info+Engagés'!G17","v":0},null,"% Final",{"$f":"AVERAGE(D38:H38)","v":0}]
["Piste  ",null,{"$f":"'Info+Engagés'!B6","v":"Piste ?"}]
["N° Départ BO",null,{"$f":"'Info+Engagés'!A17","v":0},null,null,null,null,"Classement"]
[]
["Imprimé le :",null,null,"Juge E","Juge H","Juge C","Juge M","Juge B"]
[{"$f":"TODAY()","v":"2017-02-17"},null,"Coéff .",{"$f":"IF(ISBLANK('Info+Engagés'!H2),\"\",('Info+Engagés'!H2))","v":""},{"$f":"IF(ISBLANK('Info+Engagés'!H3),\"\",('Info+Engagés'!H3))","v":""},{"$f":"IF(ISBLANK('Info+Engagés'!H4),\"\",('Info+Engagés'!H4))","v":"X"},{"$f":"IF(ISBLANK('Info+Engagés'!H5),\"\",('Info+Engagés'!H5))","v":""},{"$f":"IF(ISBLANK('Info+Engagés'!H6),\"\",('Info+Engagés'!H6))","v":""}]
[{"$f":"NOW()","v":42783.749748032409},null,null,null,null,null,null,null,"écart Max"]
["Notation figures","Figure 1",0,null,null,null,null,null,{"$f":"MAX(D12:H12)-MIN(D12:H12)","v":0}]
[null,"Figure 2",0,null,null,null,null,null,0]
[null,"Figure 3",0,null,null,null,null,null,0]
[null,"Figure 4",0,null,null,null,null,null,0]
[null,"Figure 5",0,null,null,null,null,null,0]
[null,"Figure 6",0,null,null,null,null,null,0]
[null,"Figure 7",0,null,null,null,null,null,0]
[null,"Figure 8",0,null,null,null,null,null,0]
[null,"Figure 9",0,null,null,null,null,null,0]
[null,"Figure 10",0,null,null,null,null,null,0]
[null,"Figure 11",0,null,null,null,null,null,0]
[null,"Figure 12",0,null,null,null,null,null,0]
[null,"Figure 13",0,null,null,null,null,null,0]
[null,"Figure 14",0,null,null,null,null,null,0]
[null,"Figure 15",0,null,null,null,null,null,0]
[null,"Figure 16",0,null,null,null,null,null,0]
[null,"Figure 17",0,null,null,null,null,null,0]
[null,"Figure 18",0,null,null,null,null,null,0]
[null,"Figure 19",0,null,null,null,null,null,0]
[" Critéres d'appréciation","Ensemble 1",1,null,null,null,null,null,0]
[null,"Ensemble 2",1,null,null,null,null,null,0]
[null,"Ensemble 3",1,null,null,null,null,null,0]
[null,"Ensemble 4",1,null,null,null,null,null,{"$f":"MAX(D34:H34)-MIN(D34:H34)","v":0}]
[null,"Ensemble 5",1,null,null,null,null,null,{"$f":"MAX(D35:H35)-MIN(D35:H35)","v":0}]
["Pénalité en points"]
["Erreure(s) de tracé "]
["% Total du juge",null,null,{"$f":"IF(ISBLANK('Info+Engagés'!H2),\"\",D39/0.5-D37)","v":""},{"$f":"IF(ISBLANK('Info+Engagés'!H3),\"\",E39/0.5-E37)","v":""},{"$f":"IF(ISBLANK('Info+Engagés'!H4),\"\",F39/0.5-F37)","v":0},{"$f":"IF(ISBLANK('Info+Engagés'!H5),\"\",G39/0.5-G37)","v":""},{"$f":"IF(ISBLANK('Info+Engagés'!H6),\"\",H39/0.5-H37)","v":""},{"$f":"MAX(D38:H38)-MIN(D38:H38)","v":0}]
["Soit en points",null,null,{"$f":"IF(ISBLANK('Info+Engagés'!H2),\"\",(SUM(D31:D35)-D36))","v":""},{"$f":"IF(ISBLANK('Info+Engagés'!H3),\"\",(SUM(E31:E35)-E36))","v":""},{"$f":"IF(ISBLANK('Info+Engagés'!H4),\"\",(SUM(F31:F35)-F36))","v":0},{"$f":"IF(ISBLANK('Info+Engagés'!H5),\"\",(SUM(G31:G35)-G36))","v":""},{"$f":"IF(ISBLANK('Info+Engagés'!H6),\"\",(SUM(H31:H35)-H36))","v":""}]
["                          Total maxi par juge = 50          1 point correspond à 2,000%              1% correspond en points à : 0,5                                                                  Les notes sont sur 10 et correspondent à la saisie informatique par l'opérateur des protocoles joints, Le total résulte de l'addition des points attribués après application du coefficient et soustraction des points de pénalité encourus après conversion en pourcentage sont déduit les pourcentages de pénalités encourus par suite d'erreurs de tracé pour obtenir le pourcentage par juge."]

{"sheet":"Cav7","index":7,"n_rows":40,"n_cols":9,"rows_kept":40,"cut":false,"hidden":false,"merged":[[36,0,36,2],[37,0,37,2],[38,0,38,2],[39,0,43,8],[9,6,10,6],[9,7,10,7],[10,0,10,1],[35,0,35,2],[9,5,10,5],[30,0,34,0],[11,0,29,0],[8,0,8,1],[9,0,9,1],[9,2,10,2],[9,3,10,3],[9,4,10,4],[4,0,4,1],[4,3,6,4],[4,5,6,6],[4,7,5,7],[4,8,5,8],[5,0,5,1],[6,0,7,1],[6,2,7,2],[6,7,7,7],[6,8,7,8],[0,0,1,2],[0,3,1,6],[0,7,1,8],[2,0,2,2],[2,3,3,4],[2,5,3,6],[3,0,3,2]]}
[{"$f":"'Info+Engagés'!B3","v":"Quel Lieu (Dép)"},null,null,{"$f":"'Info+Engagés'!B8","v":"Club 4 Imposée"},null,null,null,{"$f":"'Info+Engagés'!B2","v":"Quelle Date"}]
[]
["N° de concours",null,null,"Cheval",null,"Cavalier",null,"Note d’ensemble"]
[{"$f":"'Info+Engagés'!B4","v":"Quel N°"},null,null,null,null,null,null,"Points",{"$f":"SUM(D39:H39)","v":0}]
["Épreuve N°",null,{"$f":"'Info+Engagés'!B5","v":"Quel N°"},{"$f":"'Info+Engagés'!B18","v":0},null,{"$f":"'Info+Engagés'!G18","v":0},null,"% Final",{"$f":"AVERAGE(D38:H38)","v":0}]
["Piste  ",null,{"$f":"'Info+Engagés'!B6","v":"Piste ?"}]
["N° Départ BO",null,{"$f":"'Info+Engagés'!A18","v":0},null,null,null,null,"Classement"]
[]
["Imprimé le :",null,null,"Juge E","Juge H","Juge C","Juge M","Juge B"]
[{"$f":"TODAY()","v":"2017-02-17"},null,"Coéff .",{"$f":"IF(ISBLANK('Info+Engagés'!H2),\"\",('Info+Engagés'!H2))","v":""},{"$f":"IF(ISBLANK('Info+Engagés'!H3),\"\",('Info+Engagés'!H3))","v":""},{"$f":"IF(ISBLANK('Info+Engagés'!H4),\"\",('Info+Engagés'!H4))","v":"X"},{"$f":"IF(ISBLANK('Info+Engagés'!H5),\"\",('Info+Engagés'!H5))","v":""},{"$f":"IF(ISBLANK('Info+Engagés'!H6),\"\",('Info+Engagés'!H6))","v":""}]
[{"$f":"NOW()","v":42783.749748032409},null,null,null,null,null,null,null,"écart Max"]
["Notation figures","Figure 1",0,null,null,null,null,null,{"$f":"MAX(D12:H12)-MIN(D12:H12)","v":0}]
[null,"Figure 2",0,null,null,null,null,null,0]
[null,"Figure 3",0,null,null,null,null,null,0]
[null,"Figure 4",0,null,null,null,null,null,0]
[null,"Figure 5",0,null,null,null,null,null,0]
[null,"Figure 6",0,null,null,null,null,null,0]
[null,"Figure 7",0,null,null,null,null,null,0]
[null,"Figure 8",0,null,null,null,null,null,0]
[null,"Figure 9",0,null,null,null,null,null,0]
[null,"Figure 10",0,null,null,null,null,null,0]
[null,"Figure 11",0,null,null,null,null,null,0]
[null,"Figure 12",0,null,null,null,null,null,0]
[null,"Figure 13",0,null,null,null,null,null,0]
[null,"Figure 14",0,null,null,null,null,null,0]
[null,"Figure 15",0,null,null,null,null,null,0]
[null,"Figure 16",0,null,null,null,null,null,0]
[null,"Figure 17",0,null,null,null,null,null,0]
[null,"Figure 18",0,null,null,null,null,null,0]
[null,"Figure 19",0,null,null,null,null,null,0]
[" Critéres d'appréciation","Ensemble 1",1,null,null,null,null,null,0]
[null,"Ensemble 2",1,null,null,null,null,null,0]
[null,"Ensemble 3",1,null,null,null,null,null,0]
[null,"Ensemble 4",1,null,null,null,null,null,{"$f":"MAX(D34:H34)-MIN(D34:H34)","v":0}]
[null,"Ensemble 5",1,null,null,null,null,null,{"$f":"MAX(D35:H35)-MIN(D35:H35)","v":0}]
["Pénalité en points"]
["Erreure(s) de tracé "]
["% Total du juge",null,null,{"$f":"IF(ISBLANK('Info+Engagés'!H2),\"\",D39/0.5-D37)","v":""},{"$f":"IF(ISBLANK('Info+Engagés'!H3),\"\",E39/0.5-E37)","v":""},{"$f":"IF(ISBLANK('Info+Engagés'!H4),\"\",F39/0.5-F37)","v":0},{"$f":"IF(ISBLANK('Info+Engagés'!H5),\"\",G39/0.5-G37)","v":""},{"$f":"IF(ISBLANK('Info+Engagés'!H6),\"\",H39/0.5-H37)","v":""},{"$f":"MAX(D38:H38)-MIN(D38:H38)","v":0}]
["Soit en points",null,null,{"$f":"IF(ISBLANK('Info+Engagés'!H2),\"\",(SUM(D31:D35)-D36))","v":""},{"$f":"IF(ISBLANK('Info+Engagés'!H3),\"\",(SUM(E31:E35)-E36))","v":""},{"$f":"IF(ISBLANK('Info+Engagés'!H4),\"\",(SUM(F31:F35)-F36))","v":0},{"$f":"IF(ISBLANK('Info+Engagés'!H5),\"\",(SUM(G31:G35)-G36))","v":""},{"$f":"IF(ISBLANK('Info+Engagés'!H6),\"\",(SUM(H31:H35)-H36))","v":""}]
["                          Total maxi par juge = 50          1 point correspond à 2,000%              1% correspond en points à : 0,5                                                                  Les notes sont sur 10 et correspondent à la saisie informatique par l'opérateur des protocoles joints, Le total résulte de l'addition des points attribués après application du coefficient et soustraction des points de pénalité encourus après conversion en pourcentage sont déduit les pourcentages de pénalités encourus par suite d'erreurs de tracé pour obtenir le pourcentage par juge."]

{"sheet":"Cav8","index":8,"n_rows":40,"n_cols":9,"rows_kept":40,"cut":false,"hidden":false,"merged":[[36,0,36,2],[37,0,37,2],[38,0,38,2],[39,0,43,8],[9,6,10,6],[9,7,10,7],[10,0,10,1],[35,0,35,2],[9,5,10,5],[30,0,34,0],[11,0,29,0],[8,0,8,1],[9,0,9,1],[9,2,10,2],[9,3,10,3],[9,4,10,4],[4,0,4,1],[4,3,6,4],[4,5,6,6],[4,7,5,7],[4,8,5,8],[5,0,5,1],[6,0,7,1],[6,2,7,2],[6,7,7,7],[6,8,7,8],[0,0,1,2],[0,3,1,6],[0,7,1,8],[2,0,2,2],[2,3,3,4],[2,5,3,6],[3,0,3,2]]}
[{"$f":"'Info+Engagés'!B3","v":"Quel Lieu (Dép)"},null,null,{"$f":"'Info+Engagés'!B8","v":"Club 4 Imposée"},null,null,null,{"$f":"'Info+Engagés'!B2","v":"Quelle Date"}]
[]
["N° de concours",null,null,"Cheval",null,"Cavalier",null,"Note d’ensemble"]
[{"$f":"'Info+Engagés'!B4","v":"Quel N°"},null,null,null,null,null,null,"Points",{"$f":"SUM(D39:H39)","v":0}]
["Épreuve N°",null,{"$f":"'Info+Engagés'!B5","v":"Quel N°"},{"$f":"'Info+Engagés'!B19","v":0},null,{"$f":"'Info+Engagés'!G19","v":0},null,"% Final",{"$f":"AVERAGE(D38:H38)","v":0}]
["Piste  ",null,{"$f":"'Info+Engagés'!B6","v":"Piste ?"}]
["N° Départ BO",null,{"$f":"'Info+Engagés'!A19","v":0},null,null,null,null,"Classement"]
[]
["Imprimé le :",null,null,"Juge E","Juge H","Juge C","Juge M","Juge B"]
[{"$f":"TODAY()","v":"2017-02-17"},null,"Coéff .",{"$f":"IF(ISBLANK('Info+Engagés'!H2),\"\",('Info+Engagés'!H2))","v":""},{"$f":"IF(ISBLANK('Info+Engagés'!H3),\"\",('Info+Engagés'!H3))","v":""},{"$f":"IF(ISBLANK('Info+Engagés'!H4),\"\",('Info+Engagés'!H4))","v":"X"},{"$f":"IF(ISBLANK('Info+Engagés'!H5),\"\",('Info+Engagés'!H5))","v":""},{"$f":"IF(ISBLANK('Info+Engagés'!H6),\"\",('Info+Engagés'!H6))","v":""}]
[{"$f":"NOW()","v":42783.749748032409},null,null,null,null,null,null,null,"écart Max"]
["Notation figures","Figure 1",0,null,null,null,null,null,{"$f":"MAX(D12:H12)-MIN(D12:H12)","v":0}]
[null,"Figure 2",0,null,null,null,null,null,0]
[null,"Figure 3",0,null,null,null,null,null,0]
[null,"Figure 4",0,null,null,null,null,null,0]
[null,"Figure 5",0,null,null,null,null,null,0]
[null,"Figure 6",0,null,null,null,null,null,0]
[null,"Figure 7",0,null,null,null,null,null,0]
[null,"Figure 8",0,null,null,null,null,null,0]
[null,"Figure 9",0,null,null,null,null,null,0]
[null,"Figure 10",0,null,null,null,null,null,0]
[null,"Figure 11",0,null,null,null,null,null,0]
[null,"Figure 12",0,null,null,null,null,null,0]
[null,"Figure 13",0,null,null,null,null,null,0]
[null,"Figure 14",0,null,null,null,null,null,0]
[null,"Figure 15",0,null,null,null,null,null,0]
[null,"Figure 16",0,null,null,null,null,null,0]
[null,"Figure 17",0,null,null,null,null,null,0]
[null,"Figure 18",0,null,null,null,null,null,0]
[null,"Figure 19",0,null,null,null,null,null,0]
[" Critéres d'appréciation","Ensemble 1",1,null,null,null,null,null,0]
[null,"Ensemble 2",1,null,null,null,null,null,0]
[null,"Ensemble 3",1,null,null,null,null,null,0]
[null,"Ensemble 4",1,null,null,null,null,null,{"$f":"MAX(D34:H34)-MIN(D34:H34)","v":0}]
[null,"Ensemble 5",1,null,null,null,null,null,{"$f":"MAX(D35:H35)-MIN(D35:H35)","v":0}]
["Pénalité en points"]
["Erreure(s) de tracé "]
["% Total du juge",null,null,{"$f":"IF(ISBLANK('Info+Engagés'!H2),\"\",D39/0.5-D37)","v":""},{"$f":"IF(ISBLANK('Info+Engagés'!H3),\"\",E39/0.5-E37)","v":""},{"$f":"IF(ISBLANK('Info+Engagés'!H4),\"\",F39/0.5-F37)","v":0},{"$f":"IF(ISBLANK('Info+Engagés'!H5),\"\",G39/0.5-G37)","v":""},{"$f":"IF(ISBLANK('Info+Engagés'!H6),\"\",H39/0.5-H37)","v":""},{"$f":"MAX(D38:H38)-MIN(D38:H38)","v":0}]
["Soit en points",null,null,{"$f":"IF(ISBLANK('Info+Engagés'!H2),\"\",(SUM(D31:D35)-D36))","v":""},{"$f":"IF(ISBLANK('Info+Engagés'!H3),\"\",(SUM(E31:E35)-E36))","v":""},{"$f":"IF(ISBLANK('Info+Engagés'!H4),\"\",(SUM(F31:F35)-F36))","v":0},{"$f":"IF(ISBLANK('Info+Engagés'!H5),\"\",(SUM(G31:G35)-G36))","v":""},{"$f":"IF(ISBLANK('Info+Engagés'!H6),\"\",(SUM(H31:H35)-H36))","v":""}]
["                          Total maxi par juge = 50          1 point correspond à 2,000%              1% correspond en points à : 0,5                                                                  Les notes sont sur 10 et correspondent à la saisie informatique par l'opérateur des protocoles joints, Le total résulte de l'addition des points attribués après application du coefficient et soustraction des points de pénalité encourus après conversion en pourcentage sont déduit les pourcentages de pénalités encourus par suite d'erreurs de tracé pour obtenir le pourcentage par juge."]

{"sheet":"Cav9","index":9,"n_rows":40,"n_cols":9,"rows_kept":40,"cut":false,"hidden":false,"merged":[[36,0,36,2],[37,0,37,2],[38,0,38,2],[39,0,43,8],[9,6,10,6],[9,7,10,7],[10,0,10,1],[35,0,35,2],[9,5,10,5],[30,0,34,0],[11,0,29,0],[8,0,8,1],[9,0,9,1],[9,2,10,2],[9,3,10,3],[9,4,10,4],[4,0,4,1],[4,3,6,4],[4,5,6,6],[4,7,5,7],[4,8,5,8],[5,0,5,1],[6,0,7,1],[6,2,7,2],[6,7,7,7],[6,8,7,8],[0,0,1,2],[0,3,1,6],[0,7,1,8],[2,0,2,2],[2,3,3,4],[2,5,3,6],[3,0,3,2]]}
[{"$f":"'Info+Engagés'!B3","v":"Quel Lieu (Dép)"},null,null,{"$f":"'Info+Engagés'!B8","v":"Club 4 Imposée"},null,null,null,{"$f":"'Info+Engagés'!B2","v":"Quelle Date"}]
[]
["N° de concours",null,null,"Cheval",null,"Cavalier",null,"Note d’ensemble"]
[{"$f":"'Info+Engagés'!B4","v":"Quel N°"},null,null,null,null,null,null,"Points",{"$f":"SUM(D39:H39)","v":0}]
["Épreuve N°",null,{"$f":"'Info+Engagés'!B5","v":"Quel N°"},{"$f":"'Info+Engagés'!B20","v":0},null,{"$f":"'Info+Engagés'!G20","v":0},null,"% Final",{"$f":"AVERAGE(D38:H38)","v":0}]
["Piste  ",null,{"$f":"'Info+Engagés'!B6","v":"Piste ?"}]
["N° Départ BO",null,{"$f":"'Info+Engagés'!A20","v":0},null,null,null,null,"Classement"]
[]
["Imprimé le :",null,null,"Juge E","Juge H","Juge C","Juge M","Juge B"]
[{"$f":"TODAY()","v":"2017-02-17"},null,"Coéff .",{"$f":"IF(ISBLANK('Info+Engagés'!H2),\"\",('Info+Engagés'!H2))","v":""},{"$f":"IF(ISBLANK('Info+Engagés'!H3),\"\",('Info+Engagés'!H3))","v":""},{"$f":"IF(ISBLANK('Info+Engagés'!H4),\"\",('Info+Engagés'!H4))","v":"X"},{"$f":"IF(ISBLANK('Info+Engagés'!H5),\"\",('Info+Engagés'!H5))","v":""},{"$f":"IF(ISBLANK('Info+Engagés'!H6),\"\",('Info+Engagés'!H6))","v":""}]
[{"$f":"NOW()","v":42783.749748032409},null,null,null,null,null,null,null,"écart Max"]
["Notation figures","Figure 1",0,null,null,null,null,null,{"$f":"MAX(D12:H12)-MIN(D12:H12)","v":0}]
[null,"Figure 2",0,null,null,null,null,null,0]
[null,"Figure 3",0,null,null,null,null,null,0]
[null,"Figure 4",0,null,null,null,null,null,0]
[null,"Figure 5",0,null,null,null,null,null,0]
[null,"Figure 6",0,null,null,null,null,null,0]
[null,"Figure 7",0,null,null,null,null,null,0]
[null,"Figure 8",0,null,null,null,null,null,0]
[null,"Figure 9",0,null,null,null,null,null,0]
[null,"Figure 10",0,null,null,null,null,null,0]
[null,"Figure 11",0,null,null,null,null,null,0]
[null,"Figure 12",0,null,null,null,null,null,0]
[null,"Figure 13",0,null,null,null,null,null,0]
[null,"Figure 14",0,null,null,null,null,null,0]
[null,"Figure 15",0,null,null,null,null,null,0]
[null,"Figure 16",0,null,null,null,null,null,0]
[null,"Figure 17",0,null,null,null,null,null,0]
[null,"Figure 18",0,null,null,null,null,null,0]
[null,"Figure 19",0,null,null,null,null,null,0]
[" Critéres d'appréciation","Ensemble 1",1,null,null,null,null,null,0]
[null,"Ensemble 2",1,null,null,null,null,null,0]
[null,"Ensemble 3",1,null,null,null,null,null,0]
[null,"Ensemble 4",1,null,null,null,null,null,{"$f":"MAX(D34:H34)-MIN(D34:H34)","v":0}]
[null,"Ensemble 5",1,null,null,null,null,null,{"$f":"MAX(D35:H35)-MIN(D35:H35)","v":0}]
["Pénalité en points"]
["Erreure(s) de tracé "]
["% Total du juge",null,null,{"$f":"IF(ISBLANK('Info+Engagés'!H2),\"\",D39/0.5-D37)","v":""},{"$f":"IF(ISBLANK('Info+Engagés'!H3),\"\",E39/0.5-E37)","v":""},{"$f":"IF(ISBLANK('Info+Engagés'!H4),\"\",F39/0.5-F37)","v":0},{"$f":"IF(ISBLANK('Info+Engagés'!H5),\"\",G39/0.5-G37)","v":""},{"$f":"IF(ISBLANK('Info+Engagés'!H6),\"\",H39/0.5-H37)","v":""},{"$f":"MAX(D38:H38)-MIN(D38:H38)","v":0}]
["Soit en points",null,null,{"$f":"IF(ISBLANK('Info+Engagés'!H2),\"\",(SUM(D31:D35)-D36))","v":""},{"$f":"IF(ISBLANK('Info+Engagés'!H3),\"\",(SUM(E31:E35)-E36))","v":""},{"$f":"IF(ISBLANK('Info+Engagés'!H4),\"\",(SUM(F31:F35)-F36))","v":0},{"$f":"IF(ISBLANK('Info+Engagés'!H5),\"\",(SUM(G31:G35)-G36))","v":""},{"$f":"IF(ISBLANK('Info+Engagés'!H6),\"\",(SUM(H31:H35)-H36))","v":""}]
["                          Total maxi par juge = 50          1 point correspond à 2,000%              1% correspond en points à : 0,5                                                                  Les notes sont sur 10 et correspondent à la saisie informatique par l'opérateur des protocoles joints, Le total résulte de l'addition des points attribués après application du coefficient et soustraction des points de pénalité encourus après conversion en pourcentage sont déduit les pourcentages de pénalités encourus par suite d'erreurs de tracé pour obtenir le pourcentage par juge."]

{"sheet":"Cav10","index":10,"n_rows":40,"n_cols":9,"rows_kept":40,"cut":false,"hidden":false,"merged":[[36,0,36,2],[37,0,37,2],[38,0,38,2],[39,0,43,8],[9,6,10,6],[9,7,10,7],[10,0,10,1],[35,0,35,2],[9,5,10,5],[30,0,34,0],[11,0,29,0],[8,0,8,1],[9,0,9,1],[9,2,10,2],[9,3,10,3],[9,4,10,4],[4,0,4,1],[4,3,6,4],[4,5,6,6],[4,7,5,7],[4,8,5,8],[5,0,5,1],[6,0,7,1],[6,2,7,2],[6,7,7,7],[6,8,7,8],[0,0,1,2],[0,3,1,6],[0,7,1,8],[2,0,2,2],[2,3,3,4],[2,5,3,6],[3,0,3,2]]}
[{"$f":"'Info+Engagés'!B3","v":"Quel Lieu (Dép)"},null,null,{"$f":"'Info+Engagés'!B8","v":"Club 4 Imposée"},null,null,null,{"$f":"'Info+Engagés'!B2","v":"Quelle Date"}]
[]
["N° de concours",null,null,"Cheval",null,"Cavalier",null,"Note d’ensemble"]
[{"$f":"'Info+Engagés'!B4","v":"Quel N°"},null,null,null,null,null,null,"Points",{"$f":"SUM(D39:H39)","v":0}]
["Épreuve N°",null,{"$f":"'Info+Engagés'!B5","v":"Quel N°"},{"$f":"'Info+Engagés'!B21","v":0},null,{"$f":"'Info+Engagés'!G21","v":0},null,"% Final",{"$f":"AVERAGE(D38:H38)","v":0}]
["Piste  ",null,{"$f":"'Info+Engagés'!B6","v":"Piste ?"}]
["N° Départ BO",null,{"$f":"'Info+Engagés'!A21","v":0},null,null,null,null,"Classement"]
[]
["Imprimé le :",null,null,"Juge E","Juge H","Juge C","Juge M","Juge B"]
[{"$f":"TODAY()","v":"2017-02-17"},null,"Coéff .",{"$f":"IF(ISBLANK('Info+Engagés'!H2),\"\",('Info+Engagés'!H2))","v":""},{"$f":"IF(ISBLANK('Info+Engagés'!H3),\"\",('Info+Engagés'!H3))","v":""},{"$f":"IF(ISBLANK('Info+Engagés'!H4),\"\",('Info+Engagés'!H4))","v":"X"},{"$f":"IF(ISBLANK('Info+Engagés'!H5),\"\",('Info+Engagés'!H5))","v":""},{"$f":"IF(ISBLANK('Info+Engagés'!H6),\"\",('Info+Engagés'!H6))","v":""}]
[{"$f":"NOW()","v":42783.749748032409},null,null,null,null,null,null,null,"écart Max"]
["Notation figures","Figure 1",0,null,null,null,null,null,{"$f":"MAX(D12:H12)-MIN(D12:H12)","v":0}]
[null,"Figure 2",0,null,null,null,null,null,0]
[null,"Figure 3",0,null,null,null,null,null,0]
[null,"Figure 4",0,null,null,null,null,null,0]
[null,"Figure 5",0,null,null,null,null,null,0]
[null,"Figure 6",0,null,null,null,null,null,0]
[null,"Figure 7",0,null,null,null,null,null,0]
[null,"Figure 8",0,null,null,null,null,null,0]
[null,"Figure 9",0,null,null,null,null,null,0]
[null,"Figure 10",0,null,null,null,null,null,0]
[null,"Figure 11",0,null,null,null,null,null,0]
[null,"Figure 12",0,null,null,null,null,null,0]
[null,"Figure 13",0,null,null,null,null,null,0]
[null,"Figure 14",0,null,null,null,null,null,0]
[null,"Figure 15",0,null,null,null,null,null,0]
[null,"Figure 16",0,null,null,null,null,null,0]
[null,"Figure 17",0,null,null,null,null,null,0]
[null,"Figure 18",0,null,null,null,null,null,0]
[null,"Figure 19",0,null,null,null,null,null,0]
[" Critéres d'appréciation","Ensemble 1",1,null,null,null,null,null,0]
[null,"Ensemble 2",1,null,null,null,null,null,0]
[null,"Ensemble 3",1,null,null,null,null,null,0]
[null,"Ensemble 4",1,null,null,null,null,null,{"$f":"MAX(D34:H34)-MIN(D34:H34)","v":0}]
[null,"Ensemble 5",1,null,null,null,null,null,{"$f":"MAX(D35:H35)-MIN(D35:H35)","v":0}]
["Pénalité en points"]
["Erreure(s) de tracé "]
["% Total du juge",null,null,{"$f":"IF(ISBLANK('Info+Engagés'!H2),\"\",D39/0.5-D37)","v":""},{"$f":"IF(ISBLANK('Info+Engagés'!H3),\"\",E39/0.5-E37)","v":""},{"$f":"IF(ISBLANK('Info+Engagés'!H4),\"\",F39/0.5-F37)","v":0},{"$f":"IF(ISBLANK('Info+Engagés'!H5),\"\",G39/0.5-G37)","v":""},{"$f":"IF(ISBLANK('Info+Engagés'!H6),\"\",H39/0.5-H37)","v":""},{"$f":"MAX(D38:H38)-MIN(D38:H38)","v":0}]
["Soit en points",null,null,{"$f":"IF(ISBLANK('Info+Engagés'!H2),\"\",(SUM(D31:D35)-D36))","v":""},{"$f":"IF(ISBLANK('Info+Engagés'!H3),\"\",(SUM(E31:E35)-E36))","v":""},{"$f":"IF(ISBLANK('Info+Engagés'!H4),\"\",(SUM(F31:F35)-F36))","v":0},{"$f":"IF(ISBLANK('Info+Engagés'!H5),\"\",(SUM(G31:G35)-G36))","v":""},{"$f":"IF(ISBLANK('Info+Engagés'!H6),\"\",(SUM(H31:H35)-H36))","v":""}]
["                          Total maxi par juge = 50          1 point correspond à 2,000%              1% correspond en points à : 0,5                                                                  Les notes sont sur 10 et correspondent à la saisie informatique par l'opérateur des protocoles joints, Le total résulte de l'addition des points attribués après application du coefficient et soustraction des points de pénalité encourus après conversion en pourcentage sont déduit les pourcentages de pénalités encourus par suite d'erreurs de tracé pour obtenir le pourcentage par juge."]

{"sheet":"Cav11","index":11,"n_rows":40,"n_cols":9,"rows_kept":40,"cut":false,"hidden":false,"merged":[[36,0,36,2],[37,0,37,2],[38,0,38,2],[39,0,43,8],[9,6,10,6],[9,7,10,7],[10,0,10,1],[35,0,35,2],[9,5,10,5],[30,0,34,0],[11,0,29,0],[8,0,8,1],[9,0,9,1],[9,2,10,2],[9,3,10,3],[9,4,10,4],[4,0,4,1],[4,3,6,4],[4,5,6,6],[4,7,5,7],[4,8,5,8],[5,0,5,1],[6,0,7,1],[6,2,7,2],[6,7,7,7],[6,8,7,8],[0,0,1,2],[0,3,1,6],[0,7,1,8],[2,0,2,2],[2,3,3,4],[2,5,3,6],[3,0,3,2]]}
[{"$f":"'Info+Engagés'!B3","v":"Quel Lieu (Dép)"},null,null,{"$f":"'Info+Engagés'!B8","v":"Club 4 Imposée"},null,null,null,{"$f":"'Info+Engagés'!B2","v":"Quelle Date"}]
[]
["N° de concours",null,null,"Cheval",null,"Cavalier",null,"Note d’ensemble"]
[{"$f":"'Info+Engagés'!B4","v":"Quel N°"},null,null,null,null,null,null,"Points",{"$f":"SUM(D39:H39)","v":0}]
["Épreuve N°",null,{"$f":"'Info+Engagés'!B5","v":"Quel N°"},{"$f":"'Info+Engagés'!B22","v":0},null,{"$f":"'Info+Engagés'!G22","v":0},null,"% Final",{"$f":"AVERAGE(D38:H38)","v":0}]
["Piste  ",null,{"$f":"'Info+Engagés'!B6","v":"Piste ?"}]
["N° Départ BO",null,{"$f":"'Info+Engagés'!A22","v":0},null,null,null,null,"Classement"]
[]
["Imprimé le :",null,null,"Juge E","Juge H","Juge C","Juge M","Juge B"]
[{"$f":"TODAY()","v":"2017-02-17"},null,"Coéff .",{"$f":"IF(ISBLANK('Info+Engagés'!H2),\"\",('Info+Engagés'!H2))","v":""},{"$f":"IF(ISBLANK('Info+Engagés'!H3),\"\",('Info+Engagés'!H3))","v":""},{"$f":"IF(ISBLANK('Info+Engagés'!H4),\"\",('Info+Engagés'!H4))","v":"X"},{"$f":"IF(ISBLANK('Info+Engagés'!H5),\"\",('Info+Engagés'!H5))","v":""},{"$f":"IF(ISBLANK('Info+Engagés'!H6),\"\",('Info+Engagés'!H6))","v":""}]
[{"$f":"NOW()","v":42783.749748032409},null,null,null,null,null,null,null,"écart Max"]
["Notation figures","Figure 1",0,null,null,null,null,null,{"$f":"MAX(D12:H12)-MIN(D12:H12)","v":0}]
[null,"Figure 2",0,null,null,null,null,null,0]
[null,"Figure 3",0,null,null,null,null,null,0]
[null,"Figure 4",0,null,null,null,null,null,0]
[null,"Figure 5",0,null,null,null,null,null,0]
[null,"Figure 6",0,null,null,null,null,null,0]
[null,"Figure 7",0,null,null,null,null,null,0]
[null,"Figure 8",0,null,null,null,null,null,0]
[null,"Figure 9",0,null,null,null,null,null,0]
[null,"Figure 10",0,null,null,null,null,null,0]
[null,"Figure 11",0,null,null,null,null,null,0]
[null,"Figure 12",0,null,null,null,null,null,0]
[null,"Figure 13",0,null,null,null,null,null,0]
[null,"Figure 14",0,null,null,null,null,null,0]
[null,"Figure 15",0,null,null,null,null,null,0]
[null,"Figure 16",0,null,null,null,null,null,0]
[null,"Figure 17",0,null,null,null,null,null,0]
[null,"Figure 18",0,null,null,null,null,null,0]
[null,"Figure 19",0,null,null,null,null,null,0]
[" Critéres d'appréciation","Ensemble 1",1,null,null,null,null,null,0]
[null,"Ensemble 2",1,null,null,null,null,null,0]
[null,"Ensemble 3",1,null,null,null,null,null,0]
[null,"Ensemble 4",1,null,null,null,null,null,{"$f":"MAX(D34:H34)-MIN(D34:H34)","v":0}]
[null,"Ensemble 5",1,null,null,null,null,null,{"$f":"MAX(D35:H35)-MIN(D35:H35)","v":0}]
["Pénalité en points"]
["Erreure(s) de tracé "]
["% Total du juge",null,null,{"$f":"IF(ISBLANK('Info+Engagés'!H2),\"\",D39/0.5-D37)","v":""},{"$f":"IF(ISBLANK('Info+Engagés'!H3),\"\",E39/0.5-E37)","v":""},{"$f":"IF(ISBLANK('Info+Engagés'!H4),\"\",F39/0.5-F37)","v":0},{"$f":"IF(ISBLANK('Info+Engagés'!H5),\"\",G39/0.5-G37)","v":""},{"$f":"IF(ISBLANK('Info+Engagés'!H6),\"\",H39/0.5-H37)","v":""},{"$f":"MAX(D38:H38)-MIN(D38:H38)","v":0}]
["Soit en points",null,null,{"$f":"IF(ISBLANK('Info+Engagés'!H2),\"\",(SUM(D31:D35)-D36))","v":""},{"$f":"IF(ISBLANK('Info+Engagés'!H3),\"\",(SUM(E31:E35)-E36))","v":""},{"$f":"IF(ISBLANK('Info+Engagés'!H4),\"\",(SUM(F31:F35)-F36))","v":0},{"$f":"IF(ISBLANK('Info+Engagés'!H5),\"\",(SUM(G31:G35)-G36))","v":""},{"$f":"IF(ISBLANK('Info+Engagés'!H6),\"\",(SUM(H31:H35)-H36))","v":""}]
["                          Total maxi par juge = 50          1 point correspond à 2,000%              1% correspond en points à : 0,5                                                                  Les notes sont sur 10 et correspondent à la saisie informatique par l'opérateur des protocoles joints, Le total résulte de l'addition des points attribués après application du coefficient et soustraction des points de pénalité encourus après conversion en pourcentage sont déduit les pourcentages de pénalités encourus par suite d'erreurs de tracé pour obtenir le pourcentage par juge."]

{"sheet":"Cav12","index":12,"n_rows":40,"n_cols":9,"rows_kept":40,"cut":false,"hidden":false,"merged":[[36,0,36,2],[37,0,37,2],[38,0,38,2],[39,0,43,8],[9,6,10,6],[9,7,10,7],[10,0,10,1],[35,0,35,2],[9,5,10,5],[30,0,34,0],[11,0,29,0],[8,0,8,1],[9,0,9,1],[9,2,10,2],[9,3,10,3],[9,4,10,4],[4,0,4,1],[4,3,6,4],[4,5,6,6],[4,7,5,7],[4,8,5,8],[5,0,5,1],[6,0,7,1],[6,2,7,2],[6,7,7,7],[6,8,7,8],[0,0,1,2],[0,3,1,6],[0,7,1,8],[2,0,2,2],[2,3,3,4],[2,5,3,6],[3,0,3,2]]}
[{"$f":"'Info+Engagés'!B3","v":"Quel Lieu (Dép)"},null,null,{"$f":"'Info+Engagés'!B8","v":"Club 4 Imposée"},null,null,null,{"$f":"'Info+Engagés'!B2","v":"Quelle Date"}]
[]
["N° de concours",null,null,"Cheval",null,"Cavalier",null,"Note d’ensemble"]
[{"$f":"'Info+Engagés'!B4","v":"Quel N°"},null,null,null,null,null,null,"Points",{"$f":"SUM(D39:H39)","v":0}]
["Épreuve N°",null,{"$f":"'Info+Engagés'!B5","v":"Quel N°"},{"$f":"'Info+Engagés'!B23","v":0},null,{"$f":"'Info+Engagés'!G23","v":0},null,"% Final",{"$f":"AVERAGE(D38:H38)","v":0}]
["Piste  ",null,{"$f":"'Info+Engagés'!B6","v":"Piste ?"}]
["N° Départ BO",null,{"$f":"'Info+Engagés'!A23","v":0},null,null,null,null,"Classement"]
[]
["Imprimé le :",null,null,"Juge E","Juge H","Juge C","Juge M","Juge B"]
[{"$f":"TODAY()","v":"2017-02-17"},null,"Coéff .",{"$f":"IF(ISBLANK('Info+Engagés'!H2),\"\",('Info+Engagés'!H2))","v":""},{"$f":"IF(ISBLANK('Info+Engagés'!H3),\"\",('Info+Engagés'!H3))","v":""},{"$f":"IF(ISBLANK('Info+Engagés'!H4),\"\",('Info+Engagés'!H4))","v":"X"},{"$f":"IF(ISBLANK('Info+Engagés'!H5),\"\",('Info+Engagés'!H5))","v":""},{"$f":"IF(ISBLANK('Info+Engagés'!H6),\"\",('Info+Engagés'!H6))","v":""}]
[{"$f":"NOW()","v":42783.749748032409},null,null,null,null,null,null,null,"écart Max"]
["Notation figures","Figure 1",0,null,null,null,null,null,{"$f":"MAX(D12:H12)-MIN(D12:H12)","v":0}]
[null,"Figure 2",0,null,null,null,null,null,0]
[null,"Figure 3",0,null,null,null,null,null,0]
[null,"Figure 4",0,null,null,null,null,null,0]
[null,"Figure 5",0,null,null,null,null,null,0]
[null,"Figure 6",0,null,null,null,null,null,0]
[null,"Figure 7",0,null,null,null,null,null,0]
[null,"Figure 8",0,null,null,null,null,null,0]
[null,"Figure 9",0,null,null,null,null,null,0]
[null,"Figure 10",0,null,null,null,null,null,0]
[null,"Figure 11",0,null,null,null,null,null,0]
[null,"Figure 12",0,null,null,null,null,null,0]
[null,"Figure 13",0,null,null,null,null,null,0]
[null,"Figure 14",0,null,null,null,null,null,0]
[null,"Figure 15",0,null,null,null,null,null,0]
[null,"Figure 16",0,null,null,null,null,null,0]
[null,"Figure 17",0,null,null,null,null,null,0]
[null,"Figure 18",0,null,null,null,null,null,0]
[null,"Figure 19",0,null,null,null,null,null,0]
[" Critéres d'appréciation","Ensemble 1",1,null,null,null,null,null,0]
[null,"Ensemble 2",1,null,null,null,null,null,0]
[null,"Ensemble 3",1,null,null,null,null,null,0]
[null,"Ensemble 4",1,null,null,null,null,null,{"$f":"MAX(D34:H34)-MIN(D34:H34)","v":0}]
[null,"Ensemble 5",1,null,null,null,null,null,{"$f":"MAX(D35:H35)-MIN(D35:H35)","v":0}]
["Pénalité en points"]
["Erreure(s) de tracé "]
["% Total du juge",null,null,{"$f":"IF(ISBLANK('Info+Engagés'!H2),\"\",D39/0.5-D37)","v":""},{"$f":"IF(ISBLANK('Info+Engagés'!H3),\"\",E39/0.5-E37)","v":""},{"$f":"IF(ISBLANK('Info+Engagés'!H4),\"\",F39/0.5-F37)","v":0},{"$f":"IF(ISBLANK('Info+Engagés'!H5),\"\",G39/0.5-G37)","v":""},{"$f":"IF(ISBLANK('Info+Engagés'!H6),\"\",H39/0.5-H37)","v":""},{"$f":"MAX(D38:H38)-MIN(D38:H38)","v":0}]
["Soit en points",null,null,{"$f":"IF(ISBLANK('Info+Engagés'!H2),\"\",(SUM(D31:D35)-D36))","v":""},{"$f":"IF(ISBLANK('Info+Engagés'!H3),\"\",(SUM(E31:E35)-E36))","v":""},{"$f":"IF(ISBLANK('Info+Engagés'!H4),\"\",(SUM(F31:F35)-F36))","v":0},{"$f":"IF(ISBLANK('Info+Engagés'!H5),\"\",(SUM(G31:G35)-G36))","v":""},{"$f":"IF(ISBLANK('Info+Engagés'!H6),\"\",(SUM(H31:H35)-H36))","v":""}]
["                          Total maxi par juge = 50          1 point correspond à 2,000%              1% correspond en points à : 0,5                                                                  Les notes sont sur 10 et correspondent à la saisie informatique par l'opérateur des protocoles joints, Le total résulte de l'addition des points attribués après application du coefficient et soustraction des points de pénalité encourus après conversion en pourcentage sont déduit les pourcentages de pénalités encourus par suite d'erreurs de tracé pour obtenir le pourcentage par juge."]

{"sheet":"Cav13","index":13,"n_rows":40,"n_cols":9,"rows_kept":40,"cut":false,"hidden":false,"merged":[[36,0,36,2],[37,0,37,2],[38,0,38,2],[39,0,43,8],[9,6,10,6],[9,7,10,7],[10,0,10,1],[35,0,35,2],[9,5,10,5],[30,0,34,0],[11,0,29,0],[8,0,8,1],[9,0,9,1],[9,2,10,2],[9,3,10,3],[9,4,10,4],[4,0,4,1],[4,3,6,4],[4,5,6,6],[4,7,5,7],[4,8,5,8],[5,0,5,1],[6,0,7,1],[6,2,7,2],[6,7,7,7],[6,8,7,8],[0,0,1,2],[0,3,1,6],[0,7,1,8],[2,0,2,2],[2,3,3,4],[2,5,3,6],[3,0,3,2]]}
[{"$f":"'Info+Engagés'!B3","v":"Quel Lieu (Dép)"},null,null,{"$f":"'Info+Engagés'!B8","v":"Club 4 Imposée"},null,null,null,{"$f":"'Info+Engagés'!B2","v":"Quelle Date"}]
[]
["N° de concours",null,null,"Cheval",null,"Cavalier",null,"Note d’ensemble"]
[{"$f":"'Info+Engagés'!B4","v":"Quel N°"},null,null,null,null,null,null,"Points",{"$f":"SUM(D39:H39)","v":0}]
["Épreuve N°",null,{"$f":"'Info+Engagés'!B5","v":"Quel N°"},{"$f":"'Info+Engagés'!B24","v":0},null,{"$f":"'Info+Engagés'!G24","v":0},null,"% Final",{"$f":"AVERAGE(D38:H38)","v":0}]
["Piste  ",null,{"$f":"'Info+Engagés'!B6","v":"Piste ?"}]
["N° Départ BO",null,{"$f":"'Info+Engagés'!A24","v":0},null,null,null,null,"Classement"]
[]
["Imprimé le :",null,null,"Juge E","Juge H","Juge C","Juge M","Juge B"]
[{"$f":"TODAY()","v":"2017-02-17"},null,"Coéff .",{"$f":"IF(ISBLANK('Info+Engagés'!H2),\"\",('Info+Engagés'!H2))","v":""},{"$f":"IF(ISBLANK('Info+Engagés'!H3),\"\",('Info+Engagés'!H3))","v":""},{"$f":"IF(ISBLANK('Info+Engagés'!H4),\"\",('Info+Engagés'!H4))","v":"X"},{"$f":"IF(ISBLANK('Info+Engagés'!H5),\"\",('Info+Engagés'!H5))","v":""},{"$f":"IF(ISBLANK('Info+Engagés'!H6),\"\",('Info+Engagés'!H6))","v":""}]
[{"$f":"NOW()","v":42783.749748032409},null,null,null,null,null,null,null,"écart Max"]
["Notation figures","Figure 1",0,null,null,null,null,null,{"$f":"MAX(D12:H12)-MIN(D12:H12)","v":0}]
[null,"Figure 2",0,null,null,null,null,null,0]
[null,"Figure 3",0,null,null,null,null,null,0]
[null,"Figure 4",0,null,null,null,null,null,0]
[null,"Figure 5",0,null,null,null,null,null,0]
[null,"Figure 6",0,null,null,null,null,null,0]
[null,"Figure 7",0,null,null,null,null,null,0]
[null,"Figure 8",0,null,null,null,null,null,0]
[null,"Figure 9",0,null,null,null,null,null,0]
[null,"Figure 10",0,null,null,null,null,null,0]
[null,"Figure 11",0,null,null,null,null,null,0]
[null,"Figure 12",0,null,null,null,null,null,0]
[null,"Figure 13",0,null,null,null,null,null,0]
[null,"Figure 14",0,null,null,null,null,null,0]
[null,"Figure 15",0,null,null,null,null,null,0]
[null,"Figure 16",0,null,null,null,null,null,0]
[null,"Figure 17",0,null,null,null,null,null,0]
[null,"Figure 18",0,null,null,null,null,null,0]
[null,"Figure 19",0,null,null,null,null,null,0]
[" Critéres d'appréciation","Ensemble 1",1,null,null,null,null,null,0]
[null,"Ensemble 2",1,null,null,null,null,null,0]
[null,"Ensemble 3",1,null,null,null,null,null,0]
[null,"Ensemble 4",1,null,null,null,null,null,{"$f":"MAX(D34:H34)-MIN(D34:H34)","v":0}]
[null,"Ensemble 5",1,null,null,null,null,null,{"$f":"MAX(D35:H35)-MIN(D35:H35)","v":0}]
["Pénalité en points"]
["Erreure(s) de tracé "]
["% Total du juge",null,null,{"$f":"IF(ISBLANK('Info+Engagés'!H2),\"\",D39/0.5-D37)","v":""},{"$f":"IF(ISBLANK('Info+Engagés'!H3),\"\",E39/0.5-E37)","v":""},{"$f":"IF(ISBLANK('Info+Engagés'!H4),\"\",F39/0.5-F37)","v":0},{"$f":"IF(ISBLANK('Info+Engagés'!H5),\"\",G39/0.5-G37)","v":""},{"$f":"IF(ISBLANK('Info+Engagés'!H6),\"\",H39/0.5-H37)","v":""},{"$f":"MAX(D38:H38)-MIN(D38:H38)","v":0}]
["Soit en points",null,null,{"$f":"IF(ISBLANK('Info+Engagés'!H2),\"\",(SUM(D31:D35)-D36))","v":""},{"$f":"IF(ISBLANK('Info+Engagés'!H3),\"\",(SUM(E31:E35)-E36))","v":""},{"$f":"IF(ISBLANK('Info+Engagés'!H4),\"\",(SUM(F31:F35)-F36))","v":0},{"$f":"IF(ISBLANK('Info+Engagés'!H5),\"\",(SUM(G31:G35)-G36))","v":""},{"$f":"IF(ISBLANK('Info+Engagés'!H6),\"\",(SUM(H31:H35)-H36))","v":""}]
["                          Total maxi par juge = 50          1 point correspond à 2,000%              1% correspond en points à : 0,5                                                                  Les notes sont sur 10 et correspondent à la saisie informatique par l'opérateur des protocoles joints, Le total résulte de l'addition des points attribués après application du coefficient et soustraction des points de pénalité encourus après conversion en pourcentage sont déduit les pourcentages de pénalités encourus par suite d'erreurs de tracé pour obtenir le pourcentage par juge."]

{"sheet":"Cav14","index":14,"n_rows":40,"n_cols":9,"rows_kept":40,"cut":false,"hidden":false,"merged":[[36,0,36,2],[37,0,37,2],[38,0,38,2],[39,0,43,8],[9,6,10,6],[9,7,10,7],[10,0,10,1],[35,0,35,2],[9,5,10,5],[30,0,34,0],[11,0,29,0],[8,0,8,1],[9,0,9,1],[9,2,10,2],[9,3,10,3],[9,4,10,4],[4,0,4,1],[4,3,6,4],[4,5,6,6],[4,7,5,7],[4,8,5,8],[5,0,5,1],[6,0,7,1],[6,2,7,2],[6,7,7,7],[6,8,7,8],[0,0,1,2],[0,3,1,6],[0,7,1,8],[2,0,2,2],[2,3,3,4],[2,5,3,6],[3,0,3,2]]}
[{"$f":"'Info+Engagés'!B3","v":"Quel Lieu (Dép)"},null,null,{"$f":"'Info+Engagés'!B8","v":"Club 4 Imposée"},null,null,null,{"$f":"'Info+Engagés'!B2","v":"Quelle Date"}]
[]
["N° de concours",null,null,"Cheval",null,"Cavalier",null,"Note d’ensemble"]
[{"$f":"'Info+Engagés'!B4","v":"Quel N°"},null,null,null,null,null,null,"Points",{"$f":"SUM(D39:H39)","v":0}]
["Épreuve N°",null,{"$f":"'Info+Engagés'!B5","v":"Quel N°"},{"$f":"'Info+Engagés'!B25","v":0},null,{"$f":"'Info+Engagés'!G25","v":0},null,"% Final",{"$f":"AVERAGE(D38:H38)","v":0}]
["Piste  ",null,{"$f":"'Info+Engagés'!B6","v":"Piste ?"}]
["N° Départ BO",null,{"$f":"'Info+Engagés'!A25","v":0},null,null,null,null,"Classement"]
[]
["Imprimé le :",null,null,"Juge E","Juge H","Juge C","Juge M","Juge B"]
[{"$f":"TODAY()","v":"2017-02-17"},null,"Coéff .",{"$f":"IF(ISBLANK('Info+Engagés'!H2),\"\",('Info+Engagés'!H2))","v":""},{"$f":"IF(ISBLANK('Info+Engagés'!H3),\"\",('Info+Engagés'!H3))","v":""},{"$f":"IF(ISBLANK('Info+Engagés'!H4),\"\",('Info+Engagés'!H4))","v":"X"},{"$f":"IF(ISBLANK('Info+Engagés'!H5),\"\",('Info+Engagés'!H5))","v":""},{"$f":"IF(ISBLANK('Info+Engagés'!H6),\"\",('Info+Engagés'!H6))","v":""}]
[{"$f":"NOW()","v":42783.749748032409},null,null,null,null,null,null,null,"écart Max"]
["Notation figures","Figure 1",0,null,null,null,null,null,{"$f":"MAX(D12:H12)-MIN(D12:H12)","v":0}]
[null,"Figure 2",0,null,null,null,null,null,0]
[null,"Figure 3",0,null,null,null,null,null,0]
[null,"Figure 4",0,null,null,null,null,null,0]
[null,"Figure 5",0,null,null,null,null,null,0]
[null,"Figure 6",0,null,null,null,null,null,0]
[null,"Figure 7",0,null,null,null,null,null,0]
[null,"Figure 8",0,null,null,null,null,null,0]
[null,"Figure 9",0,null,null,null,null,null,0]
[null,"Figure 10",0,null,null,null,null,null,0]
[null,"Figure 11",0,null,null,null,null,null,0]
[null,"Figure 12",0,null,null,null,null,null,0]
[null,"Figure 13",0,null,null,null,null,null,0]
[null,"Figure 14",0,null,null,null,null,null,0]
[null,"Figure 15",0,null,null,null,null,null,0]
[null,"Figure 16",0,null,null,null,null,null,0]
[null,"Figure 17",0,null,null,null,null,null,0]
[null,"Figure 18",0,null,null,null,null,null,0]
[null,"Figure 19",0,null,null,null,null,null,0]
[" Critéres d'appréciation","Ensemble 1",1,null,null,null,null,null,0]
[null,"Ensemble 2",1,null,null,null,null,null,0]
[null,"Ensemble 3",1,null,null,null,null,null,0]
[null,"Ensemble 4",1,null,null,null,null,null,{"$f":"MAX(D34:H34)-MIN(D34:H34)","v":0}]
[null,"Ensemble 5",1,null,null,null,null,null,{"$f":"MAX(D35:H35)-MIN(D35:H35)","v":0}]
["Pénalité en points"]
["Erreure(s) de tracé "]
["% Total du juge",null,null,{"$f":"IF(ISBLANK('Info+Engagés'!H2),\"\",D39/0.5-D37)","v":""},{"$f":"IF(ISBLANK('Info+Engagés'!H3),\"\",E39/0.5-E37)","v":""},{"$f":"IF(ISBLANK('Info+Engagés'!H4),\"\",F39/0.5-F37)","v":0},{"$f":"IF(ISBLANK('Info+Engagés'!H5),\"\",G39/0.5-G37)","v":""},{"$f":"IF(ISBLANK('Info+Engagés'!H6),\"\",H39/0.5-H37)","v":""},{"$f":"MAX(D38:H38)-MIN(D38:H38)","v":0}]
["Soit en points",null,null,{"$f":"IF(ISBLANK('Info+Engagés'!H2),\"\",(SUM(D31:D35)-D36))","v":""},{"$f":"IF(ISBLANK('Info+Engagés'!H3),\"\",(SUM(E31:E35)-E36))","v":""},{"$f":"IF(ISBLANK('Info+Engagés'!H4),\"\",(SUM(F31:F35)-F36))","v":0},{"$f":"IF(ISBLANK('Info+Engagés'!H5),\"\",(SUM(G31:G35)-G36))","v":""},{"$f":"IF(ISBLANK('Info+Engagés'!H6),\"\",(SUM(H31:H35)-H36))","v":""}]
["                          Total maxi par juge = 50          1 point correspond à 2,000%              1% correspond en points à : 0,5                                                                  Les notes sont sur 10 et correspondent à la saisie informatique par l'opérateur des protocoles joints, Le total résulte de l'addition des points attribués après application du coefficient et soustraction des points de pénalité encourus après conversion en pourcentage sont déduit les pourcentages de pénalités encourus par suite d'erreurs de tracé pour obtenir le pourcentage par juge."]

{"sheet":"Cav15","index":15,"n_rows":40,"n_cols":9,"rows_kept":40,"cut":false,"hidden":false,"merged":[[36,0,36,2],[37,0,37,2],[38,0,38,2],[39,0,43,8],[9,6,10,6],[9,7,10,7],[10,0,10,1],[35,0,35,2],[9,5,10,5],[30,0,34,0],[11,0,29,0],[8,0,8,1],[9,0,9,1],[9,2,10,2],[9,3,10,3],[9,4,10,4],[4,0,4,1],[4,3,6,4],[4,5,6,6],[4,7,5,7],[4,8,5,8],[5,0,5,1],[6,0,7,1],[6,2,7,2],[6,7,7,7],[6,8,7,8],[0,0,1,2],[0,3,1,6],[0,7,1,8],[2,0,2,2],[2,3,3,4],[2,5,3,6],[3,0,3,2]]}
[{"$f":"'Info+Engagés'!B3","v":"Quel Lieu (Dép)"},null,null,{"$f":"'Info+Engagés'!B8","v":"Club 4 Imposée"},null,null,null,{"$f":"'Info+Engagés'!B2","v":"Quelle Date"}]
[]
["N° de concours",null,null,"Cheval",null,"Cavalier",null,"Note d’ensemble"]
[{"$f":"'Info+Engagés'!B4","v":"Quel N°"},null,null,null,null,null,null,"Points",{"$f":"SUM(D39:H39)","v":0}]
["Épreuve N°",null,{"$f":"'Info+Engagés'!B5","v":"Quel N°"},{"$f":"'Info+Engagés'!B26","v":0},null,{"$f":"'Info+Engagés'!G26","v":0},null,"% Final",{"$f":"AVERAGE(D38:H38)","v":0}]
["Piste  ",null,{"$f":"'Info+Engagés'!B6","v":"Piste ?"}]
["N° Départ BO",null,{"$f":"'Info+Engagés'!A26","v":0},null,null,null,null,"Classement"]
[]
["Imprimé le :",null,null,"Juge E","Juge H","Juge C","Juge M","Juge B"]
[{"$f":"TODAY()","v":"2017-02-17"},null,"Coéff .",{"$f":"IF(ISBLANK('Info+Engagés'!H2),\"\",('Info+Engagés'!H2))","v":""},{"$f":"IF(ISBLANK('Info+Engagés'!H3),\"\",('Info+Engagés'!H3))","v":""},{"$f":"IF(ISBLANK('Info+Engagés'!H4),\"\",('Info+Engagés'!H4))","v":"X"},{"$f":"IF(ISBLANK('Info+Engagés'!H5),\"\",('Info+Engagés'!H5))","v":""},{"$f":"IF(ISBLANK('Info+Engagés'!H6),\"\",('Info+Engagés'!H6))","v":""}]
[{"$f":"NOW()","v":42783.749748032409},null,null,null,null,null,null,null,"écart Max"]
["Notation figures","Figure 1",0,null,null,null,null,null,{"$f":"MAX(D12:H12)-MIN(D12:H12)","v":0}]
[null,"Figure 2",0,null,null,null,null,null,0]
[null,"Figure 3",0,null,null,null,null,null,0]
[null,"Figure 4",0,null,null,null,null,null,0]
[null,"Figure 5",0,null,null,null,null,null,0]
[null,"Figure 6",0,null,null,null,null,null,0]
[null,"Figure 7",0,null,null,null,null,null,0]
[null,"Figure 8",0,null,null,null,null,null,0]
[null,"Figure 9",0,null,null,null,null,null,0]
[null,"Figure 10",0,null,null,null,null,null,0]
[null,"Figure 11",0,null,null,null,null,null,0]
[null,"Figure 12",0,null,null,null,null,null,0]
[null,"Figure 13",0,null,null,null,null,null,0]
[null,"Figure 14",0,null,null,null,null,null,0]
[null,"Figure 15",0,null,null,null,null,null,0]
[null,"Figure 16",0,null,null,null,null,null,0]
[null,"Figure 17",0,null,null,null,null,null,0]
[null,"Figure 18",0,null,null,null,null,null,0]
[null,"Figure 19",0,null,null,null,null,null,0]
[" Critéres d'appréciation","Ensemble 1",1,null,null,null,null,null,0]
[null,"Ensemble 2",1,null,null,null,null,null,0]
[null,"Ensemble 3",1,null,null,null,null,null,0]
[null,"Ensemble 4",1,null,null,null,null,null,{"$f":"MAX(D34:H34)-MIN(D34:H34)","v":0}]
[null,"Ensemble 5",1,null,null,null,null,null,{"$f":"MAX(D35:H35)-MIN(D35:H35)","v":0}]
["Pénalité en points"]
["Erreure(s) de tracé "]
["% Total du juge",null,null,{"$f":"IF(ISBLANK('Info+Engagés'!H2),\"\",D39/0.5-D37)","v":""},{"$f":"IF(ISBLANK('Info+Engagés'!H3),\"\",E39/0.5-E37)","v":""},{"$f":"IF(ISBLANK('Info+Engagés'!H4),\"\",F39/0.5-F37)","v":0},{"$f":"IF(ISBLANK('Info+Engagés'!H5),\"\",G39/0.5-G37)","v":""},{"$f":"IF(ISBLANK('Info+Engagés'!H6),\"\",H39/0.5-H37)","v":""},{"$f":"MAX(D38:H38)-MIN(D38:H38)","v":0}]
["Soit en points",null,null,{"$f":"IF(ISBLANK('Info+Engagés'!H2),\"\",(SUM(D31:D35)-D36))","v":""},{"$f":"IF(ISBLANK('Info+Engagés'!H3),\"\",(SUM(E31:E35)-E36))","v":""},{"$f":"IF(ISBLANK('Info+Engagés'!H4),\"\",(SUM(F31:F35)-F36))","v":0},{"$f":"IF(ISBLANK('Info+Engagés'!H5),\"\",(SUM(G31:G35)-G36))","v":""},{"$f":"IF(ISBLANK('Info+Engagés'!H6),\"\",(SUM(H31:H35)-H36))","v":""}]
["                          Total maxi par juge = 50          1 point correspond à 2,000%              1% correspond en points à : 0,5                                                                  Les notes sont sur 10 et correspondent à la saisie informatique par l'opérateur des protocoles joints, Le total résulte de l'addition des points attribués après application du coefficient et soustraction des points de pénalité encourus après conversion en pourcentage sont déduit les pourcentages de pénalités encourus par suite d'erreurs de tracé pour obtenir le pourcentage par juge."]

{"sheet":"Cav16","index":16,"n_rows":40,"n_cols":9,"rows_kept":40,"cut":false,"hidden":false,"merged":[[36,0,36,2],[37,0,37,2],[38,0,38,2],[39,0,43,8],[9,6,10,6],[9,7,10,7],[10,0,10,1],[35,0,35,2],[9,5,10,5],[30,0,34,0],[11,0,29,0],[8,0,8,1],[9,0,9,1],[9,2,10,2],[9,3,10,3],[9,4,10,4],[4,0,4,1],[4,3,6,4],[4,5,6,6],[4,7,5,7],[4,8,5,8],[5,0,5,1],[6,0,7,1],[6,2,7,2],[6,7,7,7],[6,8,7,8],[0,0,1,2],[0,3,1,6],[0,7,1,8],[2,0,2,2],[2,3,3,4],[2,5,3,6],[3,0,3,2]]}
[{"$f":"'Info+Engagés'!B3","v":"Quel Lieu (Dép)"},null,null,{"$f":"'Info+Engagés'!B8","v":"Club 4 Imposée"},null,null,null,{"$f":"'Info+Engagés'!B2","v":"Quelle Date"}]
[]
["N° de concours",null,null,"Cheval",null,"Cavalier",null,"Note d’ensemble"]
[{"$f":"'Info+Engagés'!B4","v":"Quel N°"},null,null,null,null,null,null,"Points",{"$f":"SUM(D39:H39)","v":0}]
["Épreuve N°",null,{"$f":"'Info+Engagés'!B5","v":"Quel N°"},{"$f":"'Info+Engagés'!B27","v":0},null,{"$f":"'Info+Engagés'!G27","v":0},null,"% Final",{"$f":"AVERAGE(D38:H38)","v":0}]
["Piste  ",null,{"$f":"'Info+Engagés'!B6","v":"Piste ?"}]
["N° Départ BO",null,{"$f":"'Info+Engagés'!A27","v":0},null,null,null,null,"Classement"]
[]
["Imprimé le :",null,null,"Juge E","Juge H","Juge C","Juge M","Juge B"]
[{"$f":"TODAY()","v":"2017-02-17"},null,"Coéff .",{"$f":"IF(ISBLANK('Info+Engagés'!H2),\"\",('Info+Engagés'!H2))","v":""},{"$f":"IF(ISBLANK('Info+Engagés'!H3),\"\",('Info+Engagés'!H3))","v":""},{"$f":"IF(ISBLANK('Info+Engagés'!H4),\"\",('Info+Engagés'!H4))","v":"X"},{"$f":"IF(ISBLANK('Info+Engagés'!H5),\"\",('Info+Engagés'!H5))","v":""},{"$f":"IF(ISBLANK('Info+Engagés'!H6),\"\",('Info+Engagés'!H6))","v":""}]
[{"$f":"NOW()","v":42783.749748032409},null,null,null,null,null,null,null,"écart Max"]
["Notation figures","Figure 1",0,null,null,null,null,null,{"$f":"MAX(D12:H12)-MIN(D12:H12)","v":0}]
[null,"Figure 2",0,null,null,null,null,null,0]
[null,"Figure 3",0,null,null,null,null,null,0]
[null,"Figure 4",0,null,null,null,null,null,0]
[null,"Figure 5",0,null,null,null,null,null,0]
[null,"Figure 6",0,null,null,null,null,null,0]
[null,"Figure 7",0,null,null,null,null,null,0]
[null,"Figure 8",0,null,null,null,null,null,0]
[null,"Figure 9",0,null,null,null,null,null,0]
[null,"Figure 10",0,null,null,null,null,null,0]
[null,"Figure 11",0,null,null,null,null,null,0]
[null,"Figure 12",0,null,null,null,null,null,0]
[null,"Figure 13",0,null,null,null,null,null,0]
[null,"Figure 14",0,null,null,null,null,null,0]
[null,"Figure 15",0,null,null,null,null,null,0]
[null,"Figure 16",0,null,null,null,null,null,0]
[null,"Figure 17",0,null,null,null,null,null,0]
[null,"Figure 18",0,null,null,null,null,null,0]
[null,"Figure 19",0,null,null,null,null,null,0]
[" Critéres d'appréciation","Ensemble 1",1,null,null,null,null,null,0]
[null,"Ensemble 2",1,null,null,null,null,null,0]
[null,"Ensemble 3",1,null,null,null,null,null,0]
[null,"Ensemble 4",1,null,null,null,null,null,{"$f":"MAX(D34:H34)-MIN(D34:H34)","v":0}]
[null,"Ensemble 5",1,null,null,null,null,null,{"$f":"MAX(D35:H35)-MIN(D35:H35)","v":0}]
["Pénalité en points"]
["Erreure(s) de tracé "]
["% Total du juge",null,null,{"$f":"IF(ISBLANK('Info+Engagés'!H2),\"\",D39/0.5-D37)","v":""},{"$f":"IF(ISBLANK('Info+Engagés'!H3),\"\",E39/0.5-E37)","v":""},{"$f":"IF(ISBLANK('Info+Engagés'!H4),\"\",F39/0.5-F37)","v":0},{"$f":"IF(ISBLANK('Info+Engagés'!H5),\"\",G39/0.5-G37)","v":""},{"$f":"IF(ISBLANK('Info+Engagés'!H6),\"\",H39/0.5-H37)","v":""},{"$f":"MAX(D38:H38)-MIN(D38:H38)","v":0}]
["Soit en points",null,null,{"$f":"IF(ISBLANK('Info+Engagés'!H2),\"\",(SUM(D31:D35)-D36))","v":""},{"$f":"IF(ISBLANK('Info+Engagés'!H3),\"\",(SUM(E31:E35)-E36))","v":""},{"$f":"IF(ISBLANK('Info+Engagés'!H4),\"\",(SUM(F31:F35)-F36))","v":0},{"$f":"IF(ISBLANK('Info+Engagés'!H5),\"\",(SUM(G31:G35)-G36))","v":""},{"$f":"IF(ISBLANK('Info+Engagés'!H6),\"\",(SUM(H31:H35)-H36))","v":""}]
["                          Total maxi par juge = 50          1 point correspond à 2,000%              1% correspond en points à : 0,5                                                                  Les notes sont sur 10 et correspondent à la saisie informatique par l'opérateur des protocoles joints, Le total résulte de l'addition des points attribués après application du coefficient et soustraction des points de pénalité encourus après conversion en pourcentage sont déduit les pourcentages de pénalités encourus par suite d'erreurs de tracé pour obtenir le pourcentage par juge."]

{"sheet":"Cav17","index":17,"n_rows":40,"n_cols":9,"rows_kept":40,"cut":false,"hidden":false,"merged":[[36,0,36,2],[37,0,37,2],[38,0,38,2],[39,0,43,8],[9,6,10,6],[9,7,10,7],[10,0,10,1],[35,0,35,2],[9,5,10,5],[30,0,34,0],[11,0,29,0],[8,0,8,1],[9,0,9,1],[9,2,10,2],[9,3,10,3],[9,4,10,4],[4,0,4,1],[4,3,6,4],[4,5,6,6],[4,7,5,7],[4,8,5,8],[5,0,5,1],[6,0,7,1],[6,2,7,2],[6,7,7,7],[6,8,7,8],[0,0,1,2],[0,3,1,6],[0,7,1,8],[2,0,2,2],[2,3,3,4],[2,5,3,6],[3,0,3,2]]}
[{"$f":"'Info+Engagés'!B3","v":"Quel Lieu (Dép)"},null,null,{"$f":"'Info+Engagés'!B8","v":"Club 4 Imposée"},null,null,null,{"$f":"'Info+Engagés'!B2","v":"Quelle Date"}]
[]
["N° de concours",null,null,"Cheval",null,"Cavalier",null,"Note d’ensemble"]
[{"$f":"'Info+Engagés'!B4","v":"Quel N°"},null,null,null,null,null,null,"Points",{"$f":"SUM(D39:H39)","v":0}]
["Épreuve N°",null,{"$f":"'Info+Engagés'!B5","v":"Quel N°"},{"$f":"'Info+Engagés'!B28","v":0},null,{"$f":"'Info+Engagés'!G28","v":0},null,"% Final",{"$f":"AVERAGE(D38:H38)","v":0}]
["Piste  ",null,{"$f":"'Info+Engagés'!B6","v":"Piste ?"}]
["N° Départ BO",null,{"$f":"'Info+Engagés'!A28","v":0},null,null,null,null,"Classement"]
[]
["Imprimé le :",null,null,"Juge E","Juge H","Juge C","Juge M","Juge B"]
[{"$f":"TODAY()","v":"2017-02-17"},null,"Coéff .",{"$f":"IF(ISBLANK('Info+Engagés'!H2),\"\",('Info+Engagés'!H2))","v":""},{"$f":"IF(ISBLANK('Info+Engagés'!H3),\"\",('Info+Engagés'!H3))","v":""},{"$f":"IF(ISBLANK('Info+Engagés'!H4),\"\",('Info+Engagés'!H4))","v":"X"},{"$f":"IF(ISBLANK('Info+Engagés'!H5),\"\",('Info+Engagés'!H5))","v":""},{"$f":"IF(ISBLANK('Info+Engagés'!H6),\"\",('Info+Engagés'!H6))","v":""}]
[{"$f":"NOW()","v":42783.749748032409},null,null,null,null,null,null,null,"écart Max"]
["Notation figures","Figure 1",0,null,null,null,null,null,{"$f":"MAX(D12:H12)-MIN(D12:H12)","v":0}]
[null,"Figure 2",0,null,null,null,null,null,0]
[null,"Figure 3",0,null,null,null,null,null,0]
[null,"Figure 4",0,null,null,null,null,null,0]
[null,"Figure 5",0,null,null,null,null,null,0]
[null,"Figure 6",0,null,null,null,null,null,0]
[null,"Figure 7",0,null,null,null,null,null,0]
[null,"Figure 8",0,null,null,null,null,null,0]
[null,"Figure 9",0,null,null,null,null,null,0]
[null,"Figure 10",0,null,null,null,null,null,0]
[null,"Figure 11",0,null,null,null,null,null,0]
[null,"Figure 12",0,null,null,null,null,null,0]
[null,"Figure 13",0,null,null,null,null,null,0]
[null,"Figure 14",0,null,null,null,null,null,0]
[null,"Figure 15",0,null,null,null,null,null,0]
[null,"Figure 16",0,null,null,null,null,null,0]
[null,"Figure 17",0,null,null,null,null,null,0]
[null,"Figure 18",0,null,null,null,null,null,0]
[null,"Figure 19",0,null,null,null,null,null,0]
[" Critéres d'appréciation","Ensemble 1",1,null,null,null,null,null,0]
[null,"Ensemble 2",1,null,null,null,null,null,0]
[null,"Ensemble 3",1,null,null,null,null,null,0]
[null,"Ensemble 4",1,null,null,null,null,null,{"$f":"MAX(D34:H34)-MIN(D34:H34)","v":0}]
[null,"Ensemble 5",1,null,null,null,null,null,{"$f":"MAX(D35:H35)-MIN(D35:H35)","v":0}]
["Pénalité en points"]
["Erreure(s) de tracé "]
["% Total du juge",null,null,{"$f":"IF(ISBLANK('Info+Engagés'!H2),\"\",D39/0.5-D37)","v":""},{"$f":"IF(ISBLANK('Info+Engagés'!H3),\"\",E39/0.5-E37)","v":""},{"$f":"IF(ISBLANK('Info+Engagés'!H4),\"\",F39/0.5-F37)","v":0},{"$f":"IF(ISBLANK('Info+Engagés'!H5),\"\",G39/0.5-G37)","v":""},{"$f":"IF(ISBLANK('Info+Engagés'!H6),\"\",H39/0.5-H37)","v":""},{"$f":"MAX(D38:H38)-MIN(D38:H38)","v":0}]
["Soit en points",null,null,{"$f":"IF(ISBLANK('Info+Engagés'!H2),\"\",(SUM(D31:D35)-D36))","v":""},{"$f":"IF(ISBLANK('Info+Engagés'!H3),\"\",(SUM(E31:E35)-E36))","v":""},{"$f":"IF(ISBLANK('Info+Engagés'!H4),\"\",(SUM(F31:F35)-F36))","v":0},{"$f":"IF(ISBLANK('Info+Engagés'!H5),\"\",(SUM(G31:G35)-G36))","v":""},{"$f":"IF(ISBLANK('Info+Engagés'!H6),\"\",(SUM(H31:H35)-H36))","v":""}]
["                          Total maxi par juge = 50          1 point correspond à 2,000%              1% correspond en points à : 0,5                                                                  Les notes sont sur 10 et correspondent à la saisie informatique par l'opérateur des protocoles joints, Le total résulte de l'addition des points attribués après application du coefficient et soustraction des points de pénalité encourus après conversion en pourcentage sont déduit les pourcentages de pénalités encourus par suite d'erreurs de tracé pour obtenir le pourcentage par juge."]

{"sheet":"Cav18","index":18,"n_rows":40,"n_cols":9,"rows_kept":40,"cut":false,"hidden":false,"merged":[[36,0,36,2],[37,0,37,2],[38,0,38,2],[39,0,43,8],[9,6,10,6],[9,7,10,7],[10,0,10,1],[35,0,35,2],[9,5,10,5],[30,0,34,0],[11,0,29,0],[8,0,8,1],[9,0,9,1],[9,2,10,2],[9,3,10,3],[9,4,10,4],[4,0,4,1],[4,3,6,4],[4,5,6,6],[4,7,5,7],[4,8,5,8],[5,0,5,1],[6,0,7,1],[6,2,7,2],[6,7,7,7],[6,8,7,8],[0,0,1,2],[0,3,1,6],[0,7,1,8],[2,0,2,2],[2,3,3,4],[2,5,3,6],[3,0,3,2]]}
[{"$f":"'Info+Engagés'!B3","v":"Quel Lieu (Dép)"},null,null,{"$f":"'Info+Engagés'!B8","v":"Club 4 Imposée"},null,null,null,{"$f":"'Info+Engagés'!B2","v":"Quelle Date"}]
[]
["N° de concours",null,null,"Cheval",null,"Cavalier",null,"Note d’ensemble"]
[{"$f":"'Info+Engagés'!B4","v":"Quel N°"},null,null,null,null,null,null,"Points",{"$f":"SUM(D39:H39)","v":0}]
["Épreuve N°",null,{"$f":"'Info+Engagés'!B5","v":"Quel N°"},{"$f":"'Info+Engagés'!B29","v":0},null,{"$f":"'Info+Engagés'!G29","v":0},null,"% Final",{"$f":"AVERAGE(D38:H38)","v":0}]
["Piste  ",null,{"$f":"'Info+Engagés'!B6","v":"Piste ?"}]
["N° Départ BO",null,{"$f":"'Info+Engagés'!A29","v":0},null,null,null,null,"Classement"]
[]
["Imprimé le :",null,null,"Juge E","Juge H","Juge C","Juge M","Juge B"]
[{"$f":"TODAY()","v":"2017-02-17"},null,"Coéff .",{"$f":"IF(ISBLANK('Info+Engagés'!H2),\"\",('Info+Engagés'!H2))","v":""},{"$f":"IF(ISBLANK('Info+Engagés'!H3),\"\",('Info+Engagés'!H3))","v":""},{"$f":"IF(ISBLANK('Info+Engagés'!H4),\"\",('Info+Engagés'!H4))","v":"X"},{"$f":"IF(ISBLANK('Info+Engagés'!H5),\"\",('Info+Engagés'!H5))","v":""},{"$f":"IF(ISBLANK('Info+Engagés'!H6),\"\",('Info+Engagés'!H6))","v":""}]
[{"$f":"NOW()","v":42783.749748032409},null,null,null,null,null,null,null,"écart Max"]
["Notation figures","Figure 1",0,null,null,null,null,null,{"$f":"MAX(D12:H12)-MIN(D12:H12)","v":0}]
[null,"Figure 2",0,null,null,null,null,null,0]
[null,"Figure 3",0,null,null,null,null,null,0]
[null,"Figure 4",0,null,null,null,null,null,0]
[null,"Figure 5",0,null,null,null,null,null,0]
[null,"Figure 6",0,null,null,null,null,null,0]
[null,"Figure 7",0,null,null,null,null,null,0]
[null,"Figure 8",0,null,null,null,null,null,0]
[null,"Figure 9",0,null,null,null,null,null,0]
[null,"Figure 10",0,null,null,null,null,null,0]
[null,"Figure 11",0,null,null,null,null,null,0]
[null,"Figure 12",0,null,null,null,null,null,0]
[null,"Figure 13",0,null,null,null,null,null,0]
[null,"Figure 14",0,null,null,null,null,null,0]
[null,"Figure 15",0,null,null,null,null,null,0]
[null,"Figure 16",0,null,null,null,null,null,0]
[null,"Figure 17",0,null,null,null,null,null,0]
[null,"Figure 18",0,null,null,null,null,null,0]
[null,"Figure 19",0,null,null,null,null,null,0]
[" Critéres d'appréciation","Ensemble 1",1,null,null,null,null,null,0]
[null,"Ensemble 2",1,null,null,null,null,null,0]
[null,"Ensemble 3",1,null,null,null,null,null,0]
[null,"Ensemble 4",1,null,null,null,null,null,{"$f":"MAX(D34:H34)-MIN(D34:H34)","v":0}]
[null,"Ensemble 5",1,null,null,null,null,null,{"$f":"MAX(D35:H35)-MIN(D35:H35)","v":0}]
["Pénalité en points"]
["Erreure(s) de tracé "]
["% Total du juge",null,null,{"$f":"IF(ISBLANK('Info+Engagés'!H2),\"\",D39/0.5-D37)","v":""},{"$f":"IF(ISBLANK('Info+Engagés'!H3),\"\",E39/0.5-E37)","v":""},{"$f":"IF(ISBLANK('Info+Engagés'!H4),\"\",F39/0.5-F37)","v":0},{"$f":"IF(ISBLANK('Info+Engagés'!H5),\"\",G39/0.5-G37)","v":""},{"$f":"IF(ISBLANK('Info+Engagés'!H6),\"\",H39/0.5-H37)","v":""},{"$f":"MAX(D38:H38)-MIN(D38:H38)","v":0}]
["Soit en points",null,null,{"$f":"IF(ISBLANK('Info+Engagés'!H2),\"\",(SUM(D31:D35)-D36))","v":""},{"$f":"IF(ISBLANK('Info+Engagés'!H3),\"\",(SUM(E31:E35)-E36))","v":""},{"$f":"IF(ISBLANK('Info+Engagés'!H4),\"\",(SUM(F31:F35)-F36))","v":0},{"$f":"IF(ISBLANK('Info+Engagés'!H5),\"\",(SUM(G31:G35)-G36))","v":""},{"$f":"IF(ISBLANK('Info+Engagés'!H6),\"\",(SUM(H31:H35)-H36))","v":""}]
["                          Total maxi par juge = 50          1 point correspond à 2,000%              1% correspond en points à : 0,5                                                                  Les notes sont sur 10 et correspondent à la saisie informatique par l'opérateur des protocoles joints, Le total résulte de l'addition des points attribués après application du coefficient et soustraction des points de pénalité encourus après conversion en pourcentage sont déduit les pourcentages de pénalités encourus par suite d'erreurs de tracé pour obtenir le pourcentage par juge."]

{"sheet":"Cav19","index":19,"n_rows":40,"n_cols":9,"rows_kept":40,"cut":false,"hidden":false,"merged":[[36,0,36,2],[37,0,37,2],[38,0,38,2],[39,0,43,8],[9,6,10,6],[9,7,10,7],[10,0,10,1],[35,0,35,2],[9,5,10,5],[30,0,34,0],[11,0,29,0],[8,0,8,1],[9,0,9,1],[9,2,10,2],[9,3,10,3],[9,4,10,4],[4,0,4,1],[4,3,6,4],[4,5,6,6],[4,7,5,7],[4,8,5,8],[5,0,5,1],[6,0,7,1],[6,2,7,2],[6,7,7,7],[6,8,7,8],[0,0,1,2],[0,3,1,6],[0,7,1,8],[2,0,2,2],[2,3,3,4],[2,5,3,6],[3,0,3,2]]}
[{"$f":"'Info+Engagés'!B3","v":"Quel Lieu (Dép)"},null,null,{"$f":"'Info+Engagés'!B8","v":"Club 4 Imposée"},null,null,null,{"$f":"'Info+Engagés'!B2","v":"Quelle Date"}]
[]
["N° de concours",null,null,"Cheval",null,"Cavalier",null,"Note d’ensemble"]
[{"$f":"'Info+Engagés'!B4","v":"Quel N°"},null,null,null,null,null,null,"Points",{"$f":"SUM(D39:H39)","v":0}]
["Épreuve N°",null,{"$f":"'Info+Engagés'!B5","v":"Quel N°"},{"$f":"'Info+Engagés'!B30","v":0},null,{"$f":"'Info+Engagés'!G30","v":0},null,"% Final",{"$f":"AVERAGE(D38:H38)","v":0}]
["Piste  ",null,{"$f":"'Info+Engagés'!B6","v":"Piste ?"}]
["N° Départ BO",null,{"$f":"'Info+Engagés'!A30","v":0},null,null,null,null,"Classement"]
[]
["Imprimé le :",null,null,"Juge E","Juge H","Juge C","Juge M","Juge B"]
[{"$f":"TODAY()","v":"2017-02-17"},null,"Coéff .",{"$f":"IF(ISBLANK('Info+Engagés'!H2),\"\",('Info+Engagés'!H2))","v":""},{"$f":"IF(ISBLANK('Info+Engagés'!H3),\"\",('Info+Engagés'!H3))","v":""},{"$f":"IF(ISBLANK('Info+Engagés'!H4),\"\",('Info+Engagés'!H4))","v":"X"},{"$f":"IF(ISBLANK('Info+Engagés'!H5),\"\",('Info+Engagés'!H5))","v":""},{"$f":"IF(ISBLANK('Info+Engagés'!H6),\"\",('Info+Engagés'!H6))","v":""}]
[{"$f":"NOW()","v":42783.749748032409},null,null,null,null,null,null,null,"écart Max"]
["Notation figures","Figure 1",0,null,null,null,null,null,{"$f":"MAX(D12:H12)-MIN(D12:H12)","v":0}]
[null,"Figure 2",0,null,null,null,null,null,0]
[null,"Figure 3",0,null,null,null,null,null,0]
[null,"Figure 4",0,null,null,null,null,null,0]
[null,"Figure 5",0,null,null,null,null,null,0]
[null,"Figure 6",0,null,null,null,null,null,0]
[null,"Figure 7",0,null,null,null,null,null,0]
[null,"Figure 8",0,null,null,null,null,null,0]
[null,"Figure 9",0,null,null,null,null,null,0]
[null,"Figure 10",0,null,null,null,null,null,0]
[null,"Figure 11",0,null,null,null,null,null,0]
[null,"Figure 12",0,null,null,null,null,null,0]
[null,"Figure 13",0,null,null,null,null,null,0]
[null,"Figure 14",0,null,null,null,null,null,0]
[null,"Figure 15",0,null,null,null,null,null,0]
[null,"Figure 16",0,null,null,null,null,null,0]
[null,"Figure 17",0,null,null,null,null,null,0]
[null,"Figure 18",0,null,null,null,null,null,0]
[null,"Figure 19",0,null,null,null,null,null,0]
[" Critéres d'appréciation","Ensemble 1",1,null,null,null,null,null,0]
[null,"Ensemble 2",1,null,null,null,null,null,0]
[null,"Ensemble 3",1,null,null,null,null,null,0]
[null,"Ensemble 4",1,null,null,null,null,null,{"$f":"MAX(D34:H34)-MIN(D34:H34)","v":0}]
[null,"Ensemble 5",1,null,null,null,null,null,{"$f":"MAX(D35:H35)-MIN(D35:H35)","v":0}]
["Pénalité en points"]
["Erreure(s) de tracé "]
["% Total du juge",null,null,{"$f":"IF(ISBLANK('Info+Engagés'!H2),\"\",D39/0.5-D37)","v":""},{"$f":"IF(ISBLANK('Info+Engagés'!H3),\"\",E39/0.5-E37)","v":""},{"$f":"IF(ISBLANK('Info+Engagés'!H4),\"\",F39/0.5-F37)","v":0},{"$f":"IF(ISBLANK('Info+Engagés'!H5),\"\",G39/0.5-G37)","v":""},{"$f":"IF(ISBLANK('Info+Engagés'!H6),\"\",H39/0.5-H37)","v":""},{"$f":"MAX(D38:H38)-MIN(D38:H38)","v":0}]
["Soit en points",null,null,{"$f":"IF(ISBLANK('Info+Engagés'!H2),\"\",(SUM(D31:D35)-D36))","v":""},{"$f":"IF(ISBLANK('Info+Engagés'!H3),\"\",(SUM(E31:E35)-E36))","v":""},{"$f":"IF(ISBLANK('Info+Engagés'!H4),\"\",(SUM(F31:F35)-F36))","v":0},{"$f":"IF(ISBLANK('Info+Engagés'!H5),\"\",(SUM(G31:G35)-G36))","v":""},{"$f":"IF(ISBLANK('Info+Engagés'!H6),\"\",(SUM(H31:H35)-H36))","v":""}]
["                          Total maxi par juge = 50          1 point correspond à 2,000%              1% correspond en points à : 0,5                                                                  Les notes sont sur 10 et correspondent à la saisie informatique par l'opérateur des protocoles joints, Le total résulte de l'addition des points attribués après application du coefficient et soustraction des points de pénalité encourus après conversion en pourcentage sont déduit les pourcentages de pénalités encourus par suite d'erreurs de tracé pour obtenir le pourcentage par juge."]

{"sheet":"Cav20","index":20,"n_rows":40,"n_cols":9,"rows_kept":40,"cut":false,"hidden":false,"merged":[[36,0,36,2],[37,0,37,2],[38,0,38,2],[39,0,43,8],[9,6,10,6],[9,7,10,7],[10,0,10,1],[35,0,35,2],[9,5,10,5],[30,0,34,0],[11,0,29,0],[8,0,8,1],[9,0,9,1],[9,2,10,2],[9,3,10,3],[9,4,10,4],[4,0,4,1],[4,3,6,4],[4,5,6,6],[4,7,5,7],[4,8,5,8],[5,0,5,1],[6,0,7,1],[6,2,7,2],[6,7,7,7],[6,8,7,8],[0,0,1,2],[0,3,1,6],[0,7,1,8],[2,0,2,2],[2,3,3,4],[2,5,3,6],[3,0,3,2]]}
[{"$f":"'Info+Engagés'!B3","v":"Quel Lieu (Dép)"},null,null,{"$f":"'Info+Engagés'!B8","v":"Club 4 Imposée"},null,null,null,{"$f":"'Info+Engagés'!B2","v":"Quelle Date"}]
[]
["N° de concours",null,null,"Cheval",null,"Cavalier",null,"Note d’ensemble"]
[{"$f":"'Info+Engagés'!B4","v":"Quel N°"},null,null,null,null,null,null,"Points",{"$f":"SUM(D39:H39)","v":0}]
["Épreuve N°",null,{"$f":"'Info+Engagés'!B5","v":"Quel N°"},{"$f":"'Info+Engagés'!B31","v":0},null,{"$f":"'Info+Engagés'!G31","v":0},null,"% Final",{"$f":"AVERAGE(D38:H38)","v":0}]
["Piste  ",null,{"$f":"'Info+Engagés'!B6","v":"Piste ?"}]
["N° Départ BO",null,{"$f":"'Info+Engagés'!A31","v":0},null,null,null,null,"Classement"]
[]
["Imprimé le :",null,null,"Juge E","Juge H","Juge C","Juge M","Juge B"]
[{"$f":"TODAY()","v":"2017-02-17"},null,"Coéff .",{"$f":"IF(ISBLANK('Info+Engagés'!H2),\"\",('Info+Engagés'!H2))","v":""},{"$f":"IF(ISBLANK('Info+Engagés'!H3),\"\",('Info+Engagés'!H3))","v":""},{"$f":"IF(ISBLANK('Info+Engagés'!H4),\"\",('Info+Engagés'!H4))","v":"X"},{"$f":"IF(ISBLANK('Info+Engagés'!H5),\"\",('Info+Engagés'!H5))","v":""},{"$f":"IF(ISBLANK('Info+Engagés'!H6),\"\",('Info+Engagés'!H6))","v":""}]
[{"$f":"NOW()","v":42783.749748032409},null,null,null,null,null,null,null,"écart Max"]
["Notation figures","Figure 1",0,null,null,null,null,null,{"$f":"MAX(D12:H12)-MIN(D12:H12)","v":0}]
[null,"Figure 2",0,null,null,null,null,null,0]
[null,"Figure 3",0,null,null,null,null,null,0]
[null,"Figure 4",0,null,null,null,null,null,0]
[null,"Figure 5",0,null,null,null,null,null,0]
[null,"Figure 6",0,null,null,null,null,null,0]
[null,"Figure 7",0,null,null,null,null,null,0]
[null,"Figure 8",0,null,null,null,null,null,0]
[null,"Figure 9",0,null,null,null,null,null,0]
[null,"Figure 10",0,null,null,null,null,null,0]
[null,"Figure 11",0,null,null,null,null,null,0]
[null,"Figure 12",0,null,null,null,null,null,0]
[null,"Figure 13",0,null,null,null,null,null,0]
[null,"Figure 14",0,null,null,null,null,null,0]
[null,"Figure 15",0,null,null,null,null,null,0]
[null,"Figure 16",0,null,null,null,null,null,0]
[null,"Figure 17",0,null,null,null,null,null,0]
[null,"Figure 18",0,null,null,null,null,null,0]
[null,"Figure 19",0,null,null,null,null,null,0]
[" Critéres d'appréciation","Ensemble 1",1,null,null,null,null,null,0]
[null,"Ensemble 2",1,null,null,null,null,null,0]
[null,"Ensemble 3",1,null,null,null,null,null,0]
[null,"Ensemble 4",1,null,null,null,null,null,{"$f":"MAX(D34:H34)-MIN(D34:H34)","v":0}]
[null,"Ensemble 5",1,null,null,null,null,null,{"$f":"MAX(D35:H35)-MIN(D35:H35)","v":0}]
["Pénalité en points"]
["Erreure(s) de tracé "]
["% Total du juge",null,null,{"$f":"IF(ISBLANK('Info+Engagés'!H2),\"\",D39/0.5-D37)","v":""},{"$f":"IF(ISBLANK('Info+Engagés'!H3),\"\",E39/0.5-E37)","v":""},{"$f":"IF(ISBLANK('Info+Engagés'!H4),\"\",F39/0.5-F37)","v":0},{"$f":"IF(ISBLANK('Info+Engagés'!H5),\"\",G39/0.5-G37)","v":""},{"$f":"IF(ISBLANK('Info+Engagés'!H6),\"\",H39/0.5-H37)","v":""},{"$f":"MAX(D38:H38)-MIN(D38:H38)","v":0}]
["Soit en points",null,null,{"$f":"IF(ISBLANK('Info+Engagés'!H2),\"\",(SUM(D31:D35)-D36))","v":""},{"$f":"IF(ISBLANK('Info+Engagés'!H3),\"\",(SUM(E31:E35)-E36))","v":""},{"$f":"IF(ISBLANK('Info+Engagés'!H4),\"\",(SUM(F31:F35)-F36))","v":0},{"$f":"IF(ISBLANK('Info+Engagés'!H5),\"\",(SUM(G31:G35)-G36))","v":""},{"$f":"IF(ISBLANK('Info+Engagés'!H6),\"\",(SUM(H31:H35)-H36))","v":""}]
["                          Total maxi par juge = 50          1 point correspond à 2,000%              1% correspond en points à : 0,5                                                                  Les notes sont sur 10 et correspondent à la saisie informatique par l'opérateur des protocoles joints, Le total résulte de l'addition des points attribués après application du coefficient et soustraction des points de pénalité encourus après conversion en pourcentage sont déduit les pourcentages de pénalités encourus par suite d'erreurs de tracé pour obtenir le pourcentage par juge."]

{"sheet":"Cav21","index":21,"n_rows":40,"n_cols":9,"rows_kept":40,"cut":false,"hidden":false,"merged":[[36,0,36,2],[37,0,37,2],[38,0,38,2],[39,0,43,8],[9,6,10,6],[9,7,10,7],[10,0,10,1],[35,0,35,2],[9,5,10,5],[30,0,34,0],[11,0,29,0],[8,0,8,1],[9,0,9,1],[9,2,10,2],[9,3,10,3],[9,4,10,4],[4,0,4,1],[4,3,6,4],[4,5,6,6],[4,7,5,7],[4,8,5,8],[5,0,5,1],[6,0,7,1],[6,2,7,2],[6,7,7,7],[6,8,7,8],[0,0,1,2],[0,3,1,6],[0,7,1,8],[2,0,2,2],[2,3,3,4],[2,5,3,6],[3,0,3,2]]}
[{"$f":"'Info+Engagés'!B3","v":"Quel Lieu (Dép)"},null,null,{"$f":"'Info+Engagés'!B8","v":"Club 4 Imposée"},null,null,null,{"$f":"'Info+Engagés'!B2","v":"Quelle Date"}]
[]
["N° de concours",null,null,"Cheval",null,"Cavalier",null,"Note d’ensemble"]
[{"$f":"'Info+Engagés'!B4","v":"Quel N°"},null,null,null,null,null,null,"Points",{"$f":"SUM(D39:H39)","v":0}]
["Épreuve N°",null,{"$f":"'Info+Engagés'!B5","v":"Quel N°"},{"$f":"'Info+Engagés'!B32","v":0},null,{"$f":"'Info+Engagés'!G32","v":0},null,"% Final",{"$f":"AVERAGE(D38:H38)","v":0}]
["Piste  ",null,{"$f":"'Info+Engagés'!B6","v":"Piste ?"}]
["N° Départ BO",null,{"$f":"'Info+Engagés'!A32","v":0},null,null,null,null,"Classement"]
[]
["Imprimé le :",null,null,"Juge E","Juge H","Juge C","Juge M","Juge B"]
[{"$f":"TODAY()","v":"2017-02-17"},null,"Coéff .",{"$f":"IF(ISBLANK('Info+Engagés'!H2),\"\",('Info+Engagés'!H2))","v":""},{"$f":"IF(ISBLANK('Info+Engagés'!H3),\"\",('Info+Engagés'!H3))","v":""},{"$f":"IF(ISBLANK('Info+Engagés'!H4),\"\",('Info+Engagés'!H4))","v":"X"},{"$f":"IF(ISBLANK('Info+Engagés'!H5),\"\",('Info+Engagés'!H5))","v":""},{"$f":"IF(ISBLANK('Info+Engagés'!H6),\"\",('Info+Engagés'!H6))","v":""}]
[{"$f":"NOW()","v":42783.749748032409},null,null,null,null,null,null,null,"écart Max"]
["Notation figures","Figure 1",0,null,null,null,null,null,{"$f":"MAX(D12:H12)-MIN(D12:H12)","v":0}]
[null,"Figure 2",0,null,null,null,null,null,0]
[null,"Figure 3",0,null,null,null,null,null,0]
[null,"Figure 4",0,null,null,null,null,null,0]
[null,"Figure 5",0,null,null,null,null,null,0]
[null,"Figure 6",0,null,null,null,null,null,0]
[null,"Figure 7",0,null,null,null,null,null,0]
[null,"Figure 8",0,null,null,null,null,null,0]
[null,"Figure 9",0,null,null,null,null,null,0]
[null,"Figure 10",0,null,null,null,null,null,0]
[null,"Figure 11",0,null,null,null,null,null,0]
[null,"Figure 12",0,null,null,null,null,null,0]
[null,"Figure 13",0,null,null,null,null,null,0]
[null,"Figure 14",0,null,null,null,null,null,0]
[null,"Figure 15",0,null,null,null,null,null,0]
[null,"Figure 16",0,null,null,null,null,null,0]
[null,"Figure 17",0,null,null,null,null,null,0]
[null,"Figure 18",0,null,null,null,null,null,0]
[null,"Figure 19",0,null,null,null,null,null,0]
[" Critéres d'appréciation","Ensemble 1",1,null,null,null,null,null,0]
[null,"Ensemble 2",1,null,null,null,null,null,0]
[null,"Ensemble 3",1,null,null,null,null,null,0]
[null,"Ensemble 4",1,null,null,null,null,null,{"$f":"MAX(D34:H34)-MIN(D34:H34)","v":0}]
[null,"Ensemble 5",1,null,null,null,null,null,{"$f":"MAX(D35:H35)-MIN(D35:H35)","v":0}]
["Pénalité en points"]
["Erreure(s) de tracé "]
["% Total du juge",null,null,{"$f":"IF(ISBLANK('Info+Engagés'!H2),\"\",D39/0.5-D37)","v":""},{"$f":"IF(ISBLANK('Info+Engagés'!H3),\"\",E39/0.5-E37)","v":""},{"$f":"IF(ISBLANK('Info+Engagés'!H4),\"\",F39/0.5-F37)","v":0},{"$f":"IF(ISBLANK('Info+Engagés'!H5),\"\",G39/0.5-G37)","v":""},{"$f":"IF(ISBLANK('Info+Engagés'!H6),\"\",H39/0.5-H37)","v":""},{"$f":"MAX(D38:H38)-MIN(D38:H38)","v":0}]
["Soit en points",null,null,{"$f":"IF(ISBLANK('Info+Engagés'!H2),\"\",(SUM(D31:D35)-D36))","v":""},{"$f":"IF(ISBLANK('Info+Engagés'!H3),\"\",(SUM(E31:E35)-E36))","v":""},{"$f":"IF(ISBLANK('Info+Engagés'!H4),\"\",(SUM(F31:F35)-F36))","v":0},{"$f":"IF(ISBLANK('Info+Engagés'!H5),\"\",(SUM(G31:G35)-G36))","v":""},{"$f":"IF(ISBLANK('Info+Engagés'!H6),\"\",(SUM(H31:H35)-H36))","v":""}]
["                          Total maxi par juge = 50          1 point correspond à 2,000%              1% correspond en points à : 0,5                                                                  Les notes sont sur 10 et correspondent à la saisie informatique par l'opérateur des protocoles joints, Le total résulte de l'addition des points attribués après application du coefficient et soustraction des points de pénalité encourus après conversion en pourcentage sont déduit les pourcentages de pénalités encourus par suite d'erreurs de tracé pour obtenir le pourcentage par juge."]

{"sheet":"Cav22","index":22,"n_rows":40,"n_cols":9,"rows_kept":40,"cut":false,"hidden":false,"merged":[[36,0,36,2],[37,0,37,2],[38,0,38,2],[39,0,43,8],[9,6,10,6],[9,7,10,7],[10,0,10,1],[35,0,35,2],[9,5,10,5],[30,0,34,0],[11,0,29,0],[8,0,8,1],[9,0,9,1],[9,2,10,2],[9,3,10,3],[9,4,10,4],[4,0,4,1],[4,3,6,4],[4,5,6,6],[4,7,5,7],[4,8,5,8],[5,0,5,1],[6,0,7,1],[6,2,7,2],[6,7,7,7],[6,8,7,8],[0,0,1,2],[0,3,1,6],[0,7,1,8],[2,0,2,2],[2,3,3,4],[2,5,3,6],[3,0,3,2]]}
[{"$f":"'Info+Engagés'!B3","v":"Quel Lieu (Dép)"},null,null,{"$f":"'Info+Engagés'!B8","v":"Club 4 Imposée"},null,null,null,{"$f":"'Info+Engagés'!B2","v":"Quelle Date"}]
[]
["N° de concours",null,null,"Cheval",null,"Cavalier",null,"Note d’ensemble"]
[{"$f":"'Info+Engagés'!B4","v":"Quel N°"},null,null,null,null,null,null,"Points",{"$f":"SUM(D39:H39)","v":0}]
["Épreuve N°",null,{"$f":"'Info+Engagés'!B5","v":"Quel N°"},{"$f":"'Info+Engagés'!B33","v":0},null,{"$f":"'Info+Engagés'!G33","v":0},null,"% Final",{"$f":"AVERAGE(D38:H38)","v":0}]
["Piste  ",null,{"$f":"'Info+Engagés'!B6","v":"Piste ?"}]
["N° Départ BO",null,{"$f":"'Info+Engagés'!A33","v":0},null,null,null,null,"Classement"]
[]
["Imprimé le :",null,null,"Juge E","Juge H","Juge C","Juge M","Juge B"]
[{"$f":"TODAY()","v":"2017-02-17"},null,"Coéff .",{"$f":"IF(ISBLANK('Info+Engagés'!H2),\"\",('Info+Engagés'!H2))","v":""},{"$f":"IF(ISBLANK('Info+Engagés'!H3),\"\",('Info+Engagés'!H3))","v":""},{"$f":"IF(ISBLANK('Info+Engagés'!H4),\"\",('Info+Engagés'!H4))","v":"X"},{"$f":"IF(ISBLANK('Info+Engagés'!H5),\"\",('Info+Engagés'!H5))","v":""},{"$f":"IF(ISBLANK('Info+Engagés'!H6),\"\",('Info+Engagés'!H6))","v":""}]
[{"$f":"NOW()","v":42783.749748032409},null,null,null,null,null,null,null,"écart Max"]
["Notation figures","Figure 1",0,null,null,null,null,null,{"$f":"MAX(D12:H12)-MIN(D12:H12)","v":0}]
[null,"Figure 2",0,null,null,null,null,null,0]
[null,"Figure 3",0,null,null,null,null,null,0]
[null,"Figure 4",0,null,null,null,null,null,0]
[null,"Figure 5",0,null,null,null,null,null,0]
[null,"Figure 6",0,null,null,null,null,null,0]
[null,"Figure 7",0,null,null,null,null,null,0]
[null,"Figure 8",0,null,null,null,null,null,0]
[null,"Figure 9",0,null,null,null,null,null,0]
[null,"Figure 10",0,null,null,null,null,null,0]
[null,"Figure 11",0,null,null,null,null,null,0]
[null,"Figure 12",0,null,null,null,null,null,0]
[null,"Figure 13",0,null,null,null,null,null,0]
[null,"Figure 14",0,null,null,null,null,null,0]
[null,"Figure 15",0,null,null,null,null,null,0]
[null,"Figure 16",0,null,null,null,null,null,0]
[null,"Figure 17",0,null,null,null,null,null,0]
[null,"Figure 18",0,null,null,null,null,null,0]
[null,"Figure 19",0,null,null,null,null,null,0]
[" Critéres d'appréciation","Ensemble 1",1,null,null,null,null,null,0]
[null,"Ensemble 2",1,null,null,null,null,null,0]
[null,"Ensemble 3",1,null,null,null,null,null,0]
[null,"Ensemble 4",1,null,null,null,null,null,{"$f":"MAX(D34:H34)-MIN(D34:H34)","v":0}]
[null,"Ensemble 5",1,null,null,null,null,null,{"$f":"MAX(D35:H35)-MIN(D35:H35)","v":0}]
["Pénalité en points"]
["Erreure(s) de tracé "]
["% Total du juge",null,null,{"$f":"IF(ISBLANK('Info+Engagés'!H2),\"\",D39/0.5-D37)","v":""},{"$f":"IF(ISBLANK('Info+Engagés'!H3),\"\",E39/0.5-E37)","v":""},{"$f":"IF(ISBLANK('Info+Engagés'!H4),\"\",F39/0.5-F37)","v":0},{"$f":"IF(ISBLANK('Info+Engagés'!H5),\"\",G39/0.5-G37)","v":""},{"$f":"IF(ISBLANK('Info+Engagés'!H6),\"\",H39/0.5-H37)","v":""},{"$f":"MAX(D38:H38)-MIN(D38:H38)","v":0}]
["Soit en points",null,null,{"$f":"IF(ISBLANK('Info+Engagés'!H2),\"\",(SUM(D31:D35)-D36))","v":""},{"$f":"IF(ISBLANK('Info+Engagés'!H3),\"\",(SUM(E31:E35)-E36))","v":""},{"$f":"IF(ISBLANK('Info+Engagés'!H4),\"\",(SUM(F31:F35)-F36))","v":0},{"$f":"IF(ISBLANK('Info+Engagés'!H5),\"\",(SUM(G31:G35)-G36))","v":""},{"$f":"IF(ISBLANK('Info+Engagés'!H6),\"\",(SUM(H31:H35)-H36))","v":""}]
["                          Total maxi par juge = 50          1 point correspond à 2,000%              1% correspond en points à : 0,5                                                                  Les notes sont sur 10 et correspondent à la saisie informatique par l'opérateur des protocoles joints, Le total résulte de l'addition des points attribués après application du coefficient et soustraction des points de pénalité encourus après conversion en pourcentage sont déduit les pourcentages de pénalités encourus par suite d'erreurs de tracé pour obtenir le pourcentage par juge."]

{"sheet":"Cav23","index":23,"n_rows":40,"n_cols":9,"rows_kept":40,"cut":false,"hidden":false,"merged":[[36,0,36,2],[37,0,37,2],[38,0,38,2],[39,0,43,8],[9,6,10,6],[9,7,10,7],[10,0,10,1],[35,0,35,2],[9,5,10,5],[30,0,34,0],[11,0,29,0],[8,0,8,1],[9,0,9,1],[9,2,10,2],[9,3,10,3],[9,4,10,4],[4,0,4,1],[4,3,6,4],[4,5,6,6],[4,7,5,7],[4,8,5,8],[5,0,5,1],[6,0,7,1],[6,2,7,2],[6,7,7,7],[6,8,7,8],[0,0,1,2],[0,3,1,6],[0,7,1,8],[2,0,2,2],[2,3,3,4],[2,5,3,6],[3,0,3,2]]}
[{"$f":"'Info+Engagés'!B3","v":"Quel Lieu (Dép)"},null,null,{"$f":"'Info+Engagés'!B8","v":"Club 4 Imposée"},null,null,null,{"$f":"'Info+Engagés'!B2","v":"Quelle Date"}]
[]
["N° de concours",null,null,"Cheval",null,"Cavalier",null,"Note d’ensemble"]
[{"$f":"'Info+Engagés'!B4","v":"Quel N°"},null,null,null,null,null,null,"Points",{"$f":"SUM(D39:H39)","v":0}]
["Épreuve N°",null,{"$f":"'Info+Engagés'!B5","v":"Quel N°"},{"$f":"'Info+Engagés'!B34","v":0},null,{"$f":"'Info+Engagés'!G34","v":0},null,"% Final",{"$f":"AVERAGE(D38:H38)","v":0}]
["Piste  ",null,{"$f":"'Info+Engagés'!B6","v":"Piste ?"}]
["N° Départ BO",null,{"$f":"'Info+Engagés'!A34","v":0},null,null,null,null,"Classement"]
[]
["Imprimé le :",null,null,"Juge E","Juge H","Juge C","Juge M","Juge B"]
[{"$f":"TODAY()","v":"2017-02-17"},null,"Coéff .",{"$f":"IF(ISBLANK('Info+Engagés'!H2),\"\",('Info+Engagés'!H2))","v":""},{"$f":"IF(ISBLANK('Info+Engagés'!H3),\"\",('Info+Engagés'!H3))","v":""},{"$f":"IF(ISBLANK('Info+Engagés'!H4),\"\",('Info+Engagés'!H4))","v":"X"},{"$f":"IF(ISBLANK('Info+Engagés'!H5),\"\",('Info+Engagés'!H5))","v":""},{"$f":"IF(ISBLANK('Info+Engagés'!H6),\"\",('Info+Engagés'!H6))","v":""}]
[{"$f":"NOW()","v":42783.749748032409},null,null,null,null,null,null,null,"écart Max"]
["Notation figures","Figure 1",0,null,null,null,null,null,{"$f":"MAX(D12:H12)-MIN(D12:H12)","v":0}]
[null,"Figure 2",0,null,null,null,null,null,0]
[null,"Figure 3",0,null,null,null,null,null,0]
[null,"Figure 4",0,null,null,null,null,null,0]
[null,"Figure 5",0,null,null,null,null,null,0]
[null,"Figure 6",0,null,null,null,null,null,0]
[null,"Figure 7",0,null,null,null,null,null,0]
[null,"Figure 8",0,null,null,null,null,null,0]
[null,"Figure 9",0,null,null,null,null,null,0]
[null,"Figure 10",0,null,null,null,null,null,0]
[null,"Figure 11",0,null,null,null,null,null,0]
[null,"Figure 12",0,null,null,null,null,null,0]
[null,"Figure 13",0,null,null,null,null,null,0]
[null,"Figure 14",0,null,null,null,null,null,0]
[null,"Figure 15",0,null,null,null,null,null,0]
[null,"Figure 16",0,null,null,null,null,null,0]
[null,"Figure 17",0,null,null,null,null,null,0]
[null,"Figure 18",0,null,null,null,null,null,0]
[null,"Figure 19",0,null,null,null,null,null,0]
[" Critéres d'appréciation","Ensemble 1",1,null,null,null,null,null,0]
[null,"Ensemble 2",1,null,null,null,null,null,0]
[null,"Ensemble 3",1,null,null,null,null,null,0]
[null,"Ensemble 4",1,null,null,null,null,null,{"$f":"MAX(D34:H34)-MIN(D34:H34)","v":0}]
[null,"Ensemble 5",1,null,null,null,null,null,{"$f":"MAX(D35:H35)-MIN(D35:H35)","v":0}]
["Pénalité en points"]
["Erreure(s) de tracé "]
["% Total du juge",null,null,{"$f":"IF(ISBLANK('Info+Engagés'!H2),\"\",D39/0.5-D37)","v":""},{"$f":"IF(ISBLANK('Info+Engagés'!H3),\"\",E39/0.5-E37)","v":""},{"$f":"IF(ISBLANK('Info+Engagés'!H4),\"\",F39/0.5-F37)","v":0},{"$f":"IF(ISBLANK('Info+Engagés'!H5),\"\",G39/0.5-G37)","v":""},{"$f":"IF(ISBLANK('Info+Engagés'!H6),\"\",H39/0.5-H37)","v":""},{"$f":"MAX(D38:H38)-MIN(D38:H38)","v":0}]
["Soit en points",null,null,{"$f":"IF(ISBLANK('Info+Engagés'!H2),\"\",(SUM(D31:D35)-D36))","v":""},{"$f":"IF(ISBLANK('Info+Engagés'!H3),\"\",(SUM(E31:E35)-E36))","v":""},{"$f":"IF(ISBLANK('Info+Engagés'!H4),\"\",(SUM(F31:F35)-F36))","v":0},{"$f":"IF(ISBLANK('Info+Engagés'!H5),\"\",(SUM(G31:G35)-G36))","v":""},{"$f":"IF(ISBLANK('Info+Engagés'!H6),\"\",(SUM(H31:H35)-H36))","v":""}]
["                          Total maxi par juge = 50          1 point correspond à 2,000%              1% correspond en points à : 0,5                                                                  Les notes sont sur 10 et correspondent à la saisie informatique par l'opérateur des protocoles joints, Le total résulte de l'addition des points attribués après application du coefficient et soustraction des points de pénalité encourus après conversion en pourcentage sont déduit les pourcentages de pénalités encourus par suite d'erreurs de tracé pour obtenir le pourcentage par juge."]

{"sheet":"Cav24","index":24,"n_rows":40,"n_cols":9,"rows_kept":40,"cut":false,"hidden":false,"merged":[[36,0,36,2],[37,0,37,2],[38,0,38,2],[39,0,43,8],[9,6,10,6],[9,7,10,7],[10,0,10,1],[35,0,35,2],[9,5,10,5],[30,0,34,0],[11,0,29,0],[8,0,8,1],[9,0,9,1],[9,2,10,2],[9,3,10,3],[9,4,10,4],[4,0,4,1],[4,3,6,4],[4,5,6,6],[4,7,5,7],[4,8,5,8],[5,0,5,1],[6,0,7,1],[6,2,7,2],[6,7,7,7],[6,8,7,8],[0,0,1,2],[0,3,1,6],[0,7,1,8],[2,0,2,2],[2,3,3,4],[2,5,3,6],[3,0,3,2]]}
[{"$f":"'Info+Engagés'!B3","v":"Quel Lieu (Dép)"},null,null,{"$f":"'Info+Engagés'!B8","v":"Club 4 Imposée"},null,null,null,{"$f":"'Info+Engagés'!B2","v":"Quelle Date"}]
[]
["N° de concours",null,null,"Cheval",null,"Cavalier",null,"Note d’ensemble"]
[{"$f":"'Info+Engagés'!B4","v":"Quel N°"},null,null,null,null,null,null,"Points",{"$f":"SUM(D39:H39)","v":0}]
["Épreuve N°",null,{"$f":"'Info+Engagés'!B5","v":"Quel N°"},{"$f":"'Info+Engagés'!B35","v":0},null,{"$f":"'Info+Engagés'!G35","v":0},null,"% Final",{"$f":"AVERAGE(D38:H38)","v":0}]
["Piste  ",null,{"$f":"'Info+Engagés'!B6","v":"Piste ?"}]
["N° Départ BO",null,{"$f":"'Info+Engagés'!A35","v":0},null,null,null,null,"Classement"]
[]
["Imprimé le :",null,null,"Juge E","Juge H","Juge C","Juge M","Juge B"]
[{"$f":"TODAY()","v":"2017-02-17"},null,"Coéff .",{"$f":"IF(ISBLANK('Info+Engagés'!H2),\"\",('Info+Engagés'!H2))","v":""},{"$f":"IF(ISBLANK('Info+Engagés'!H3),\"\",('Info+Engagés'!H3))","v":""},{"$f":"IF(ISBLANK('Info+Engagés'!H4),\"\",('Info+Engagés'!H4))","v":"X"},{"$f":"IF(ISBLANK('Info+Engagés'!H5),\"\",('Info+Engagés'!H5))","v":""},{"$f":"IF(ISBLANK('Info+Engagés'!H6),\"\",('Info+Engagés'!H6))","v":""}]
[{"$f":"NOW()","v":42783.749748032409},null,null,null,null,null,null,null,"écart Max"]
["Notation figures","Figure 1",0,null,null,null,null,null,{"$f":"MAX(D12:H12)-MIN(D12:H12)","v":0}]
[null,"Figure 2",0,null,null,null,null,null,0]
[null,"Figure 3",0,null,null,null,null,null,0]
[null,"Figure 4",0,null,null,null,null,null,0]
[null,"Figure 5",0,null,null,null,null,null,0]
[null,"Figure 6",0,null,null,null,null,null,0]
[null,"Figure 7",0,null,null,null,null,null,0]
[null,"Figure 8",0,null,null,null,null,null,0]
[null,"Figure 9",0,null,null,null,null,null,0]
[null,"Figure 10",0,null,null,null,null,null,0]
[null,"Figure 11",0,null,null,null,null,null,0]
[null,"Figure 12",0,null,null,null,null,null,0]
[null,"Figure 13",0,null,null,null,null,null,0]
[null,"Figure 14",0,null,null,null,null,null,0]
[null,"Figure 15",0,null,null,null,null,null,0]
[null,"Figure 16",0,null,null,null,null,null,0]
[null,"Figure 17",0,null,null,null,null,null,0]
[null,"Figure 18",0,null,null,null,null,null,0]
[null,"Figure 19",0,null,null,null,null,null,0]
[" Critéres d'appréciation","Ensemble 1",1,null,null,null,null,null,0]
[null,"Ensemble 2",1,null,null,null,null,null,0]
[null,"Ensemble 3",1,null,null,null,null,null,0]
[null,"Ensemble 4",1,null,null,null,null,null,{"$f":"MAX(D34:H34)-MIN(D34:H34)","v":0}]
[null,"Ensemble 5",1,null,null,null,null,null,{"$f":"MAX(D35:H35)-MIN(D35:H35)","v":0}]
["Pénalité en points"]
["Erreure(s) de tracé "]
["% Total du juge",null,null,{"$f":"IF(ISBLANK('Info+Engagés'!H2),\"\",D39/0.5-D37)","v":""},{"$f":"IF(ISBLANK('Info+Engagés'!H3),\"\",E39/0.5-E37)","v":""},{"$f":"IF(ISBLANK('Info+Engagés'!H4),\"\",F39/0.5-F37)","v":0},{"$f":"IF(ISBLANK('Info+Engagés'!H5),\"\",G39/0.5-G37)","v":""},{"$f":"IF(ISBLANK('Info+Engagés'!H6),\"\",H39/0.5-H37)","v":""},{"$f":"MAX(D38:H38)-MIN(D38:H38)","v":0}]
["Soit en points",null,null,{"$f":"IF(ISBLANK('Info+Engagés'!H2),\"\",(SUM(D31:D35)-D36))","v":""},{"$f":"IF(ISBLANK('Info+Engagés'!H3),\"\",(SUM(E31:E35)-E36))","v":""},{"$f":"IF(ISBLANK('Info+Engagés'!H4),\"\",(SUM(F31:F35)-F36))","v":0},{"$f":"IF(ISBLANK('Info+Engagés'!H5),\"\",(SUM(G31:G35)-G36))","v":""},{"$f":"IF(ISBLANK('Info+Engagés'!H6),\"\",(SUM(H31:H35)-H36))","v":""}]
["                          Total maxi par juge = 50          1 point correspond à 2,000%              1% correspond en points à : 0,5                                                                  Les notes sont sur 10 et correspondent à la saisie informatique par l'opérateur des protocoles joints, Le total résulte de l'addition des points attribués après application du coefficient et soustraction des points de pénalité encourus après conversion en pourcentage sont déduit les pourcentages de pénalités encourus par suite d'erreurs de tracé pour obtenir le pourcentage par juge."]

{"sheet":"Cav25","index":25,"n_rows":40,"n_cols":9,"rows_kept":40,"cut":false,"hidden":false,"merged":[[36,0,36,2],[37,0,37,2],[38,0,38,2],[39,0,43,8],[9,6,10,6],[9,7,10,7],[10,0,10,1],[35,0,35,2],[9,5,10,5],[30,0,34,0],[11,0,29,0],[8,0,8,1],[9,0,9,1],[9,2,10,2],[9,3,10,3],[9,4,10,4],[4,0,4,1],[4,3,6,4],[4,5,6,6],[4,7,5,7],[4,8,5,8],[5,0,5,1],[6,0,7,1],[6,2,7,2],[6,7,7,7],[6,8,7,8],[0,0,1,2],[0,3,1,6],[0,7,1,8],[2,0,2,2],[2,3,3,4],[2,5,3,6],[3,0,3,2]]}
[{"$f":"'Info+Engagés'!B3","v":"Quel Lieu (Dép)"},null,null,{"$f":"'Info+Engagés'!B8","v":"Club 4 Imposée"},null,null,null,{"$f":"'Info+Engagés'!B2","v":"Quelle Date"}]
[]
["N° de concours",null,null,"Cheval",null,"Cavalier",null,"Note d’ensemble"]
[{"$f":"'Info+Engagés'!B4","v":"Quel N°"},null,null,null,null,null,null,"Points",{"$f":"SUM(D39:H39)","v":0}]
["Épreuve N°",null,{"$f":"'Info+Engagés'!B5","v":"Quel N°"},{"$f":"'Info+Engagés'!B36","v":0},null,{"$f":"'Info+Engagés'!G36","v":0},null,"% Final",{"$f":"AVERAGE(D38:H38)","v":0}]
["Piste  ",null,{"$f":"'Info+Engagés'!B6","v":"Piste ?"}]
["N° Départ BO",null,{"$f":"'Info+Engagés'!A36","v":0},null,null,null,null,"Classement"]
[]
["Imprimé le :",null,null,"Juge E","Juge H","Juge C","Juge M","Juge B"]
[{"$f":"TODAY()","v":"2017-02-17"},null,"Coéff .",{"$f":"IF(ISBLANK('Info+Engagés'!H2),\"\",('Info+Engagés'!H2))","v":""},{"$f":"IF(ISBLANK('Info+Engagés'!H3),\"\",('Info+Engagés'!H3))","v":""},{"$f":"IF(ISBLANK('Info+Engagés'!H4),\"\",('Info+Engagés'!H4))","v":"X"},{"$f":"IF(ISBLANK('Info+Engagés'!H5),\"\",('Info+Engagés'!H5))","v":""},{"$f":"IF(ISBLANK('Info+Engagés'!H6),\"\",('Info+Engagés'!H6))","v":""}]
[{"$f":"NOW()","v":42783.749748032409},null,null,null,null,null,null,null,"écart Max"]
["Notation figures","Figure 1",0,null,null,null,null,null,{"$f":"MAX(D12:H12)-MIN(D12:H12)","v":0}]
[null,"Figure 2",0,null,null,null,null,null,0]
[null,"Figure 3",0,null,null,null,null,null,0]
[null,"Figure 4",0,null,null,null,null,null,0]
[null,"Figure 5",0,null,null,null,null,null,0]
[null,"Figure 6",0,null,null,null,null,null,0]
[null,"Figure 7",0,null,null,null,null,null,0]
[null,"Figure 8",0,null,null,null,null,null,0]
[null,"Figure 9",0,null,null,null,null,null,0]
[null,"Figure 10",0,null,null,null,null,null,0]
[null,"Figure 11",0,null,null,null,null,null,0]
[null,"Figure 12",0,null,null,null,null,null,0]
[null,"Figure 13",0,null,null,null,null,null,0]
[null,"Figure 14",0,null,null,null,null,null,0]
[null,"Figure 15",0,null,null,null,null,null,0]
[null,"Figure 16",0,null,null,null,null,null,0]
[null,"Figure 17",0,null,null,null,null,null,0]
[null,"Figure 18",0,null,null,null,null,null,0]
[null,"Figure 19",0,null,null,null,null,null,0]
[" Critéres d'appréciation","Ensemble 1",1,null,null,null,null,null,0]
[null,"Ensemble 2",1,null,null,null,null,null,0]
[null,"Ensemble 3",1,null,null,null,null,null,0]
[null,"Ensemble 4",1,null,null,null,null,null,{"$f":"MAX(D34:H34)-MIN(D34:H34)","v":0}]
[null,"Ensemble 5",1,null,null,null,null,null,{"$f":"MAX(D35:H35)-MIN(D35:H35)","v":0}]
["Pénalité en points"]
["Erreure(s) de tracé "]
["% Total du juge",null,null,{"$f":"IF(ISBLANK('Info+Engagés'!H2),\"\",D39/0.5-D37)","v":""},{"$f":"IF(ISBLANK('Info+Engagés'!H3),\"\",E39/0.5-E37)","v":""},{"$f":"IF(ISBLANK('Info+Engagés'!H4),\"\",F39/0.5-F37)","v":0},{"$f":"IF(ISBLANK('Info+Engagés'!H5),\"\",G39/0.5-G37)","v":""},{"$f":"IF(ISBLANK('Info+Engagés'!H6),\"\",H39/0.5-H37)","v":""},{"$f":"MAX(D38:H38)-MIN(D38:H38)","v":0}]
["Soit en points",null,null,{"$f":"IF(ISBLANK('Info+Engagés'!H2),\"\",(SUM(D31:D35)-D36))","v":""},{"$f":"IF(ISBLANK('Info+Engagés'!H3),\"\",(SUM(E31:E35)-E36))","v":""},{"$f":"IF(ISBLANK('Info+Engagés'!H4),\"\",(SUM(F31:F35)-F36))","v":0},{"$f":"IF(ISBLANK('Info+Engagés'!H5),\"\",(SUM(G31:G35)-G36))","v":""},{"$f":"IF(ISBLANK('Info+Engagés'!H6),\"\",(SUM(H31:H35)-H36))","v":""}]
["                          Total maxi par juge = 50          1 point correspond à 2,000%              1% correspond en points à : 0,5                                                                  Les notes sont sur 10 et correspondent à la saisie informatique par l'opérateur des protocoles joints, Le total résulte de l'addition des points attribués après application du coefficient et soustraction des points de pénalité encourus après conversion en pourcentage sont déduit les pourcentages de pénalités encourus par suite d'erreurs de tracé pour obtenir le pourcentage par juge."]

{"sheet":"Cav26","index":26,"n_rows":40,"n_cols":9,"rows_kept":40,"cut":false,"hidden":false,"merged":[[36,0,36,2],[37,0,37,2],[38,0,38,2],[39,0,43,8],[9,6,10,6],[9,7,10,7],[10,0,10,1],[35,0,35,2],[9,5,10,5],[30,0,34,0],[11,0,29,0],[8,0,8,1],[9,0,9,1],[9,2,10,2],[9,3,10,3],[9,4,10,4],[4,0,4,1],[4,3,6,4],[4,5,6,6],[4,7,5,7],[4,8,5,8],[5,0,5,1],[6,0,7,1],[6,2,7,2],[6,7,7,7],[6,8,7,8],[0,0,1,2],[0,3,1,6],[0,7,1,8],[2,0,2,2],[2,3,3,4],[2,5,3,6],[3,0,3,2]]}
[{"$f":"'Info+Engagés'!B3","v":"Quel Lieu (Dép)"},null,null,{"$f":"'Info+Engagés'!B8","v":"Club 4 Imposée"},null,null,null,{"$f":"'Info+Engagés'!B2","v":"Quelle Date"}]
[]
["N° de concours",null,null,"Cheval",null,"Cavalier",null,"Note d’ensemble"]
[{"$f":"'Info+Engagés'!B4","v":"Quel N°"},null,null,null,null,null,null,"Points",{"$f":"SUM(D39:H39)","v":0}]
["Épreuve N°",null,{"$f":"'Info+Engagés'!B5","v":"Quel N°"},{"$f":"'Info+Engagés'!B37","v":0},null,{"$f":"'Info+Engagés'!G37","v":0},null,"% Final",{"$f":"AVERAGE(D38:H38)","v":0}]
["Piste  ",null,{"$f":"'Info+Engagés'!B6","v":"Piste ?"}]
["N° Départ BO",null,{"$f":"'Info+Engagés'!A37","v":0},null,null,null,null,"Classement"]
[]
["Imprimé le :",null,null,"Juge E","Juge H","Juge C","Juge M","Juge B"]
[{"$f":"TODAY()","v":"2017-02-17"},null,"Coéff .",{"$f":"IF(ISBLANK('Info+Engagés'!H2),\"\",('Info+Engagés'!H2))","v":""},{"$f":"IF(ISBLANK('Info+Engagés'!H3),\"\",('Info+Engagés'!H3))","v":""},{"$f":"IF(ISBLANK('Info+Engagés'!H4),\"\",('Info+Engagés'!H4))","v":"X"},{"$f":"IF(ISBLANK('Info+Engagés'!H5),\"\",('Info+Engagés'!H5))","v":""},{"$f":"IF(ISBLANK('Info+Engagés'!H6),\"\",('Info+Engagés'!H6))","v":""}]
[{"$f":"NOW()","v":42783.749748032409},null,null,null,null,null,null,null,"écart Max"]
["Notation figures","Figure 1",0,null,null,null,null,null,{"$f":"MAX(D12:H12)-MIN(D12:H12)","v":0}]
[null,"Figure 2",0,null,null,null,null,null,0]
[null,"Figure 3",0,null,null,null,null,null,0]
[null,"Figure 4",0,null,null,null,null,null,0]
[null,"Figure 5",0,null,null,null,null,null,0]
[null,"Figure 6",0,null,null,null,null,null,0]
[null,"Figure 7",0,null,null,null,null,null,0]
[null,"Figure 8",0,null,null,null,null,null,0]
[null,"Figure 9",0,null,null,null,null,null,0]
[null,"Figure 10",0,null,null,null,null,null,0]
[null,"Figure 11",0,null,null,null,null,null,0]
[null,"Figure 12",0,null,null,null,null,null,0]
[null,"Figure 13",0,null,null,null,null,null,0]
[null,"Figure 14",0,null,null,null,null,null,0]
[null,"Figure 15",0,null,null,null,null,null,0]
[null,"Figure 16",0,null,null,null,null,null,0]
[null,"Figure 17",0,null,null,null,null,null,0]
[null,"Figure 18",0,null,null,null,null,null,0]
[null,"Figure 19",0,null,null,null,null,null,0]
[" Critéres d'appréciation","Ensemble 1",1,null,null,null,null,null,0]
[null,"Ensemble 2",1,null,null,null,null,null,0]
[null,"Ensemble 3",1,null,null,null,null,null,0]
[null,"Ensemble 4",1,null,null,null,null,null,{"$f":"MAX(D34:H34)-MIN(D34:H34)","v":0}]
[null,"Ensemble 5",1,null,null,null,null,null,{"$f":"MAX(D35:H35)-MIN(D35:H35)","v":0}]
["Pénalité en points"]
["Erreure(s) de tracé "]
["% Total du juge",null,null,{"$f":"IF(ISBLANK('Info+Engagés'!H2),\"\",D39/0.5-D37)","v":""},{"$f":"IF(ISBLANK('Info+Engagés'!H3),\"\",E39/0.5-E37)","v":""},{"$f":"IF(ISBLANK('Info+Engagés'!H4),\"\",F39/0.5-F37)","v":0},{"$f":"IF(ISBLANK('Info+Engagés'!H5),\"\",G39/0.5-G37)","v":""},{"$f":"IF(ISBLANK('Info+Engagés'!H6),\"\",H39/0.5-H37)","v":""},{"$f":"MAX(D38:H38)-MIN(D38:H38)","v":0}]
["Soit en points",null,null,{"$f":"IF(ISBLANK('Info+Engagés'!H2),\"\",(SUM(D31:D35)-D36))","v":""},{"$f":"IF(ISBLANK('Info+Engagés'!H3),\"\",(SUM(E31:E35)-E36))","v":""},{"$f":"IF(ISBLANK('Info+Engagés'!H4),\"\",(SUM(F31:F35)-F36))","v":0},{"$f":"IF(ISBLANK('Info+Engagés'!H5),\"\",(SUM(G31:G35)-G36))","v":""},{"$f":"IF(ISBLANK('Info+Engagés'!H6),\"\",(SUM(H31:H35)-H36))","v":""}]
["                          Total maxi par juge = 50          1 point correspond à 2,000%              1% correspond en points à : 0,5                                                                  Les notes sont sur 10 et correspondent à la saisie informatique par l'opérateur des protocoles joints, Le total résulte de l'addition des points attribués après application du coefficient et soustraction des points de pénalité encourus après conversion en pourcentage sont déduit les pourcentages de pénalités encourus par suite d'erreurs de tracé pour obtenir le pourcentage par juge."]

{"sheet":"Cav27","index":27,"n_rows":40,"n_cols":9,"rows_kept":40,"cut":false,"hidden":false,"merged":[[36,0,36,2],[37,0,37,2],[38,0,38,2],[39,0,43,8],[9,6,10,6],[9,7,10,7],[10,0,10,1],[35,0,35,2],[9,5,10,5],[30,0,34,0],[11,0,29,0],[8,0,8,1],[9,0,9,1],[9,2,10,2],[9,3,10,3],[9,4,10,4],[4,0,4,1],[4,3,6,4],[4,5,6,6],[4,7,5,7],[4,8,5,8],[5,0,5,1],[6,0,7,1],[6,2,7,2],[6,7,7,7],[6,8,7,8],[0,0,1,2],[0,3,1,6],[0,7,1,8],[2,0,2,2],[2,3,3,4],[2,5,3,6],[3,0,3,2]]}
[{"$f":"'Info+Engagés'!B3","v":"Quel Lieu (Dép)"},null,null,{"$f":"'Info+Engagés'!B8","v":"Club 4 Imposée"},null,null,null,{"$f":"'Info+Engagés'!B2","v":"Quelle Date"}]
[]
["N° de concours",null,null,"Cheval",null,"Cavalier",null,"Note d’ensemble"]
[{"$f":"'Info+Engagés'!B4","v":"Quel N°"},null,null,null,null,null,null,"Points",{"$f":"SUM(D39:H39)","v":0}]
["Épreuve N°",null,{"$f":"'Info+Engagés'!B5","v":"Quel N°"},{"$f":"'Info+Engagés'!B38","v":0},null,{"$f":"'Info+Engagés'!G38","v":0},null,"% Final",{"$f":"AVERAGE(D38:H38)","v":0}]
["Piste  ",null,{"$f":"'Info+Engagés'!B6","v":"Piste ?"}]
["N° Départ BO",null,{"$f":"'Info+Engagés'!A38","v":0},null,null,null,null,"Classement"]
[]
["Imprimé le :",null,null,"Juge E","Juge H","Juge C","Juge M","Juge B"]
[{"$f":"TODAY()","v":"2017-02-17"},null,"Coéff .",{"$f":"IF(ISBLANK('Info+Engagés'!H2),\"\",('Info+Engagés'!H2))","v":""},{"$f":"IF(ISBLANK('Info+Engagés'!H3),\"\",('Info+Engagés'!H3))","v":""},{"$f":"IF(ISBLANK('Info+Engagés'!H4),\"\",('Info+Engagés'!H4))","v":"X"},{"$f":"IF(ISBLANK('Info+Engagés'!H5),\"\",('Info+Engagés'!H5))","v":""},{"$f":"IF(ISBLANK('Info+Engagés'!H6),\"\",('Info+Engagés'!H6))","v":""}]
[{"$f":"NOW()","v":42783.749748032409},null,null,null,null,null,null,null,"écart Max"]
["Notation figures","Figure 1",0,null,null,null,null,null,{"$f":"MAX(D12:H12)-MIN(D12:H12)","v":0}]
[null,"Figure 2",0,null,null,null,null,null,0]
[null,"Figure 3",0,null,null,null,null,null,0]
[null,"Figure 4",0,null,null,null,null,null,0]
[null,"Figure 5",0,null,null,null,null,null,0]
[null,"Figure 6",0,null,null,null,null,null,0]
[null,"Figure 7",0,null,null,null,null,null,0]
[null,"Figure 8",0,null,null,null,null,null,0]
[null,"Figure 9",0,null,null,null,null,null,0]
[null,"Figure 10",0,null,null,null,null,null,0]
[null,"Figure 11",0,null,null,null,null,null,0]
[null,"Figure 12",0,null,null,null,null,null,0]
[null,"Figure 13",0,null,null,null,null,null,0]
[null,"Figure 14",0,null,null,null,null,null,0]
[null,"Figure 15",0,null,null,null,null,null,0]
[null,"Figure 16",0,null,null,null,null,null,0]
[null,"Figure 17",0,null,null,null,null,null,0]
[null,"Figure 18",0,null,null,null,null,null,0]
[null,"Figure 19",0,null,null,null,null,null,0]
[" Critéres d'appréciation","Ensemble 1",1,null,null,null,null,null,0]
[null,"Ensemble 2",1,null,null,null,null,null,0]
[null,"Ensemble 3",1,null,null,null,null,null,0]
[null,"Ensemble 4",1,null,null,null,null,null,{"$f":"MAX(D34:H34)-MIN(D34:H34)","v":0}]
[null,"Ensemble 5",1,null,null,null,null,null,{"$f":"MAX(D35:H35)-MIN(D35:H35)","v":0}]
["Pénalité en points"]
["Erreure(s) de tracé "]
["% Total du juge",null,null,{"$f":"IF(ISBLANK('Info+Engagés'!H2),\"\",D39/0.5-D37)","v":""},{"$f":"IF(ISBLANK('Info+Engagés'!H3),\"\",E39/0.5-E37)","v":""},{"$f":"IF(ISBLANK('Info+Engagés'!H4),\"\",F39/0.5-F37)","v":0},{"$f":"IF(ISBLANK('Info+Engagés'!H5),\"\",G39/0.5-G37)","v":""},{"$f":"IF(ISBLANK('Info+Engagés'!H6),\"\",H39/0.5-H37)","v":""},{"$f":"MAX(D38:H38)-MIN(D38:H38)","v":0}]
["Soit en points",null,null,{"$f":"IF(ISBLANK('Info+Engagés'!H2),\"\",(SUM(D31:D35)-D36))","v":""},{"$f":"IF(ISBLANK('Info+Engagés'!H3),\"\",(SUM(E31:E35)-E36))","v":""},{"$f":"IF(ISBLANK('Info+Engagés'!H4),\"\",(SUM(F31:F35)-F36))","v":0},{"$f":"IF(ISBLANK('Info+Engagés'!H5),\"\",(SUM(G31:G35)-G36))","v":""},{"$f":"IF(ISBLANK('Info+Engagés'!H6),\"\",(SUM(H31:H35)-H36))","v":""}]
["                          Total maxi par juge = 50          1 point correspond à 2,000%              1% correspond en points à : 0,5                                                                  Les notes sont sur 10 et correspondent à la saisie informatique par l'opérateur des protocoles joints, Le total résulte de l'addition des points attribués après application du coefficient et soustraction des points de pénalité encourus après conversion en pourcentage sont déduit les pourcentages de pénalités encourus par suite d'erreurs de tracé pour obtenir le pourcentage par juge."]

{"sheet":"Cav28","index":28,"n_rows":40,"n_cols":9,"rows_kept":40,"cut":false,"hidden":false,"merged":[[36,0,36,2],[37,0,37,2],[38,0,38,2],[39,0,43,8],[9,6,10,6],[9,7,10,7],[10,0,10,1],[35,0,35,2],[9,5,10,5],[30,0,34,0],[11,0,29,0],[8,0,8,1],[9,0,9,1],[9,2,10,2],[9,3,10,3],[9,4,10,4],[4,0,4,1],[4,3,6,4],[4,5,6,6],[4,7,5,7],[4,8,5,8],[5,0,5,1],[6,0,7,1],[6,2,7,2],[6,7,7,7],[6,8,7,8],[0,0,1,2],[0,3,1,6],[0,7,1,8],[2,0,2,2],[2,3,3,4],[2,5,3,6],[3,0,3,2]]}
[{"$f":"'Info+Engagés'!B3","v":"Quel Lieu (Dép)"},null,null,{"$f":"'Info+Engagés'!B8","v":"Club 4 Imposée"},null,null,null,{"$f":"'Info+Engagés'!B2","v":"Quelle Date"}]
[]
["N° de concours",null,null,"Cheval",null,"Cavalier",null,"Note d’ensemble"]
[{"$f":"'Info+Engagés'!B4","v":"Quel N°"},null,null,null,null,null,null,"Points",{"$f":"SUM(D39:H39)","v":0}]
["Épreuve N°",null,{"$f":"'Info+Engagés'!B5","v":"Quel N°"},{"$f":"'Info+Engagés'!B39","v":0},null,{"$f":"'Info+Engagés'!G39","v":0},null,"% Final",{"$f":"AVERAGE(D38:H38)","v":0}]
["Piste  ",null,{"$f":"'Info+Engagés'!B6","v":"Piste ?"}]
["N° Départ BO",null,{"$f":"'Info+Engagés'!A39","v":0},null,null,null,null,"Classement"]
[]
["Imprimé le :",null,null,"Juge E","Juge H","Juge C","Juge M","Juge B"]
[{"$f":"TODAY()","v":"2017-02-17"},null,"Coéff .",{"$f":"IF(ISBLANK('Info+Engagés'!H2),\"\",('Info+Engagés'!H2))","v":""},{"$f":"IF(ISBLANK('Info+Engagés'!H3),\"\",('Info+Engagés'!H3))","v":""},{"$f":"IF(ISBLANK('Info+Engagés'!H4),\"\",('Info+Engagés'!H4))","v":"X"},{"$f":"IF(ISBLANK('Info+Engagés'!H5),\"\",('Info+Engagés'!H5))","v":""},{"$f":"IF(ISBLANK('Info+Engagés'!H6),\"\",('Info+Engagés'!H6))","v":""}]
[{"$f":"NOW()","v":42783.749748032409},null,null,null,null,null,null,null,"écart Max"]
["Notation figures","Figure 1",0,null,null,null,null,null,{"$f":"MAX(D12:H12)-MIN(D12:H12)","v":0}]
[null,"Figure 2",0,null,null,null,null,null,0]
[null,"Figure 3",0,null,null,null,null,null,0]
[null,"Figure 4",0,null,null,null,null,null,0]
[null,"Figure 5",0,null,null,null,null,null,0]
[null,"Figure 6",0,null,null,null,null,null,0]
[null,"Figure 7",0,null,null,null,null,null,0]
[null,"Figure 8",0,null,null,null,null,null,0]
[null,"Figure 9",0,null,null,null,null,null,0]
[null,"Figure 10",0,null,null,null,null,null,0]
[null,"Figure 11",0,null,null,null,null,null,0]
[null,"Figure 12",0,null,null,null,null,null,0]
[null,"Figure 13",0,null,null,null,null,null,0]
[null,"Figure 14",0,null,null,null,null,null,0]
[null,"Figure 15",0,null,null,null,null,null,0]
[null,"Figure 16",0,null,null,null,null,null,0]
[null,"Figure 17",0,null,null,null,null,null,0]
[null,"Figure 18",0,null,null,null,null,null,0]
[null,"Figure 19",0,null,null,null,null,null,0]
[" Critéres d'appréciation","Ensemble 1",1,null,null,null,null,null,0]
[null,"Ensemble 2",1,null,null,null,null,null,0]
[null,"Ensemble 3",1,null,null,null,null,null,0]
[null,"Ensemble 4",1,null,null,null,null,null,{"$f":"MAX(D34:H34)-MIN(D34:H34)","v":0}]
[null,"Ensemble 5",1,null,null,null,null,null,{"$f":"MAX(D35:H35)-MIN(D35:H35)","v":0}]
["Pénalité en points"]
["Erreure(s) de tracé "]
["% Total du juge",null,null,{"$f":"IF(ISBLANK('Info+Engagés'!H2),\"\",D39/0.5-D37)","v":""},{"$f":"IF(ISBLANK('Info+Engagés'!H3),\"\",E39/0.5-E37)","v":""},{"$f":"IF(ISBLANK('Info+Engagés'!H4),\"\",F39/0.5-F37)","v":0},{"$f":"IF(ISBLANK('Info+Engagés'!H5),\"\",G39/0.5-G37)","v":""},{"$f":"IF(ISBLANK('Info+Engagés'!H6),\"\",H39/0.5-H37)","v":""},{"$f":"MAX(D38:H38)-MIN(D38:H38)","v":0}]
["Soit en points",null,null,{"$f":"IF(ISBLANK('Info+Engagés'!H2),\"\",(SUM(D31:D35)-D36))","v":""},{"$f":"IF(ISBLANK('Info+Engagés'!H3),\"\",(SUM(E31:E35)-E36))","v":""},{"$f":"IF(ISBLANK('Info+Engagés'!H4),\"\",(SUM(F31:F35)-F36))","v":0},{"$f":"IF(ISBLANK('Info+Engagés'!H5),\"\",(SUM(G31:G35)-G36))","v":""},{"$f":"IF(ISBLANK('Info+Engagés'!H6),\"\",(SUM(H31:H35)-H36))","v":""}]
["                          Total maxi par juge = 50          1 point correspond à 2,000%              1% correspond en points à : 0,5                                                                  Les notes sont sur 10 et correspondent à la saisie informatique par l'opérateur des protocoles joints, Le total résulte de l'addition des points attribués après application du coefficient et soustraction des points de pénalité encourus après conversion en pourcentage sont déduit les pourcentages de pénalités encourus par suite d'erreurs de tracé pour obtenir le pourcentage par juge."]

{"sheet":"Cav29","index":29,"n_rows":40,"n_cols":9,"rows_kept":40,"cut":false,"hidden":false,"merged":[[36,0,36,2],[37,0,37,2],[38,0,38,2],[39,0,43,8],[9,6,10,6],[9,7,10,7],[10,0,10,1],[35,0,35,2],[9,5,10,5],[30,0,34,0],[11,0,29,0],[8,0,8,1],[9,0,9,1],[9,2,10,2],[9,3,10,3],[9,4,10,4],[4,0,4,1],[4,3,6,4],[4,5,6,6],[4,7,5,7],[4,8,5,8],[5,0,5,1],[6,0,7,1],[6,2,7,2],[6,7,7,7],[6,8,7,8],[0,0,1,2],[0,3,1,6],[0,7,1,8],[2,0,2,2],[2,3,3,4],[2,5,3,6],[3,0,3,2]]}
[{"$f":"'Info+Engagés'!B3","v":"Quel Lieu (Dép)"},null,null,{"$f":"'Info+Engagés'!B8","v":"Club 4 Imposée"},null,null,null,{"$f":"'Info+Engagés'!B2","v":"Quelle Date"}]
[]
["N° de concours",null,null,"Cheval",null,"Cavalier",null,"Note d’ensemble"]
[{"$f":"'Info+Engagés'!B4","v":"Quel N°"},null,null,null,null,null,null,"Points",{"$f":"SUM(D39:H39)","v":0}]
["Épreuve N°",null,{"$f":"'Info+Engagés'!B5","v":"Quel N°"},{"$f":"'Info+Engagés'!B40","v":0},null,{"$f":"'Info+Engagés'!G40","v":0},null,"% Final",{"$f":"AVERAGE(D38:H38)","v":0}]
["Piste  ",null,{"$f":"'Info+Engagés'!B6","v":"Piste ?"}]
["N° Départ BO",null,{"$f":"'Info+Engagés'!A40","v":0},null,null,null,null,"Classement"]
[]
["Imprimé le :",null,null,"Juge E","Juge H","Juge C","Juge M","Juge B"]
[{"$f":"TODAY()","v":"2017-02-17"},null,"Coéff .",{"$f":"IF(ISBLANK('Info+Engagés'!H2),\"\",('Info+Engagés'!H2))","v":""},{"$f":"IF(ISBLANK('Info+Engagés'!H3),\"\",('Info+Engagés'!H3))","v":""},{"$f":"IF(ISBLANK('Info+Engagés'!H4),\"\",('Info+Engagés'!H4))","v":"X"},{"$f":"IF(ISBLANK('Info+Engagés'!H5),\"\",('Info+Engagés'!H5))","v":""},{"$f":"IF(ISBLANK('Info+Engagés'!H6),\"\",('Info+Engagés'!H6))","v":""}]
[{"$f":"NOW()","v":42783.749748032409},null,null,null,null,null,null,null,"écart Max"]
["Notation figures","Figure 1",0,null,null,null,null,null,{"$f":"MAX(D12:H12)-MIN(D12:H12)","v":0}]
[null,"Figure 2",0,null,null,null,null,null,0]
[null,"Figure 3",0,null,null,null,null,null,0]
[null,"Figure 4",0,null,null,null,null,null,0]
[null,"Figure 5",0,null,null,null,null,null,0]
[null,"Figure 6",0,null,null,null,null,null,0]
[null,"Figure 7",0,null,null,null,null,null,0]
[null,"Figure 8",0,null,null,null,null,null,0]
[null,"Figure 9",0,null,null,null,null,null,0]
[null,"Figure 10",0,null,null,null,null,null,0]
[null,"Figure 11",0,null,null,null,null,null,0]
[null,"Figure 12",0,null,null,null,null,null,0]
[null,"Figure 13",0,null,null,null,null,null,0]
[null,"Figure 14",0,null,null,null,null,null,0]
[null,"Figure 15",0,null,null,null,null,null,0]
[null,"Figure 16",0,null,null,null,null,null,0]
[null,"Figure 17",0,null,null,null,null,null,0]
[null,"Figure 18",0,null,null,null,null,null,0]
[null,"Figure 19",0,null,null,null,null,null,0]
[" Critéres d'appréciation","Ensemble 1",1,null,null,null,null,null,0]
[null,"Ensemble 2",1,null,null,null,null,null,0]
[null,"Ensemble 3",1,null,null,null,null,null,0]
[null,"Ensemble 4",1,null,null,null,null,null,{"$f":"MAX(D34:H34)-MIN(D34:H34)","v":0}]
[null,"Ensemble 5",1,null,null,null,null,null,{"$f":"MAX(D35:H35)-MIN(D35:H35)","v":0}]
["Pénalité en points"]
["Erreure(s) de tracé "]
["% Total du juge",null,null,{"$f":"IF(ISBLANK('Info+Engagés'!H2),\"\",D39/0.5-D37)","v":""},{"$f":"IF(ISBLANK('Info+Engagés'!H3),\"\",E39/0.5-E37)","v":""},{"$f":"IF(ISBLANK('Info+Engagés'!H4),\"\",F39/0.5-F37)","v":0},{"$f":"IF(ISBLANK('Info+Engagés'!H5),\"\",G39/0.5-G37)","v":""},{"$f":"IF(ISBLANK('Info+Engagés'!H6),\"\",H39/0.5-H37)","v":""},{"$f":"MAX(D38:H38)-MIN(D38:H38)","v":0}]
["Soit en points",null,null,{"$f":"IF(ISBLANK('Info+Engagés'!H2),\"\",(SUM(D31:D35)-D36))","v":""},{"$f":"IF(ISBLANK('Info+Engagés'!H3),\"\",(SUM(E31:E35)-E36))","v":""},{"$f":"IF(ISBLANK('Info+Engagés'!H4),\"\",(SUM(F31:F35)-F36))","v":0},{"$f":"IF(ISBLANK('Info+Engagés'!H5),\"\",(SUM(G31:G35)-G36))","v":""},{"$f":"IF(ISBLANK('Info+Engagés'!H6),\"\",(SUM(H31:H35)-H36))","v":""}]
["                          Total maxi par juge = 50          1 point correspond à 2,000%              1% correspond en points à : 0,5                                                                  Les notes sont sur 10 et correspondent à la saisie informatique par l'opérateur des protocoles joints, Le total résulte de l'addition des points attribués après application du coefficient et soustraction des points de pénalité encourus après conversion en pourcentage sont déduit les pourcentages de pénalités encourus par suite d'erreurs de tracé pour obtenir le pourcentage par juge."]

{"sheet":"Cav30","index":30,"n_rows":40,"n_cols":9,"rows_kept":40,"cut":false,"hidden":false,"merged":[[36,0,36,2],[37,0,37,2],[38,0,38,2],[39,0,43,8],[9,6,10,6],[9,7,10,7],[10,0,10,1],[35,0,35,2],[9,5,10,5],[30,0,34,0],[11,0,29,0],[8,0,8,1],[9,0,9,1],[9,2,10,2],[9,3,10,3],[9,4,10,4],[4,0,4,1],[4,3,6,4],[4,5,6,6],[4,7,5,7],[4,8,5,8],[5,0,5,1],[6,0,7,1],[6,2,7,2],[6,7,7,7],[6,8,7,8],[0,0,1,2],[0,3,1,6],[0,7,1,8],[2,0,2,2],[2,3,3,4],[2,5,3,6],[3,0,3,2]]}
[{"$f":"'Info+Engagés'!B3","v":"Quel Lieu (Dép)"},null,null,{"$f":"'Info+Engagés'!B8","v":"Club 4 Imposée"},null,null,null,{"$f":"'Info+Engagés'!B2","v":"Quelle Date"}]
[]
["N° de concours",null,null,"Cheval",null,"Cavalier",null,"Note d’ensemble"]
[{"$f":"'Info+Engagés'!B4","v":"Quel N°"},null,null,null,null,null,null,"Points",{"$f":"SUM(D39:H39)","v":0}]
["Épreuve N°",null,{"$f":"'Info+Engagés'!B5","v":"Quel N°"},{"$f":"'Info+Engagés'!B41","v":0},null,{"$f":"'Info+Engagés'!G41","v":0},null,"% Final",{"$f":"AVERAGE(D38:H38)","v":0}]
["Piste  ",null,{"$f":"'Info+Engagés'!B6","v":"Piste ?"}]
["N° Départ BO",null,{"$f":"'Info+Engagés'!A41","v":0},null,null,null,null,"Classement"]
[]
["Imprimé le :",null,null,"Juge E","Juge H","Juge C","Juge M","Juge B"]
[{"$f":"TODAY()","v":"2017-02-17"},null,"Coéff .",{"$f":"IF(ISBLANK('Info+Engagés'!H2),\"\",('Info+Engagés'!H2))","v":""},{"$f":"IF(ISBLANK('Info+Engagés'!H3),\"\",('Info+Engagés'!H3))","v":""},{"$f":"IF(ISBLANK('Info+Engagés'!H4),\"\",('Info+Engagés'!H4))","v":"X"},{"$f":"IF(ISBLANK('Info+Engagés'!H5),\"\",('Info+Engagés'!H5))","v":""},{"$f":"IF(ISBLANK('Info+Engagés'!H6),\"\",('Info+Engagés'!H6))","v":""}]
[{"$f":"NOW()","v":42783.749748032409},null,null,null,null,null,null,null,"écart Max"]
["Notation figures","Figure 1",0,null,null,null,null,null,{"$f":"MAX(D12:H12)-MIN(D12:H12)","v":0}]
[null,"Figure 2",0,null,null,null,null,null,0]
[null,"Figure 3",0,null,null,null,null,null,0]
[null,"Figure 4",0,null,null,null,null,null,0]
[null,"Figure 5",0,null,null,null,null,null,0]
[null,"Figure 6",0,null,null,null,null,null,0]
[null,"Figure 7",0,null,null,null,null,null,0]
[null,"Figure 8",0,null,null,null,null,null,0]
[null,"Figure 9",0,null,null,null,null,null,0]
[null,"Figure 10",0,null,null,null,null,null,0]
[null,"Figure 11",0,null,null,null,null,null,0]
[null,"Figure 12",0,null,null,null,null,null,0]
[null,"Figure 13",0,null,null,null,null,null,0]
[null,"Figure 14",0,null,null,null,null,null,0]
[null,"Figure 15",0,null,null,null,null,null,0]
[null,"Figure 16",0,null,null,null,null,null,0]
[null,"Figure 17",0,null,null,null,null,null,0]
[null,"Figure 18",0,null,null,null,null,null,0]
[null,"Figure 19",0,null,null,null,null,null,0]
[" Critéres d'appréciation","Ensemble 1",1,null,null,null,null,null,0]
[null,"Ensemble 2",1,null,null,null,null,null,0]
[null,"Ensemble 3",1,null,null,null,null,null,0]
[null,"Ensemble 4",1,null,null,null,null,null,{"$f":"MAX(D34:H34)-MIN(D34:H34)","v":0}]
[null,"Ensemble 5",1,null,null,null,null,null,{"$f":"MAX(D35:H35)-MIN(D35:H35)","v":0}]
["Pénalité en points"]
["Erreure(s) de tracé "]
["% Total du juge",null,null,{"$f":"IF(ISBLANK('Info+Engagés'!H2),\"\",D39/0.5-D37)","v":""},{"$f":"IF(ISBLANK('Info+Engagés'!H3),\"\",E39/0.5-E37)","v":""},{"$f":"IF(ISBLANK('Info+Engagés'!H4),\"\",F39/0.5-F37)","v":0},{"$f":"IF(ISBLANK('Info+Engagés'!H5),\"\",G39/0.5-G37)","v":""},{"$f":"IF(ISBLANK('Info+Engagés'!H6),\"\",H39/0.5-H37)","v":""},{"$f":"MAX(D38:H38)-MIN(D38:H38)","v":0}]
["Soit en points",null,null,{"$f":"IF(ISBLANK('Info+Engagés'!H2),\"\",(SUM(D31:D35)-D36))","v":""},{"$f":"IF(ISBLANK('Info+Engagés'!H3),\"\",(SUM(E31:E35)-E36))","v":""},{"$f":"IF(ISBLANK('Info+Engagés'!H4),\"\",(SUM(F31:F35)-F36))","v":0},{"$f":"IF(ISBLANK('Info+Engagés'!H5),\"\",(SUM(G31:G35)-G36))","v":""},{"$f":"IF(ISBLANK('Info+Engagés'!H6),\"\",(SUM(H31:H35)-H36))","v":""}]
["                          Total maxi par juge = 50          1 point correspond à 2,000%              1% correspond en points à : 0,5                                                                  Les notes sont sur 10 et correspondent à la saisie informatique par l'opérateur des protocoles joints, Le total résulte de l'addition des points attribués après application du coefficient et soustraction des points de pénalité encourus après conversion en pourcentage sont déduit les pourcentages de pénalités encourus par suite d'erreurs de tracé pour obtenir le pourcentage par juge."]

{"sheet":"Cav31","index":31,"n_rows":40,"n_cols":9,"rows_kept":40,"cut":false,"hidden":false,"merged":[[0,0,1,2],[0,3,1,6],[0,7,1,8],[2,0,2,2],[2,3,3,4],[2,5,3,6],[3,0,3,2],[4,0,4,1],[4,3,6,4],[4,5,6,6],[4,7,5,7],[4,8,5,8],[5,0,5,1],[6,0,7,1],[6,2,7,2],[6,7,7,7],[6,8,7,8],[8,0,8,1],[9,0,9,1],[9,2,10,2],[9,3,10,3],[9,4,10,4],[36,0,36,2],[37,0,37,2],[38,0,38,2],[39,0,43,8],[9,6,10,6],[9,7,10,7],[10,0,10,1],[35,0,35,2],[9,5,10,5],[30,0,34,0],[11,0,29,0]]}
[{"$f":"'Info+Engagés'!B3","v":"Quel Lieu (Dép)"},null,null,{"$f":"'Info+Engagés'!B8","v":"Club 4 Imposée"},null,null,null,{"$f":"'Info+Engagés'!B2","v":"Quelle Date"}]
[]
["N° de concours",null,null,"Cheval",null,"Cavalier",null,"Note d’ensemble"]
[{"$f":"'Info+Engagés'!B4","v":"Quel N°"},null,null,null,null,null,null,"Points",{"$f":"SUM(D39:H39)","v":0}]
["Épreuve N°",null,{"$f":"'Info+Engagés'!B5","v":"Quel N°"},{"$f":"'Info+Engagés'!B42","v":0},null,{"$f":"'Info+Engagés'!G42","v":0},null,"% Final",{"$f":"AVERAGE(D38:H38)","v":0}]
["Piste  ",null,{"$f":"'Info+Engagés'!B6","v":"Piste ?"}]
["N° Départ BO",null,{"$f":"'Info+Engagés'!A42","v":0},null,null,null,null,"Classement"]
[]
["Imprimé le :",null,null,"Juge E","Juge H","Juge C","Juge M","Juge B"]
[{"$f":"TODAY()","v":"2017-02-17"},null,"Coéff .",{"$f":"IF(ISBLANK('Info+Engagés'!H2),\"\",('Info+Engagés'!H2))","v":""},{"$f":"IF(ISBLANK('Info+Engagés'!H3),\"\",('Info+Engagés'!H3))","v":""},{"$f":"IF(ISBLANK('Info+Engagés'!H4),\"\",('Info+Engagés'!H4))","v":"X"},{"$f":"IF(ISBLANK('Info+Engagés'!H5),\"\",('Info+Engagés'!H5))","v":""},{"$f":"IF(ISBLANK('Info+Engagés'!H6),\"\",('Info+Engagés'!H6))","v":""}]
[{"$f":"NOW()","v":42783.749748032409},null,null,null,null,null,null,null,"écart Max"]
["Notation figures","Figure 1",0,null,null,null,null,null,{"$f":"MAX(D12:H12)-MIN(D12:H12)","v":0}]
[null,"Figure 2",0,null,null,null,null,null,0]
[null,"Figure 3",0,null,null,null,null,null,0]
[null,"Figure 4",0,null,null,null,null,null,0]
[null,"Figure 5",0,null,null,null,null,null,0]
[null,"Figure 6",0,null,null,null,null,null,0]
[null,"Figure 7",0,null,null,null,null,null,0]
[null,"Figure 8",0,null,null,null,null,null,0]
[null,"Figure 9",0,null,null,null,null,null,0]
[null,"Figure 10",0,null,null,null,null,null,0]
[null,"Figure 11",0,null,null,null,null,null,0]
[null,"Figure 12",0,null,null,null,null,null,0]
[null,"Figure 13",0,null,null,null,null,null,0]
[null,"Figure 14",0,null,null,null,null,null,0]
[null,"Figure 15",0,null,null,null,null,null,0]
[null,"Figure 16",0,null,null,null,null,null,0]
[null,"Figure 17",0,null,null,null,null,null,0]
[null,"Figure 18",0,null,null,null,null,null,0]
[null,"Figure 19",0,null,null,null,null,null,0]
[" Critéres d'appréciation","Ensemble 1",1,null,null,null,null,null,0]
[null,"Ensemble 2",1,null,null,null,null,null,0]
[null,"Ensemble 3",1,null,null,null,null,null,0]
[null,"Ensemble 4",1,null,null,null,null,null,{"$f":"MAX(D34:H34)-MIN(D34:H34)","v":0}]
[null,"Ensemble 5",1,null,null,null,null,null,{"$f":"MAX(D35:H35)-MIN(D35:H35)","v":0}]
["Pénalité en points"]
["Erreure(s) de tracé "]
["% Total du juge",null,null,{"$f":"IF(ISBLANK('Info+Engagés'!H2),\"\",D39/0.5-D37)","v":""},{"$f":"IF(ISBLANK('Info+Engagés'!H3),\"\",E39/0.5-E37)","v":""},{"$f":"IF(ISBLANK('Info+Engagés'!H4),\"\",F39/0.5-F37)","v":0},{"$f":"IF(ISBLANK('Info+Engagés'!H5),\"\",G39/0.5-G37)","v":""},{"$f":"IF(ISBLANK('Info+Engagés'!H6),\"\",H39/0.5-H37)","v":""},{"$f":"MAX(D38:H38)-MIN(D38:H38)","v":0}]
["Soit en points",null,null,{"$f":"IF(ISBLANK('Info+Engagés'!H2),\"\",(SUM(D31:D35)-D36))","v":""},{"$f":"IF(ISBLANK('Info+Engagés'!H3),\"\",(SUM(E31:E35)-E36))","v":""},{"$f":"IF(ISBLANK('Info+Engagés'!H4),\"\",(SUM(F31:F35)-F36))","v":0},{"$f":"IF(ISBLANK('Info+Engagés'!H5),\"\",(SUM(G31:G35)-G36))","v":""},{"$f":"IF(ISBLANK('Info+Engagés'!H6),\"\",(SUM(H31:H35)-H36))","v":""}]
["                          Total maxi par juge = 50          1 point correspond à 2,000%              1% correspond en points à : 0,5                                                                  Les notes sont sur 10 et correspondent à la saisie informatique par l'opérateur des protocoles joints, Le total résulte de l'addition des points attribués après application du coefficient et soustraction des points de pénalité encourus après conversion en pourcentage sont déduit les pourcentages de pénalités encourus par suite d'erreurs de tracé pour obtenir le pourcentage par juge."]

{"sheet":"Cav32","index":32,"n_rows":40,"n_cols":9,"rows_kept":40,"cut":false,"hidden":false,"merged":[[0,0,1,2],[0,3,1,6],[0,7,1,8],[2,0,2,2],[2,3,3,4],[2,5,3,6],[3,0,3,2],[4,0,4,1],[4,3,6,4],[4,5,6,6],[4,7,5,7],[4,8,5,8],[5,0,5,1],[6,0,7,1],[6,2,7,2],[6,7,7,7],[6,8,7,8],[8,0,8,1],[9,0,9,1],[9,2,10,2],[9,3,10,3],[9,4,10,4],[36,0,36,2],[37,0,37,2],[38,0,38,2],[39,0,43,8],[9,6,10,6],[9,7,10,7],[10,0,10,1],[35,0,35,2],[9,5,10,5],[30,0,34,0],[11,0,29,0]]}
[{"$f":"'Info+Engagés'!B3","v":"Quel Lieu (Dép)"},null,null,{"$f":"'Info+Engagés'!B8","v":"Club 4 Imposée"},null,null,null,{"$f":"'Info+Engagés'!B2","v":"Quelle Date"}]
[]
["N° de concours",null,null,"Cheval",null,"Cavalier",null,"Note d’ensemble"]
[{"$f":"'Info+Engagés'!B4","v":"Quel N°"},null,null,null,null,null,null,"Points",{"$f":"SUM(D39:H39)","v":0}]
["Épreuve N°",null,{"$f":"'Info+Engagés'!B5","v":"Quel N°"},{"$f":"'Info+Engagés'!B43","v":0},null,{"$f":"'Info+Engagés'!G43","v":0},null,"% Final",{"$f":"AVERAGE(D38:H38)","v":0}]
["Piste  ",null,{"$f":"'Info+Engagés'!B6","v":"Piste ?"}]
["N° Départ BO",null,{"$f":"'Info+Engagés'!A43","v":0},null,null,null,null,"Classement"]
[]
["Imprimé le :",null,null,"Juge E","Juge H","Juge C","Juge M","Juge B"]
[{"$f":"TODAY()","v":"2017-02-17"},null,"Coéff .",{"$f":"IF(ISBLANK('Info+Engagés'!H2),\"\",('Info+Engagés'!H2))","v":""},{"$f":"IF(ISBLANK('Info+Engagés'!H3),\"\",('Info+Engagés'!H3))","v":""},{"$f":"IF(ISBLANK('Info+Engagés'!H4),\"\",('Info+Engagés'!H4))","v":"X"},{"$f":"IF(ISBLANK('Info+Engagés'!H5),\"\",('Info+Engagés'!H5))","v":""},{"$f":"IF(ISBLANK('Info+Engagés'!H6),\"\",('Info+Engagés'!H6))","v":""}]
[{"$f":"NOW()","v":42783.749748032409},null,null,null,null,null,null,null,"écart Max"]
["Notation figures","Figure 1",0,null,null,null,null,null,{"$f":"MAX(D12:H12)-MIN(D12:H12)","v":0}]
[null,"Figure 2",0,null,null,null,null,null,0]
[null,"Figure 3",0,null,null,null,null,null,0]
[null,"Figure 4",0,null,null,null,null,null,0]
[null,"Figure 5",0,null,null,null,null,null,0]
[null,"Figure 6",0,null,null,null,null,null,0]
[null,"Figure 7",0,null,null,null,null,null,0]
[null,"Figure 8",0,null,null,null,null,null,0]
[null,"Figure 9",0,null,null,null,null,null,0]
[null,"Figure 10",0,null,null,null,null,null,0]
[null,"Figure 11",0,null,null,null,null,null,0]
[null,"Figure 12",0,null,null,null,null,null,0]
[null,"Figure 13",0,null,null,null,null,null,0]
[null,"Figure 14",0,null,null,null,null,null,0]
[null,"Figure 15",0,null,null,null,null,null,0]
[null,"Figure 16",0,null,null,null,null,null,0]
[null,"Figure 17",0,null,null,null,null,null,0]
[null,"Figure 18",0,null,null,null,null,null,0]
[null,"Figure 19",0,null,null,null,null,null,0]
[" Critéres d'appréciation","Ensemble 1",1,null,null,null,null,null,0]
[null,"Ensemble 2",1,null,null,null,null,null,0]
[null,"Ensemble 3",1,null,null,null,null,null,0]
[null,"Ensemble 4",1,null,null,null,null,null,{"$f":"MAX(D34:H34)-MIN(D34:H34)","v":0}]
[null,"Ensemble 5",1,null,null,null,null,null,{"$f":"MAX(D35:H35)-MIN(D35:H35)","v":0}]
["Pénalité en points"]
["Erreure(s) de tracé "]
["% Total du juge",null,null,{"$f":"IF(ISBLANK('Info+Engagés'!H2),\"\",D39/0.5-D37)","v":""},{"$f":"IF(ISBLANK('Info+Engagés'!H3),\"\",E39/0.5-E37)","v":""},{"$f":"IF(ISBLANK('Info+Engagés'!H4),\"\",F39/0.5-F37)","v":0},{"$f":"IF(ISBLANK('Info+Engagés'!H5),\"\",G39/0.5-G37)","v":""},{"$f":"IF(ISBLANK('Info+Engagés'!H6),\"\",H39/0.5-H37)","v":""},{"$f":"MAX(D38:H38)-MIN(D38:H38)","v":0}]
["Soit en points",null,null,{"$f":"IF(ISBLANK('Info+Engagés'!H2),\"\",(SUM(D31:D35)-D36))","v":""},{"$f":"IF(ISBLANK('Info+Engagés'!H3),\"\",(SUM(E31:E35)-E36))","v":""},{"$f":"IF(ISBLANK('Info+Engagés'!H4),\"\",(SUM(F31:F35)-F36))","v":0},{"$f":"IF(ISBLANK('Info+Engagés'!H5),\"\",(SUM(G31:G35)-G36))","v":""},{"$f":"IF(ISBLANK('Info+Engagés'!H6),\"\",(SUM(H31:H35)-H36))","v":""}]
["                          Total maxi par juge = 50          1 point correspond à 2,000%              1% correspond en points à : 0,5                                                                  Les notes sont sur 10 et correspondent à la saisie informatique par l'opérateur des protocoles joints, Le total résulte de l'addition des points attribués après application du coefficient et soustraction des points de pénalité encourus après conversion en pourcentage sont déduit les pourcentages de pénalités encourus par suite d'erreurs de tracé pour obtenir le pourcentage par juge."]

{"sheet":"Cav33","index":33,"n_rows":40,"n_cols":9,"rows_kept":40,"cut":false,"hidden":false,"merged":[[0,0,1,2],[0,3,1,6],[0,7,1,8],[2,0,2,2],[2,3,3,4],[2,5,3,6],[3,0,3,2],[4,0,4,1],[4,3,6,4],[4,5,6,6],[4,7,5,7],[4,8,5,8],[5,0,5,1],[6,0,7,1],[6,2,7,2],[6,7,7,7],[6,8,7,8],[8,0,8,1],[9,0,9,1],[9,2,10,2],[9,3,10,3],[9,4,10,4],[36,0,36,2],[37,0,37,2],[38,0,38,2],[39,0,43,8],[9,6,10,6],[9,7,10,7],[10,0,10,1],[35,0,35,2],[9,5,10,5],[30,0,34,0],[11,0,29,0]]}
[{"$f":"'Info+Engagés'!B3","v":"Quel Lieu (Dép)"},null,null,{"$f":"'Info+Engagés'!B8","v":"Club 4 Imposée"},null,null,null,{"$f":"'Info+Engagés'!B2","v":"Quelle Date"}]
[]
["N° de concours",null,null,"Cheval",null,"Cavalier",null,"Note d’ensemble"]
[{"$f":"'Info+Engagés'!B4","v":"Quel N°"},null,null,null,null,null,null,"Points",{"$f":"SUM(D39:H39)","v":0}]
["Épreuve N°",null,{"$f":"'Info+Engagés'!B5","v":"Quel N°"},{"$f":"'Info+Engagés'!B44","v":0},null,{"$f":"'Info+Engagés'!G44","v":0},null,"% Final",{"$f":"AVERAGE(D38:H38)","v":0}]
["Piste  ",null,{"$f":"'Info+Engagés'!B6","v":"Piste ?"}]
["N° Départ BO",null,{"$f":"'Info+Engagés'!A44","v":0},null,null,null,null,"Classement"]
[]
["Imprimé le :",null,null,"Juge E","Juge H","Juge C","Juge M","Juge B"]
[{"$f":"TODAY()","v":"2017-02-17"},null,"Coéff .",{"$f":"IF(ISBLANK('Info+Engagés'!H2),\"\",('Info+Engagés'!H2))","v":""},{"$f":"IF(ISBLANK('Info+Engagés'!H3),\"\",('Info+Engagés'!H3))","v":""},{"$f":"IF(ISBLANK('Info+Engagés'!H4),\"\",('Info+Engagés'!H4))","v":"X"},{"$f":"IF(ISBLANK('Info+Engagés'!H5),\"\",('Info+Engagés'!H5))","v":""},{"$f":"IF(ISBLANK('Info+Engagés'!H6),\"\",('Info+Engagés'!H6))","v":""}]
[{"$f":"NOW()","v":42783.749748032409},null,null,null,null,null,null,null,"écart Max"]
["Notation figures","Figure 1",0,null,null,null,null,null,{"$f":"MAX(D12:H12)-MIN(D12:H12)","v":0}]
[null,"Figure 2",0,null,null,null,null,null,0]
[null,"Figure 3",0,null,null,null,null,null,0]
[null,"Figure 4",0,null,null,null,null,null,0]
[null,"Figure 5",0,null,null,null,null,null,0]
[null,"Figure 6",0,null,null,null,null,null,0]
[null,"Figure 7",0,null,null,null,null,null,0]
[null,"Figure 8",0,null,null,null,null,null,0]
[null,"Figure 9",0,null,null,null,null,null,0]
[null,"Figure 10",0,null,null,null,null,null,0]
[null,"Figure 11",0,null,null,null,null,null,0]
[null,"Figure 12",0,null,null,null,null,null,0]
[null,"Figure 13",0,null,null,null,null,null,0]
[null,"Figure 14",0,null,null,null,null,null,0]
[null,"Figure 15",0,null,null,null,null,null,0]
[null,"Figure 16",0,null,null,null,null,null,0]
[null,"Figure 17",0,null,null,null,null,null,0]
[null,"Figure 18",0,null,null,null,null,null,0]
[null,"Figure 19",0,null,null,null,null,null,0]
[" Critéres d'appréciation","Ensemble 1",1,null,null,null,null,null,0]
[null,"Ensemble 2",1,null,null,null,null,null,0]
[null,"Ensemble 3",1,null,null,null,null,null,0]
[null,"Ensemble 4",1,null,null,null,null,null,{"$f":"MAX(D34:H34)-MIN(D34:H34)","v":0}]
[null,"Ensemble 5",1,null,null,null,null,null,{"$f":"MAX(D35:H35)-MIN(D35:H35)","v":0}]
["Pénalité en points"]
["Erreure(s) de tracé "]
["% Total du juge",null,null,{"$f":"IF(ISBLANK('Info+Engagés'!H2),\"\",D39/0.5-D37)","v":""},{"$f":"IF(ISBLANK('Info+Engagés'!H3),\"\",E39/0.5-E37)","v":""},{"$f":"IF(ISBLANK('Info+Engagés'!H4),\"\",F39/0.5-F37)","v":0},{"$f":"IF(ISBLANK('Info+Engagés'!H5),\"\",G39/0.5-G37)","v":""},{"$f":"IF(ISBLANK('Info+Engagés'!H6),\"\",H39/0.5-H37)","v":""},{"$f":"MAX(D38:H38)-MIN(D38:H38)","v":0}]
["Soit en points",null,null,{"$f":"IF(ISBLANK('Info+Engagés'!H2),\"\",(SUM(D31:D35)-D36))","v":""},{"$f":"IF(ISBLANK('Info+Engagés'!H3),\"\",(SUM(E31:E35)-E36))","v":""},{"$f":"IF(ISBLANK('Info+Engagés'!H4),\"\",(SUM(F31:F35)-F36))","v":0},{"$f":"IF(ISBLANK('Info+Engagés'!H5),\"\",(SUM(G31:G35)-G36))","v":""},{"$f":"IF(ISBLANK('Info+Engagés'!H6),\"\",(SUM(H31:H35)-H36))","v":""}]
["                          Total maxi par juge = 50          1 point correspond à 2,000%              1% correspond en points à : 0,5                                                                  Les notes sont sur 10 et correspondent à la saisie informatique par l'opérateur des protocoles joints, Le total résulte de l'addition des points attribués après application du coefficient et soustraction des points de pénalité encourus après conversion en pourcentage sont déduit les pourcentages de pénalités encourus par suite d'erreurs de tracé pour obtenir le pourcentage par juge."]

{"sheet":"Cav34","index":34,"n_rows":40,"n_cols":9,"rows_kept":40,"cut":false,"hidden":false,"merged":[[0,0,1,2],[0,3,1,6],[0,7,1,8],[2,0,2,2],[2,3,3,4],[2,5,3,6],[3,0,3,2],[4,0,4,1],[4,3,6,4],[4,5,6,6],[4,7,5,7],[4,8,5,8],[5,0,5,1],[6,0,7,1],[6,2,7,2],[6,7,7,7],[6,8,7,8],[8,0,8,1],[9,0,9,1],[9,2,10,2],[9,3,10,3],[9,4,10,4],[36,0,36,2],[37,0,37,2],[38,0,38,2],[39,0,43,8],[9,6,10,6],[9,7,10,7],[10,0,10,1],[35,0,35,2],[9,5,10,5],[30,0,34,0],[11,0,29,0]]}
[{"$f":"'Info+Engagés'!B3","v":"Quel Lieu (Dép)"},null,null,{"$f":"'Info+Engagés'!B8","v":"Club 4 Imposée"},null,null,null,{"$f":"'Info+Engagés'!B2","v":"Quelle Date"}]
[]
["N° de concours",null,null,"Cheval",null,"Cavalier",null,"Note d’ensemble"]
[{"$f":"'Info+Engagés'!B4","v":"Quel N°"},null,null,null,null,null,null,"Points",{"$f":"SUM(D39:H39)","v":0}]
["Épreuve N°",null,{"$f":"'Info+Engagés'!B5","v":"Quel N°"},{"$f":"'Info+Engagés'!B45","v":0},null,{"$f":"'Info+Engagés'!G45","v":0},null,"% Final",{"$f":"AVERAGE(D38:H38)","v":0}]
["Piste  ",null,{"$f":"'Info+Engagés'!B6","v":"Piste ?"}]
["N° Départ BO",null,{"$f":"'Info+Engagés'!A45","v":0},null,null,null,null,"Classement"]
[]
["Imprimé le :",null,null,"Juge E","Juge H","Juge C","Juge M","Juge B"]
[{"$f":"TODAY()","v":"2017-02-17"},null,"Coéff .",{"$f":"IF(ISBLANK('Info+Engagés'!H2),\"\",('Info+Engagés'!H2))","v":""},{"$f":"IF(ISBLANK('Info+Engagés'!H3),\"\",('Info+Engagés'!H3))","v":""},{"$f":"IF(ISBLANK('Info+Engagés'!H4),\"\",('Info+Engagés'!H4))","v":"X"},{"$f":"IF(ISBLANK('Info+Engagés'!H5),\"\",('Info+Engagés'!H5))","v":""},{"$f":"IF(ISBLANK('Info+Engagés'!H6),\"\",('Info+Engagés'!H6))","v":""}]
[{"$f":"NOW()","v":42783.749748032409},null,null,null,null,null,null,null,"écart Max"]
["Notation figures","Figure 1",0,null,null,null,null,null,{"$f":"MAX(D12:H12)-MIN(D12:H12)","v":0}]
[null,"Figure 2",0,null,null,null,null,null,0]
[null,"Figure 3",0,null,null,null,null,null,0]
[null,"Figure 4",0,null,null,null,null,null,0]
[null,"Figure 5",0,null,null,null,null,null,0]
[null,"Figure 6",0,null,null,null,null,null,0]
[null,"Figure 7",0,null,null,null,null,null,0]
[null,"Figure 8",0,null,null,null,null,null,0]
[null,"Figure 9",0,null,null,null,null,null,0]
[null,"Figure 10",0,null,null,null,null,null,0]
[null,"Figure 11",0,null,null,null,null,null,0]
[null,"Figure 12",0,null,null,null,null,null,0]
[null,"Figure 13",0,null,null,null,null,null,0]
[null,"Figure 14",0,null,null,null,null,null,0]
[null,"Figure 15",0,null,null,null,null,null,0]
[null,"Figure 16",0,null,null,null,null,null,0]
[null,"Figure 17",0,null,null,null,null,null,0]
[null,"Figure 18",0,null,null,null,null,null,0]
[null,"Figure 19",0,null,null,null,null,null,0]
[" Critéres d'appréciation","Ensemble 1",1,null,null,null,null,null,0]
[null,"Ensemble 2",1,null,null,null,null,null,0]
[null,"Ensemble 3",1,null,null,null,null,null,0]
[null,"Ensemble 4",1,null,null,null,null,null,{"$f":"MAX(D34:H34)-MIN(D34:H34)","v":0}]
[null,"Ensemble 5",1,null,null,null,null,null,{"$f":"MAX(D35:H35)-MIN(D35:H35)","v":0}]
["Pénalité en points"]
["Erreure(s) de tracé "]
["% Total du juge",null,null,{"$f":"IF(ISBLANK('Info+Engagés'!H2),\"\",D39/0.5-D37)","v":""},{"$f":"IF(ISBLANK('Info+Engagés'!H3),\"\",E39/0.5-E37)","v":""},{"$f":"IF(ISBLANK('Info+Engagés'!H4),\"\",F39/0.5-F37)","v":0},{"$f":"IF(ISBLANK('Info+Engagés'!H5),\"\",G39/0.5-G37)","v":""},{"$f":"IF(ISBLANK('Info+Engagés'!H6),\"\",H39/0.5-H37)","v":""},{"$f":"MAX(D38:H38)-MIN(D38:H38)","v":0}]
["Soit en points",null,null,{"$f":"IF(ISBLANK('Info+Engagés'!H2),\"\",(SUM(D31:D35)-D36))","v":""},{"$f":"IF(ISBLANK('Info+Engagés'!H3),\"\",(SUM(E31:E35)-E36))","v":""},{"$f":"IF(ISBLANK('Info+Engagés'!H4),\"\",(SUM(F31:F35)-F36))","v":0},{"$f":"IF(ISBLANK('Info+Engagés'!H5),\"\",(SUM(G31:G35)-G36))","v":""},{"$f":"IF(ISBLANK('Info+Engagés'!H6),\"\",(SUM(H31:H35)-H36))","v":""}]
["                          Total maxi par juge = 50          1 point correspond à 2,000%              1% correspond en points à : 0,5                                                                  Les notes sont sur 10 et correspondent à la saisie informatique par l'opérateur des protocoles joints, Le total résulte de l'addition des points attribués après application du coefficient et soustraction des points de pénalité encourus après conversion en pourcentage sont déduit les pourcentages de pénalités encourus par suite d'erreurs de tracé pour obtenir le pourcentage par juge."]

{"sheet":"Cav35","index":35,"n_rows":40,"n_cols":9,"rows_kept":40,"cut":false,"hidden":false,"merged":[[0,0,1,2],[0,3,1,6],[0,7,1,8],[2,0,2,2],[2,3,3,4],[2,5,3,6],[3,0,3,2],[4,0,4,1],[4,3,6,4],[4,5,6,6],[4,7,5,7],[4,8,5,8],[5,0,5,1],[6,0,7,1],[6,2,7,2],[6,7,7,7],[6,8,7,8],[8,0,8,1],[9,0,9,1],[9,2,10,2],[9,3,10,3],[9,4,10,4],[36,0,36,2],[37,0,37,2],[38,0,38,2],[39,0,43,8],[9,6,10,6],[9,7,10,7],[10,0,10,1],[35,0,35,2],[9,5,10,5],[30,0,34,0],[11,0,29,0]]}
[{"$f":"'Info+Engagés'!B3","v":"Quel Lieu (Dép)"},null,null,{"$f":"'Info+Engagés'!B8","v":"Club 4 Imposée"},null,null,null,{"$f":"'Info+Engagés'!B2","v":"Quelle Date"}]
[]
["N° de concours",null,null,"Cheval",null,"Cavalier",null,"Note d’ensemble"]
[{"$f":"'Info+Engagés'!B4","v":"Quel N°"},null,null,null,null,null,null,"Points",{"$f":"SUM(D39:H39)","v":0}]
["Épreuve N°",null,{"$f":"'Info+Engagés'!B5","v":"Quel N°"},{"$f":"'Info+Engagés'!B46","v":0},null,{"$f":"'Info+Engagés'!G46","v":0},null,"% Final",{"$f":"AVERAGE(D38:H38)","v":0}]
["Piste  ",null,{"$f":"'Info+Engagés'!B6","v":"Piste ?"}]
["N° Départ BO",null,{"$f":"'Info+Engagés'!A46","v":0},null,null,null,null,"Classement"]
[]
["Imprimé le :",null,null,"Juge E","Juge H","Juge C","Juge M","Juge B"]
[{"$f":"TODAY()","v":"2017-02-17"},null,"Coéff .",{"$f":"IF(ISBLANK('Info+Engagés'!H2),\"\",('Info+Engagés'!H2))","v":""},{"$f":"IF(ISBLANK('Info+Engagés'!H3),\"\",('Info+Engagés'!H3))","v":""},{"$f":"IF(ISBLANK('Info+Engagés'!H4),\"\",('Info+Engagés'!H4))","v":"X"},{"$f":"IF(ISBLANK('Info+Engagés'!H5),\"\",('Info+Engagés'!H5))","v":""},{"$f":"IF(ISBLANK('Info+Engagés'!H6),\"\",('Info+Engagés'!H6))","v":""}]
[{"$f":"NOW()","v":42783.749748032409},null,null,null,null,null,null,null,"écart Max"]
["Notation figures","Figure 1",0,null,null,null,null,null,{"$f":"MAX(D12:H12)-MIN(D12:H12)","v":0}]
[null,"Figure 2",0,null,null,null,null,null,0]
[null,"Figure 3",0,null,null,null,null,null,0]
[null,"Figure 4",0,null,null,null,null,null,0]
[null,"Figure 5",0,null,null,null,null,null,0]
[null,"Figure 6",0,null,null,null,null,null,0]
[null,"Figure 7",0,null,null,null,null,null,0]
[null,"Figure 8",0,null,null,null,null,null,0]
[null,"Figure 9",0,null,null,null,null,null,0]
[null,"Figure 10",0,null,null,null,null,null,0]
[null,"Figure 11",0,null,null,null,null,null,0]
[null,"Figure 12",0,null,null,null,null,null,0]
[null,"Figure 13",0,null,null,null,null,null,0]
[null,"Figure 14",0,null,null,null,null,null,0]
[null,"Figure 15",0,null,null,null,null,null,0]
[null,"Figure 16",0,null,null,null,null,null,0]
[null,"Figure 17",0,null,null,null,null,null,0]
[null,"Figure 18",0,null,null,null,null,null,0]
[null,"Figure 19",0,null,null,null,null,null,0]
[" Critéres d'appréciation","Ensemble 1",1,null,null,null,null,null,0]
[null,"Ensemble 2",1,null,null,null,null,null,0]
[null,"Ensemble 3",1,null,null,null,null,null,0]
[null,"Ensemble 4",1,null,null,null,null,null,{"$f":"MAX(D34:H34)-MIN(D34:H34)","v":0}]
[null,"Ensemble 5",1,null,null,null,null,null,{"$f":"MAX(D35:H35)-MIN(D35:H35)","v":0}]
["Pénalité en points"]
["Erreure(s) de tracé "]
["% Total du juge",null,null,{"$f":"IF(ISBLANK('Info+Engagés'!H2),\"\",D39/0.5-D37)","v":""},{"$f":"IF(ISBLANK('Info+Engagés'!H3),\"\",E39/0.5-E37)","v":""},{"$f":"IF(ISBLANK('Info+Engagés'!H4),\"\",F39/0.5-F37)","v":0},{"$f":"IF(ISBLANK('Info+Engagés'!H5),\"\",G39/0.5-G37)","v":""},{"$f":"IF(ISBLANK('Info+Engagés'!H6),\"\",H39/0.5-H37)","v":""},{"$f":"MAX(D38:H38)-MIN(D38:H38)","v":0}]
["Soit en points",null,null,{"$f":"IF(ISBLANK('Info+Engagés'!H2),\"\",(SUM(D31:D35)-D36))","v":""},{"$f":"IF(ISBLANK('Info+Engagés'!H3),\"\",(SUM(E31:E35)-E36))","v":""},{"$f":"IF(ISBLANK('Info+Engagés'!H4),\"\",(SUM(F31:F35)-F36))","v":0},{"$f":"IF(ISBLANK('Info+Engagés'!H5),\"\",(SUM(G31:G35)-G36))","v":""},{"$f":"IF(ISBLANK('Info+Engagés'!H6),\"\",(SUM(H31:H35)-H36))","v":""}]
["                          Total maxi par juge = 50          1 point correspond à 2,000%              1% correspond en points à : 0,5                                                                  Les notes sont sur 10 et correspondent à la saisie informatique par l'opérateur des protocoles joints, Le total résulte de l'addition des points attribués après application du coefficient et soustraction des points de pénalité encourus après conversion en pourcentage sont déduit les pourcentages de pénalités encourus par suite d'erreurs de tracé pour obtenir le pourcentage par juge."]

{"sheet":"Cav36","index":36,"n_rows":40,"n_cols":9,"rows_kept":40,"cut":false,"hidden":false,"merged":[[0,0,1,2],[0,3,1,6],[0,7,1,8],[2,0,2,2],[2,3,3,4],[2,5,3,6],[3,0,3,2],[4,0,4,1],[4,3,6,4],[4,5,6,6],[4,7,5,7],[4,8,5,8],[5,0,5,1],[6,0,7,1],[6,2,7,2],[6,7,7,7],[6,8,7,8],[8,0,8,1],[9,0,9,1],[9,2,10,2],[9,3,10,3],[9,4,10,4],[36,0,36,2],[37,0,37,2],[38,0,38,2],[39,0,43,8],[9,6,10,6],[9,7,10,7],[10,0,10,1],[35,0,35,2],[9,5,10,5],[30,0,34,0],[11,0,29,0]]}
[{"$f":"'Info+Engagés'!B3","v":"Quel Lieu (Dép)"},null,null,{"$f":"'Info+Engagés'!B8","v":"Club 4 Imposée"},null,null,null,{"$f":"'Info+Engagés'!B2","v":"Quelle Date"}]
[]
["N° de concours",null,null,"Cheval",null,"Cavalier",null,"Note d’ensemble"]
[{"$f":"'Info+Engagés'!B4","v":"Quel N°"},null,null,null,null,null,null,"Points",{"$f":"SUM(D39:H39)","v":0}]
["Épreuve N°",null,{"$f":"'Info+Engagés'!B5","v":"Quel N°"},{"$f":"'Info+Engagés'!B47","v":0},null,{"$f":"'Info+Engagés'!G47","v":0},null,"% Final",{"$f":"AVERAGE(D38:H38)","v":0}]
["Piste  ",null,{"$f":"'Info+Engagés'!B6","v":"Piste ?"}]
["N° Départ BO",null,{"$f":"'Info+Engagés'!A47","v":0},null,null,null,null,"Classement"]
[]
["Imprimé le :",null,null,"Juge E","Juge H","Juge C","Juge M","Juge B"]
[{"$f":"TODAY()","v":"2017-02-17"},null,"Coéff .",{"$f":"IF(ISBLANK('Info+Engagés'!H2),\"\",('Info+Engagés'!H2))","v":""},{"$f":"IF(ISBLANK('Info+Engagés'!H3),\"\",('Info+Engagés'!H3))","v":""},{"$f":"IF(ISBLANK('Info+Engagés'!H4),\"\",('Info+Engagés'!H4))","v":"X"},{"$f":"IF(ISBLANK('Info+Engagés'!H5),\"\",('Info+Engagés'!H5))","v":""},{"$f":"IF(ISBLANK('Info+Engagés'!H6),\"\",('Info+Engagés'!H6))","v":""}]
[{"$f":"NOW()","v":42783.749748032409},null,null,null,null,null,null,null,"écart Max"]
["Notation figures","Figure 1",0,null,null,null,null,null,{"$f":"MAX(D12:H12)-MIN(D12:H12)","v":0}]
[null,"Figure 2",0,null,null,null,null,null,0]
[null,"Figure 3",0,null,null,null,null,null,0]
[null,"Figure 4",0,null,null,null,null,null,0]
[null,"Figure 5",0,null,null,null,null,null,0]
[null,"Figure 6",0,null,null,null,null,null,0]
[null,"Figure 7",0,null,null,null,null,null,0]
[null,"Figure 8",0,null,null,null,null,null,0]
[null,"Figure 9",0,null,null,null,null,null,0]
[null,"Figure 10",0,null,null,null,null,null,0]
[null,"Figure 11",0,null,null,null,null,null,0]
[null,"Figure 12",0,null,null,null,null,null,0]
[null,"Figure 13",0,null,null,null,null,null,0]
[null,"Figure 14",0,null,null,null,null,null,0]
[null,"Figure 15",0,null,null,null,null,null,0]
[null,"Figure 16",0,null,null,null,null,null,0]
[null,"Figure 17",0,null,null,null,null,null,0]
[null,"Figure 18",0,null,null,null,null,null,0]
[null,"Figure 19",0,null,null,null,null,null,0]
[" Critéres d'appréciation","Ensemble 1",1,null,null,null,null,null,0]
[null,"Ensemble 2",1,null,null,null,null,null,0]
[null,"Ensemble 3",1,null,null,null,null,null,0]
[null,"Ensemble 4",1,null,null,null,null,null,{"$f":"MAX(D34:H34)-MIN(D34:H34)","v":0}]
[null,"Ensemble 5",1,null,null,null,null,null,{"$f":"MAX(D35:H35)-MIN(D35:H35)","v":0}]
["Pénalité en points"]
["Erreure(s) de tracé "]
["% Total du juge",null,null,{"$f":"IF(ISBLANK('Info+Engagés'!H2),\"\",D39/0.5-D37)","v":""},{"$f":"IF(ISBLANK('Info+Engagés'!H3),\"\",E39/0.5-E37)","v":""},{"$f":"IF(ISBLANK('Info+Engagés'!H4),\"\",F39/0.5-F37)","v":0},{"$f":"IF(ISBLANK('Info+Engagés'!H5),\"\",G39/0.5-G37)","v":""},{"$f":"IF(ISBLANK('Info+Engagés'!H6),\"\",H39/0.5-H37)","v":""},{"$f":"MAX(D38:H38)-MIN(D38:H38)","v":0}]
["Soit en points",null,null,{"$f":"IF(ISBLANK('Info+Engagés'!H2),\"\",(SUM(D31:D35)-D36))","v":""},{"$f":"IF(ISBLANK('Info+Engagés'!H3),\"\",(SUM(E31:E35)-E36))","v":""},{"$f":"IF(ISBLANK('Info+Engagés'!H4),\"\",(SUM(F31:F35)-F36))","v":0},{"$f":"IF(ISBLANK('Info+Engagés'!H5),\"\",(SUM(G31:G35)-G36))","v":""},{"$f":"IF(ISBLANK('Info+Engagés'!H6),\"\",(SUM(H31:H35)-H36))","v":""}]
["                          Total maxi par juge = 50          1 point correspond à 2,000%              1% correspond en points à : 0,5                                                                  Les notes sont sur 10 et correspondent à la saisie informatique par l'opérateur des protocoles joints, Le total résulte de l'addition des points attribués après application du coefficient et soustraction des points de pénalité encourus après conversion en pourcentage sont déduit les pourcentages de pénalités encourus par suite d'erreurs de tracé pour obtenir le pourcentage par juge."]

{"sheet":"Cav37","index":37,"n_rows":40,"n_cols":9,"rows_kept":40,"cut":false,"hidden":false,"merged":[[0,0,1,2],[0,3,1,6],[0,7,1,8],[2,0,2,2],[2,3,3,4],[2,5,3,6],[3,0,3,2],[4,0,4,1],[4,3,6,4],[4,5,6,6],[4,7,5,7],[4,8,5,8],[5,0,5,1],[6,0,7,1],[6,2,7,2],[6,7,7,7],[6,8,7,8],[8,0,8,1],[9,0,9,1],[9,2,10,2],[9,3,10,3],[9,4,10,4],[36,0,36,2],[37,0,37,2],[38,0,38,2],[39,0,43,8],[9,6,10,6],[9,7,10,7],[10,0,10,1],[35,0,35,2],[9,5,10,5],[30,0,34,0],[11,0,29,0]]}
[{"$f":"'Info+Engagés'!B3","v":"Quel Lieu (Dép)"},null,null,{"$f":"'Info+Engagés'!B8","v":"Club 4 Imposée"},null,null,null,{"$f":"'Info+Engagés'!B2","v":"Quelle Date"}]
[]
["N° de concours",null,null,"Cheval",null,"Cavalier",null,"Note d’ensemble"]
[{"$f":"'Info+Engagés'!B4","v":"Quel N°"},null,null,null,null,null,null,"Points",{"$f":"SUM(D39:H39)","v":0}]
["Épreuve N°",null,{"$f":"'Info+Engagés'!B5","v":"Quel N°"},{"$f":"'Info+Engagés'!B48","v":0},null,{"$f":"'Info+Engagés'!G48","v":0},null,"% Final",{"$f":"AVERAGE(D38:H38)","v":0}]
["Piste  ",null,{"$f":"'Info+Engagés'!B6","v":"Piste ?"}]
["N° Départ BO",null,{"$f":"'Info+Engagés'!A48","v":0},null,null,null,null,"Classement"]
[]
["Imprimé le :",null,null,"Juge E","Juge H","Juge C","Juge M","Juge B"]
[{"$f":"TODAY()","v":"2017-02-17"},null,"Coéff .",{"$f":"IF(ISBLANK('Info+Engagés'!H2),\"\",('Info+Engagés'!H2))","v":""},{"$f":"IF(ISBLANK('Info+Engagés'!H3),\"\",('Info+Engagés'!H3))","v":""},{"$f":"IF(ISBLANK('Info+Engagés'!H4),\"\",('Info+Engagés'!H4))","v":"X"},{"$f":"IF(ISBLANK('Info+Engagés'!H5),\"\",('Info+Engagés'!H5))","v":""},{"$f":"IF(ISBLANK('Info+Engagés'!H6),\"\",('Info+Engagés'!H6))","v":""}]
[{"$f":"NOW()","v":42783.749748032409},null,null,null,null,null,null,null,"écart Max"]
["Notation figures","Figure 1",0,null,null,null,null,null,{"$f":"MAX(D12:H12)-MIN(D12:H12)","v":0}]
[null,"Figure 2",0,null,null,null,null,null,0]
[null,"Figure 3",0,null,null,null,null,null,0]
[null,"Figure 4",0,null,null,null,null,null,0]
[null,"Figure 5",0,null,null,null,null,null,0]
[null,"Figure 6",0,null,null,null,null,null,0]
[null,"Figure 7",0,null,null,null,null,null,0]
[null,"Figure 8",0,null,null,null,null,null,0]
[null,"Figure 9",0,null,null,null,null,null,0]
[null,"Figure 10",0,null,null,null,null,null,0]
[null,"Figure 11",0,null,null,null,null,null,0]
[null,"Figure 12",0,null,null,null,null,null,0]
[null,"Figure 13",0,null,null,null,null,null,0]
[null,"Figure 14",0,null,null,null,null,null,0]
[null,"Figure 15",0,null,null,null,null,null,0]
[null,"Figure 16",0,null,null,null,null,null,0]
[null,"Figure 17",0,null,null,null,null,null,0]
[null,"Figure 18",0,null,null,null,null,null,0]
[null,"Figure 19",0,null,null,null,null,null,0]
[" Critéres d'appréciation","Ensemble 1",1,null,null,null,null,null,0]
[null,"Ensemble 2",1,null,null,null,null,null,0]
[null,"Ensemble 3",1,null,null,null,null,null,0]
[null,"Ensemble 4",1,null,null,null,null,null,{"$f":"MAX(D34:H34)-MIN(D34:H34)","v":0}]
[null,"Ensemble 5",1,null,null,null,null,null,{"$f":"MAX(D35:H35)-MIN(D35:H35)","v":0}]
["Pénalité en points"]
["Erreure(s) de tracé "]
["% Total du juge",null,null,{"$f":"IF(ISBLANK('Info+Engagés'!H2),\"\",D39/0.5-D37)","v":""},{"$f":"IF(ISBLANK('Info+Engagés'!H3),\"\",E39/0.5-E37)","v":""},{"$f":"IF(ISBLANK('Info+Engagés'!H4),\"\",F39/0.5-F37)","v":0},{"$f":"IF(ISBLANK('Info+Engagés'!H5),\"\",G39/0.5-G37)","v":""},{"$f":"IF(ISBLANK('Info+Engagés'!H6),\"\",H39/0.5-H37)","v":""},{"$f":"MAX(D38:H38)-MIN(D38:H38)","v":0}]
["Soit en points",null,null,{"$f":"IF(ISBLANK('Info+Engagés'!H2),\"\",(SUM(D31:D35)-D36))","v":""},{"$f":"IF(ISBLANK('Info+Engagés'!H3),\"\",(SUM(E31:E35)-E36))","v":""},{"$f":"IF(ISBLANK('Info+Engagés'!H4),\"\",(SUM(F31:F35)-F36))","v":0},{"$f":"IF(ISBLANK('Info+Engagés'!H5),\"\",(SUM(G31:G35)-G36))","v":""},{"$f":"IF(ISBLANK('Info+Engagés'!H6),\"\",(SUM(H31:H35)-H36))","v":""}]
["                          Total maxi par juge = 50          1 point correspond à 2,000%              1% correspond en points à : 0,5                                                                  Les notes sont sur 10 et correspondent à la saisie informatique par l'opérateur des protocoles joints, Le total résulte de l'addition des points attribués après application du coefficient et soustraction des points de pénalité encourus après conversion en pourcentage sont déduit les pourcentages de pénalités encourus par suite d'erreurs de tracé pour obtenir le pourcentage par juge."]

{"sheet":"Cav38","index":38,"n_rows":40,"n_cols":9,"rows_kept":40,"cut":false,"hidden":false,"merged":[[0,0,1,2],[0,3,1,6],[0,7,1,8],[2,0,2,2],[2,3,3,4],[2,5,3,6],[3,0,3,2],[4,0,4,1],[4,3,6,4],[4,5,6,6],[4,7,5,7],[4,8,5,8],[5,0,5,1],[6,0,7,1],[6,2,7,2],[6,7,7,7],[6,8,7,8],[8,0,8,1],[9,0,9,1],[9,2,10,2],[9,3,10,3],[9,4,10,4],[36,0,36,2],[37,0,37,2],[38,0,38,2],[39,0,43,8],[9,6,10,6],[9,7,10,7],[10,0,10,1],[35,0,35,2],[9,5,10,5],[30,0,34,0],[11,0,29,0]]}
[{"$f":"'Info+Engagés'!B3","v":"Quel Lieu (Dép)"},null,null,{"$f":"'Info+Engagés'!B8","v":"Club 4 Imposée"},null,null,null,{"$f":"'Info+Engagés'!B2","v":"Quelle Date"}]
[]
["N° de concours",null,null,"Cheval",null,"Cavalier",null,"Note d’ensemble"]
[{"$f":"'Info+Engagés'!B4","v":"Quel N°"},null,null,null,null,null,null,"Points",{"$f":"SUM(D39:H39)","v":0}]
["Épreuve N°",null,{"$f":"'Info+Engagés'!B5","v":"Quel N°"},{"$f":"'Info+Engagés'!B49","v":0},null,{"$f":"'Info+Engagés'!G49","v":0},null,"% Final",{"$f":"AVERAGE(D38:H38)","v":0}]
["Piste  ",null,{"$f":"'Info+Engagés'!B6","v":"Piste ?"}]
["N° Départ BO",null,{"$f":"'Info+Engagés'!A49","v":0},null,null,null,null,"Classement"]
[]
["Imprimé le :",null,null,"Juge E","Juge H","Juge C","Juge M","Juge B"]
[{"$f":"TODAY()","v":"2017-02-17"},null,"Coéff .",{"$f":"IF(ISBLANK('Info+Engagés'!H2),\"\",('Info+Engagés'!H2))","v":""},{"$f":"IF(ISBLANK('Info+Engagés'!H3),\"\",('Info+Engagés'!H3))","v":""},{"$f":"IF(ISBLANK('Info+Engagés'!H4),\"\",('Info+Engagés'!H4))","v":"X"},{"$f":"IF(ISBLANK('Info+Engagés'!H5),\"\",('Info+Engagés'!H5))","v":""},{"$f":"IF(ISBLANK('Info+Engagés'!H6),\"\",('Info+Engagés'!H6))","v":""}]
[{"$f":"NOW()","v":42783.749748032409},null,null,null,null,null,null,null,"écart Max"]
["Notation figures","Figure 1",0,null,null,null,null,null,{"$f":"MAX(D12:H12)-MIN(D12:H12)","v":0}]
[null,"Figure 2",0,null,null,null,null,null,0]
[null,"Figure 3",0,null,null,null,null,null,0]
[null,"Figure 4",0,null,null,null,null,null,0]
[null,"Figure 5",0,null,null,null,null,null,0]
[null,"Figure 6",0,null,null,null,null,null,0]
[null,"Figure 7",0,null,null,null,null,null,0]
[null,"Figure 8",0,null,null,null,null,null,0]
[null,"Figure 9",0,null,null,null,null,null,0]
[null,"Figure 10",0,null,null,null,null,null,0]
[null,"Figure 11",0,null,null,null,null,null,0]
[null,"Figure 12",0,null,null,null,null,null,0]
[null,"Figure 13",0,null,null,null,null,null,0]
[null,"Figure 14",0,null,null,null,null,null,0]
[null,"Figure 15",0,null,null,null,null,null,0]
[null,"Figure 16",0,null,null,null,null,null,0]
[null,"Figure 17",0,null,null,null,null,null,0]
[null,"Figure 18",0,null,null,null,null,null,0]
[null,"Figure 19",0,null,null,null,null,null,0]
[" Critéres d'appréciation","Ensemble 1",1,null,null,null,null,null,0]
[null,"Ensemble 2",1,null,null,null,null,null,0]
[null,"Ensemble 3",1,null,null,null,null,null,0]
[null,"Ensemble 4",1,null,null,null,null,null,{"$f":"MAX(D34:H34)-MIN(D34:H34)","v":0}]
[null,"Ensemble 5",1,null,null,null,null,null,{"$f":"MAX(D35:H35)-MIN(D35:H35)","v":0}]
["Pénalité en points"]
["Erreure(s) de tracé "]
["% Total du juge",null,null,{"$f":"IF(ISBLANK('Info+Engagés'!H2),\"\",D39/0.5-D37)","v":""},{"$f":"IF(ISBLANK('Info+Engagés'!H3),\"\",E39/0.5-E37)","v":""},{"$f":"IF(ISBLANK('Info+Engagés'!H4),\"\",F39/0.5-F37)","v":0},{"$f":"IF(ISBLANK('Info+Engagés'!H5),\"\",G39/0.5-G37)","v":""},{"$f":"IF(ISBLANK('Info+Engagés'!H6),\"\",H39/0.5-H37)","v":""},{"$f":"MAX(D38:H38)-MIN(D38:H38)","v":0}]
["Soit en points",null,null,{"$f":"IF(ISBLANK('Info+Engagés'!H2),\"\",(SUM(D31:D35)-D36))","v":""},{"$f":"IF(ISBLANK('Info+Engagés'!H3),\"\",(SUM(E31:E35)-E36))","v":""},{"$f":"IF(ISBLANK('Info+Engagés'!H4),\"\",(SUM(F31:F35)-F36))","v":0},{"$f":"IF(ISBLANK('Info+Engagés'!H5),\"\",(SUM(G31:G35)-G36))","v":""},{"$f":"IF(ISBLANK('Info+Engagés'!H6),\"\",(SUM(H31:H35)-H36))","v":""}]
["                          Total maxi par juge = 50          1 point correspond à 2,000%              1% correspond en points à : 0,5                                                                  Les notes sont sur 10 et correspondent à la saisie informatique par l'opérateur des protocoles joints, Le total résulte de l'addition des points attribués après application du coefficient et soustraction des points de pénalité encourus après conversion en pourcentage sont déduit les pourcentages de pénalités encourus par suite d'erreurs de tracé pour obtenir le pourcentage par juge."]

{"sheet":"Cav39","index":39,"n_rows":40,"n_cols":9,"rows_kept":40,"cut":false,"hidden":false,"merged":[[0,0,1,2],[0,3,1,6],[0,7,1,8],[2,0,2,2],[2,3,3,4],[2,5,3,6],[3,0,3,2],[4,0,4,1],[4,3,6,4],[4,5,6,6],[4,7,5,7],[4,8,5,8],[5,0,5,1],[6,0,7,1],[6,2,7,2],[6,7,7,7],[6,8,7,8],[8,0,8,1],[9,0,9,1],[9,2,10,2],[9,3,10,3],[9,4,10,4],[36,0,36,2],[37,0,37,2],[38,0,38,2],[39,0,43,8],[9,6,10,6],[9,7,10,7],[10,0,10,1],[35,0,35,2],[9,5,10,5],[30,0,34,0],[11,0,29,0]]}
[{"$f":"'Info+Engagés'!B3","v":"Quel Lieu (Dép)"},null,null,{"$f":"'Info+Engagés'!B8","v":"Club 4 Imposée"},null,null,null,{"$f":"'Info+Engagés'!B2","v":"Quelle Date"}]
[]
["N° de concours",null,null,"Cheval",null,"Cavalier",null,"Note d’ensemble"]
[{"$f":"'Info+Engagés'!B4","v":"Quel N°"},null,null,null,null,null,null,"Points",{"$f":"SUM(D39:H39)","v":0}]
["Épreuve N°",null,{"$f":"'Info+Engagés'!B5","v":"Quel N°"},{"$f":"'Info+Engagés'!B50","v":0},null,{"$f":"'Info+Engagés'!G50","v":0},null,"% Final",{"$f":"AVERAGE(D38:H38)","v":0}]
["Piste  ",null,{"$f":"'Info+Engagés'!B6","v":"Piste ?"}]
["N° Départ BO",null,{"$f":"'Info+Engagés'!A50","v":0},null,null,null,null,"Classement"]
[]
["Imprimé le :",null,null,"Juge E","Juge H","Juge C","Juge M","Juge B"]
[{"$f":"TODAY()","v":"2017-02-17"},null,"Coéff .",{"$f":"IF(ISBLANK('Info+Engagés'!H2),\"\",('Info+Engagés'!H2))","v":""},{"$f":"IF(ISBLANK('Info+Engagés'!H3),\"\",('Info+Engagés'!H3))","v":""},{"$f":"IF(ISBLANK('Info+Engagés'!H4),\"\",('Info+Engagés'!H4))","v":"X"},{"$f":"IF(ISBLANK('Info+Engagés'!H5),\"\",('Info+Engagés'!H5))","v":""},{"$f":"IF(ISBLANK('Info+Engagés'!H6),\"\",('Info+Engagés'!H6))","v":""}]
[{"$f":"NOW()","v":42783.749748032409},null,null,null,null,null,null,null,"écart Max"]
["Notation figures","Figure 1",0,null,null,null,null,null,{"$f":"MAX(D12:H12)-MIN(D12:H12)","v":0}]
[null,"Figure 2",0,null,null,null,null,null,0]
[null,"Figure 3",0,null,null,null,null,null,0]
[null,"Figure 4",0,null,null,null,null,null,0]
[null,"Figure 5",0,null,null,null,null,null,0]
[null,"Figure 6",0,null,null,null,null,null,0]
[null,"Figure 7",0,null,null,null,null,null,0]
[null,"Figure 8",0,null,null,null,null,null,0]
[null,"Figure 9",0,null,null,null,null,null,0]
[null,"Figure 10",0,null,null,null,null,null,0]
[null,"Figure 11",0,null,null,null,null,null,0]
[null,"Figure 12",0,null,null,null,null,null,0]
[null,"Figure 13",0,null,null,null,null,null,0]
[null,"Figure 14",0,null,null,null,null,null,0]
[null,"Figure 15",0,null,null,null,null,null,0]
[null,"Figure 16",0,null,null,null,null,null,0]
[null,"Figure 17",0,null,null,null,null,null,0]
[null,"Figure 18",0,null,null,null,null,null,0]
[null,"Figure 19",0,null,null,null,null,null,0]
[" Critéres d'appréciation","Ensemble 1",1,null,null,null,null,null,0]
[null,"Ensemble 2",1,null,null,null,null,null,0]
[null,"Ensemble 3",1,null,null,null,null,null,0]
[null,"Ensemble 4",1,null,null,null,null,null,{"$f":"MAX(D34:H34)-MIN(D34:H34)","v":0}]
[null,"Ensemble 5",1,null,null,null,null,null,{"$f":"MAX(D35:H35)-MIN(D35:H35)","v":0}]
["Pénalité en points"]
["Erreure(s) de tracé "]
["% Total du juge",null,null,{"$f":"IF(ISBLANK('Info+Engagés'!H2),\"\",D39/0.5-D37)","v":""},{"$f":"IF(ISBLANK('Info+Engagés'!H3),\"\",E39/0.5-E37)","v":""},{"$f":"IF(ISBLANK('Info+Engagés'!H4),\"\",F39/0.5-F37)","v":0},{"$f":"IF(ISBLANK('Info+Engagés'!H5),\"\",G39/0.5-G37)","v":""},{"$f":"IF(ISBLANK('Info+Engagés'!H6),\"\",H39/0.5-H37)","v":""},{"$f":"MAX(D38:H38)-MIN(D38:H38)","v":0}]
["Soit en points",null,null,{"$f":"IF(ISBLANK('Info+Engagés'!H2),\"\",(SUM(D31:D35)-D36))","v":""},{"$f":"IF(ISBLANK('Info+Engagés'!H3),\"\",(SUM(E31:E35)-E36))","v":""},{"$f":"IF(ISBLANK('Info+Engagés'!H4),\"\",(SUM(F31:F35)-F36))","v":0},{"$f":"IF(ISBLANK('Info+Engagés'!H5),\"\",(SUM(G31:G35)-G36))","v":""},{"$f":"IF(ISBLANK('Info+Engagés'!H6),\"\",(SUM(H31:H35)-H36))","v":""}]
["                          Total maxi par juge = 50          1 point correspond à 2,000%              1% correspond en points à : 0,5                                                                  Les notes sont sur 10 et correspondent à la saisie informatique par l'opérateur des protocoles joints, Le total résulte de l'addition des points attribués après application du coefficient et soustraction des points de pénalité encourus après conversion en pourcentage sont déduit les pourcentages de pénalités encourus par suite d'erreurs de tracé pour obtenir le pourcentage par juge."]

{"sheet":"Cav40","index":40,"n_rows":40,"n_cols":9,"rows_kept":40,"cut":false,"hidden":false,"merged":[[0,0,1,2],[0,3,1,6],[0,7,1,8],[2,0,2,2],[2,3,3,4],[2,5,3,6],[3,0,3,2],[4,0,4,1],[4,3,6,4],[4,5,6,6],[4,7,5,7],[4,8,5,8],[5,0,5,1],[6,0,7,1],[6,2,7,2],[6,7,7,7],[6,8,7,8],[8,0,8,1],[9,0,9,1],[9,2,10,2],[9,3,10,3],[9,4,10,4],[36,0,36,2],[37,0,37,2],[38,0,38,2],[39,0,43,8],[9,6,10,6],[9,7,10,7],[10,0,10,1],[35,0,35,2],[9,5,10,5],[30,0,34,0],[11,0,29,0]]}
[{"$f":"'Info+Engagés'!B3","v":"Quel Lieu (Dép)"},null,null,{"$f":"'Info+Engagés'!B8","v":"Club 4 Imposée"},null,null,null,{"$f":"'Info+Engagés'!B2","v":"Quelle Date"}]
[]
["N° de concours",null,null,"Cheval",null,"Cavalier",null,"Note d’ensemble"]
[{"$f":"'Info+Engagés'!B4","v":"Quel N°"},null,null,null,null,null,null,"Points",{"$f":"SUM(D39:H39)","v":0}]
["Épreuve N°",null,{"$f":"'Info+Engagés'!B5","v":"Quel N°"},{"$f":"'Info+Engagés'!B51","v":0},null,{"$f":"'Info+Engagés'!G51","v":0},null,"% Final",{"$f":"AVERAGE(D38:H38)","v":0}]
["Piste  ",null,{"$f":"'Info+Engagés'!B6","v":"Piste ?"}]
["N° Départ BO",null,{"$f":"'Info+Engagés'!A51","v":0},null,null,null,null,"Classement"]
[]
["Imprimé le :",null,null,"Juge E","Juge H","Juge C","Juge M","Juge B"]
[{"$f":"TODAY()","v":"2017-02-17"},null,"Coéff .",{"$f":"IF(ISBLANK('Info+Engagés'!H2),\"\",('Info+Engagés'!H2))","v":""},{"$f":"IF(ISBLANK('Info+Engagés'!H3),\"\",('Info+Engagés'!H3))","v":""},{"$f":"IF(ISBLANK('Info+Engagés'!H4),\"\",('Info+Engagés'!H4))","v":"X"},{"$f":"IF(ISBLANK('Info+Engagés'!H5),\"\",('Info+Engagés'!H5))","v":""},{"$f":"IF(ISBLANK('Info+Engagés'!H6),\"\",('Info+Engagés'!H6))","v":""}]
[{"$f":"NOW()","v":42783.749748032409},null,null,null,null,null,null,null,"écart Max"]
["Notation figures","Figure 1",0,null,null,null,null,null,{"$f":"MAX(D12:H12)-MIN(D12:H12)","v":0}]
[null,"Figure 2",0,null,null,null,null,null,0]
[null,"Figure 3",0,null,null,null,null,null,0]
[null,"Figure 4",0,null,null,null,null,null,0]
[null,"Figure 5",0,null,null,null,null,null,0]
[null,"Figure 6",0,null,null,null,null,null,0]
[null,"Figure 7",0,null,null,null,null,null,0]
[null,"Figure 8",0,null,null,null,null,null,0]
[null,"Figure 9",0,null,null,null,null,null,0]
[null,"Figure 10",0,null,null,null,null,null,0]
[null,"Figure 11",0,null,null,null,null,null,0]
[null,"Figure 12",0,null,null,null,null,null,0]
[null,"Figure 13",0,null,null,null,null,null,0]
[null,"Figure 14",0,null,null,null,null,null,0]
[null,"Figure 15",0,null,null,null,null,null,0]
[null,"Figure 16",0,null,null,null,null,null,0]
[null,"Figure 17",0,null,null,null,null,null,0]
[null,"Figure 18",0,null,null,null,null,null,0]
[null,"Figure 19",0,null,null,null,null,null,0]
[" Critéres d'appréciation","Ensemble 1",1,null,null,null,null,null,0]
[null,"Ensemble 2",1,null,null,null,null,null,0]
[null,"Ensemble 3",1,null,null,null,null,null,0]
[null,"Ensemble 4",1,null,null,null,null,null,{"$f":"MAX(D34:H34)-MIN(D34:H34)","v":0}]
[null,"Ensemble 5",1,null,null,null,null,null,{"$f":"MAX(D35:H35)-MIN(D35:H35)","v":0}]
["Pénalité en points"]
["Erreure(s) de tracé "]
["% Total du juge",null,null,{"$f":"IF(ISBLANK('Info+Engagés'!H2),\"\",D39/0.5-D37)","v":""},{"$f":"IF(ISBLANK('Info+Engagés'!H3),\"\",E39/0.5-E37)","v":""},{"$f":"IF(ISBLANK('Info+Engagés'!H4),\"\",F39/0.5-F37)","v":0},{"$f":"IF(ISBLANK('Info+Engagés'!H5),\"\",G39/0.5-G37)","v":""},{"$f":"IF(ISBLANK('Info+Engagés'!H6),\"\",H39/0.5-H37)","v":""},{"$f":"MAX(D38:H38)-MIN(D38:H38)","v":0}]
["Soit en points",null,null,{"$f":"IF(ISBLANK('Info+Engagés'!H2),\"\",(SUM(D31:D35)-D36))","v":""},{"$f":"IF(ISBLANK('Info+Engagés'!H3),\"\",(SUM(E31:E35)-E36))","v":""},{"$f":"IF(ISBLANK('Info+Engagés'!H4),\"\",(SUM(F31:F35)-F36))","v":0},{"$f":"IF(ISBLANK('Info+Engagés'!H5),\"\",(SUM(G31:G35)-G36))","v":""},{"$f":"IF(ISBLANK('Info+Engagés'!H6),\"\",(SUM(H31:H35)-H36))","v":""}]
["                          Total maxi par juge = 50          1 point correspond à 2,000%              1% correspond en points à : 0,5                                                                  Les notes sont sur 10 et correspondent à la saisie informatique par l'opérateur des protocoles joints, Le total résulte de l'addition des points attribués après application du coefficient et soustraction des points de pénalité encourus après conversion en pourcentage sont déduit les pourcentages de pénalités encourus par suite d'erreurs de tracé pour obtenir le pourcentage par juge."]

{"sheet":"Résultats","index":41,"n_rows":49,"n_cols":37,"rows_kept":49,"cut":false,"hidden":false,"merged":[[5,15,5,16],[0,0,1,2],[4,0,4,1],[0,15,0,16],[1,15,1,16],[2,15,2,16],[3,15,3,16],[4,15,4,16],[0,3,1,14],[2,4,2,12],[3,4,3,12],[4,4,4,12],[2,0,2,1],[0,18,8,18],[5,4,5,12],[6,0,6,1],[7,3,7,4],[7,5,7,6],[7,7,7,8],[7,9,7,10],[7,0,7,1],[6,4,6,12],[7,11,7,12],[7,13,7,15],[7,17,8,17],[7,16,8,16],[6,15,6,16],[3,0,3,1],[5,0,5,1]]}
[{"$f":"'Info+Engagés'!B3","v":"Quel Lieu (Dép)"},null,null,{"$f":"'Info+Engagés'!B8","v":"Club 4 Imposée"},null,null,null,null,null,null,null,null,null,null,null,"Inscrtits",null,25,"Repartition Dotation",null,null,null,null,null,null,null,null,"Répartition des Prix"]
[null,null,null,null,null,null,null,null,null,null,null,null,null,null,null,"Forfaits"]
["Concours N°",null,{"$f":"'Info+Engagés'!B4","v":"Quel N°"},"Juge E",{"$f":"IF(ISBLANK('Info+Engagés'!H2),\"\",('Info+Engagés'!H2))","v":""},null,null,null,null,null,null,null,null,null,null,"Non Partants",null,null,null,null,null,null,null,null,null,null,null," Classement                                 Nombre de partants"]
["Epreuve N°",null,{"$f":"'Info+Engagés'!B5","v":"Quel N°"},"Juge H",{"$f":"IF(ISBLANK('Info+Engagés'!H3),\"\",('Info+Engagés'!H3))","v":""},null,null,null,null,null,null,null,null,null,null,"Partant",null,40,null,null,null,null,null,null,null,null,null,null,"         "]
["Piste N°",null,{"$f":"'Info+Engagés'!B6","v":"Piste ?"},"Juge C",{"$f":"IF(ISBLANK('Info+Engagés'!H4),\"\",('Info+Engagés'!H4))","v":"X"},null,null,null,null,null,null,null,null,null,null,"Abandons",null,null,null,null,null,null,null,null,null,null,null,"               22 à 24    19 à 21   16 à 18   13 à 15   10 à 12   7 à 9     4 à 6     1 à 3",50,24,21,18,15,12,9,6,3]
["Imprimé le :",null,{"$f":"TODAY()","v":"2017-02-17"},"Juge M",{"$f":"IF(ISBLANK('Info+Engagés'!H5),\"\",('Info+Engagés'!H5))","v":""},null,null,null,null,null,null,null,null,null,null,"Eliminés",null,null,null,null,null,null,null,null,null,null,null,1,0.25,0.25,0.25,0.25,0.25,0.19,0.15,0.12,0.1]
["A:",null,{"$f":"NOW()","v":42783.749748032409},"Juge B",{"$f":"IF(ISBLANK('Info+Engagés'!H6),\"\",('Info+Engagés'!H6))","v":""},null,null,null,null,null,null,null,null,null,null,"Classés",null,{"$f":"IF(ISBLANK(R1),\"\",ROUNDUP(R4/3,0))","v":14},null,null,null,null,null,null,null,null,null,2,0.19,0.19,0.19,0.19,0.19,0.15,0.12,0.1]
["Dotation",null,{"$f":"'Info+Engagés'!K8","v":100},"Juge E",null,"Juge H",null,"Juge C",null,"Juge M",null,"Juge B",null,"Total",null,null,"Np. Abd. Eli.","Note d'ensemble",null,null,"Gain","Place",null,null,null,null,null,3,0.15,0.15,0.15,0.15,0.15,0.12,0.1]
["N°","CHEVAL","CAVALIER","%","cl","%","cl","%","cl","%","cl","%","cl","Pts","%","Cl Final",null,null,null,null,"calculé",null,null,null,null,null,null,4,0.12,0.12,0.12,0.12,0.12,0.1]
[{"$f":"IF(ISBLANK('Info+Engagés'!A12),\"\",('Info+Engagés'!A12))","v":1},{"$f":"IF(ISBLANK('Info+Engagés'!B12),\"\",('Info+Engagés'!B12))","v":"Y"},{"$f":"IF(ISBLANK('Info+Engagés'!G12),\"\",('Info+Engagés'!G12))","v":"Z"},{"$f":"'Cav1'!D38","v":""},{"$f":"IF(ISBLANK('Info+Engagés'!H2),\"\",RANK(D10,$D$10:$D$49))","v":""},{"$f":"'Cav1'!E38","v":""},{"$f":"IF(ISBLANK('Info+Engagés'!H3),\"\",RANK(F10,$F$10:$F$49))","v":""},{"$f":"'Cav1'!F38","v":0},{"$f":"IF(ISBLANK('Info+Engagés'!H4),\"\",RANK(H10,$H$10:$H$49))","v":1},{"$f":"'Cav1'!G38","v":""},{"$f":"IF(ISBLANK('Info+Engagés'!H5),\"\",RANK(J10,$J$10:$J$49))","v":""},{"$f":"'Cav1'!H38","v":""},{"$f":"IF(ISBLANK('Info+Engagés'!H6),\"\",RANK(L10,$L$10:$L$49))","v":""},{"$f":"'Cav1'!I4","v":0},{"$f":"'Cav1'!I5","v":0},{"$f":"IF(RANK(T10,$T$10:$T$49)<4,RANK(T10,$T$10:$T$49),RANK(O10,$O$10:$O$49))","v":1},null,{"$f":"'Cav1'!I3","v":0},{"$f":"IFERROR(IF(COUNTIF($P$10:$P$49,P10)=1,INDEX($U$10:$U$49,P10),SUMPRODUCT(($P$10:$P$49=P10)*$U$10:$U$49/COUNTIF($P$10:$P$49,P10))),\"\")","v":3.100000000000001},{"$f":"O10+R10/1000","v":0},{"$f":"$C$8*INDEX($AC$6:$AL$50,MATCH(ROW()-9,$AB$6:$AB$50,0),MATCH($R$4,$AC$5:$AL$5,-1))","v":25},1,null,null,null,null,null,5,0.1,0.1,0.1,0.1,0.1]
[{"$f":"IF(ISBLANK('Info+Engagés'!A13),\"\",('Info+Engagés'!A13))","v":""},{"$f":"IF(ISBLANK('Info+Engagés'!B13),\"\",('Info+Engagés'!B13))","v":""},{"$f":"IF(ISBLANK('Info+Engagés'!G13),\"\",('Info+Engagés'!G13))","v":""},{"$f":"'Cav2'!D38","v":""},{"$f":"IF(ISBLANK('Info+Engagés'!H2),\"\",RANK(D11,$D$10:$D$49))","v":""},{"$f":"'Cav2'!E38","v":""},{"$f":"IF(ISBLANK('Info+Engagés'!H3),\"\",RANK(F11,$F$10:$F$49))","v":""},{"$f":"'Cav2'!F38","v":0},{"$f":"IF(ISBLANK('Info+Engagés'!H4),\"\",RANK(H11,$H$10:$H$49))","v":1},{"$f":"'Cav2'!G38","v":""},{"$f":"IF(ISBLANK('Info+Engagés'!H5),\"\",RANK(J11,$J$10:$J$49))","v":""},{"$f":"'Cav2'!H38","v":""},{"$f":"IF(ISBLANK('Info+Engagés'!H6),\"\",RANK(L11,$L$10:$L$49))","v":""},{"$f":"'Cav2'!I4","v":0},{"$f":"'Cav2'!I5","v":0},1,null,{"$f":"'Cav2'!I3","v":0},{"$f":"IFERROR(IF(COUNTIF($P$10:$P$49,P11)=1,INDEX($U$10:$U$49,P11),SUMPRODUCT(($P$10:$P$49=P11)*$U$10:$U$49/COUNTIF($P$10:$P$49,P11))),\"\")","v":3.100000000000001},0,19,2,null,null,null,null,null,6,0.08,0.08,0.08,0.08]
[{"$f":"IF(ISBLANK('Info+Engagés'!A51),\"\",('Info+Engagés'!A51))","v":""},{"$f":"IF(ISBLANK('Info+Engagés'!B51),\"\",('Info+Engagés'!B51))","v":""},{"$f":"IF(ISBLANK('Info+Engagés'!G51),\"\",('Info+Engagés'!G51))","v":""},{"$f":"'Cav40'!D38","v":""},{"$f":"IF(ISBLANK('Info+Engagés'!H2),\"\",RANK(D12,$D$10:$D$49))","v":""},{"$f":"'Cav40'!E38","v":""},{"$f":"IF(ISBLANK('Info+Engagés'!H3),\"\",RANK(F12,$F$10:$F$49))","v":""},{"$f":"'Cav40'!F38","v":0},{"$f":"IF(ISBLANK('Info+Engagés'!H4),\"\",RANK(H12,$H$10:$H$49))","v":1},{"$f":"'Cav40'!G38","v":""},{"$f":"IF(ISBLANK('Info+Engagés'!H5),\"\",RANK(J12,$J$10:$J$49))","v":""},{"$f":"'Cav40'!H38","v":""},{"$f":"IF(ISBLANK('Info+Engagés'!H6),\"\",RANK(L12,$L$10:$L$49))","v":""},{"$f":"'Cav40'!I4","v":0},{"$f":"'Cav40'!I5","v":0},1,null,{"$f":"'Cav40'!I3","v":0},3.100000000000001,0,15,3,null,null,null,null,null,7,0.06,0.06,0.06]
[{"$f":"IF(ISBLANK('Info+Engagés'!A14),\"\",('Info+Engagés'!A14))","v":""},{"$f":"IF(ISBLANK('Info+Engagés'!B14),\"\",('Info+Engagés'!B14))","v":""},{"$f":"IF(ISBLANK('Info+Engagés'!G14),\"\",('Info+Engagés'!G14))","v":""},{"$f":"'Cav3'!D38","v":""},{"$f":"IF(ISBLANK('Info+Engagés'!H2),\"\",RANK(D13,$D$10:$D$49))","v":""},{"$f":"'Cav3'!E38","v":""},{"$f":"IF(ISBLANK('Info+Engagés'!H3),\"\",RANK(F13,$F$10:$F$49))","v":""},{"$f":"'Cav3'!F38","v":0},{"$f":"IF(ISBLANK('Info+Engagés'!H4),\"\",RANK(H13,$H$10:$H$49))","v":1},{"$f":"'Cav3'!G38","v":""},{"$f":"IF(ISBLANK('Info+Engagés'!H5),\"\",RANK(J13,$J$10:$J$49))","v":""},{"$f":"'Cav3'!H38","v":""},{"$f":"IF(ISBLANK('Info+Engagés'!H6),\"\",RANK(L13,$L$10:$L$49))","v":""},{"$f":"'Cav3'!I4","v":0},{"$f":"'Cav3'!I5","v":0},1,null,{"$f":"'Cav3'!I3","v":0},3.100000000000001,0,12,4,null,null,null,null,null,8,0.05,0.05]
[{"$f":"IF(ISBLANK('Info+Engagés'!A15),\"\",('Info+Engagés'!A15))","v":""},{"$f":"IF(ISBLANK('Info+Engagés'!B15),\"\",('Info+Engagés'!B15))","v":""},{"$f":"IF(ISBLANK('Info+Engagés'!G15),\"\",('Info+Engagés'!G15))","v":""},{"$f":"'Cav4'!D38","v":""},{"$f":"IF(ISBLANK('Info+Engagés'!H2),\"\",RANK(D14,$D$10:$D$49))","v":""},{"$f":"'Cav4'!E38","v":""},{"$f":"IF(ISBLANK('Info+Engagés'!H3),\"\",RANK(F14,$F$10:$F$49))","v":""},{"$f":"'Cav4'!F38","v":0},{"$f":"IF(ISBLANK('Info+Engagés'!H4),\"\",RANK(H14,$H$10:$H$49))","v":1},{"$f":"'Cav4'!G38","v":""},{"$f":"IF(ISBLANK('Info+Engagés'!H5),\"\",RANK(J14,$J$10:$J$49))","v":""},{"$f":"'Cav4'!H38","v":""},{"$f":"IF(ISBLANK('Info+Engagés'!H6),\"\",RANK(L14,$L$10:$L$49))","v":""},{"$f":"'Cav4'!I4","v":0},{"$f":"'Cav4'!I5","v":0},1,null,{"$f":"'Cav4'!I3","v":0},3.100000000000001,0,10,5,null,null,null,null,null,9,{"$f":"IF($R$4>24,4%,0)","v":0.04}]
[{"$f":"IF(ISBLANK('Info+Engagés'!A17),\"\",('Info+Engagés'!A17))","v":""},{"$f":"IF(ISBLANK('Info+Engagés'!B17),\"\",('Info+Engagés'!B17))","v":""},{"$f":"IF(ISBLANK('Info+Engagés'!G17),\"\",('Info+Engagés'!G17))","v":""},{"$f":"'Cav6'!D38","v":""},{"$f":"IF(ISBLANK('Info+Engagés'!H2),\"\",RANK(D15,$D$10:$D$49))","v":""},{"$f":"'Cav6'!E38","v":""},{"$f":"IF(ISBLANK('Info+Engagés'!H3),\"\",RANK(F15,$F$10:$F$49))","v":""},{"$f":"'Cav6'!F38","v":0},{"$f":"IF(ISBLANK('Info+Engagés'!H4),\"\",RANK(H15,$H$10:$H$49))","v":1},{"$f":"'Cav6'!G38","v":""},{"$f":"IF(ISBLANK('Info+Engagés'!H5),\"\",RANK(J15,$J$10:$J$49))","v":""},{"$f":"'Cav6'!H38","v":""},{"$f":"IF(ISBLANK('Info+Engagés'!H6),\"\",RANK(L15,$L$10:$L$49))","v":""},{"$f":"'Cav6'!I4","v":0},{"$f":"'Cav6'!I5","v":0},1,null,{"$f":"'Cav6'!I3","v":0},3.100000000000001,0,8,6,null,null,null,null,null,10,{"$f":"IF($R$4>27,4%,0)","v":0.04}]
[{"$f":"IF(ISBLANK('Info+Engagés'!A18),\"\",('Info+Engagés'!A18))","v":""},{"$f":"IF(ISBLANK('Info+Engagés'!B18),\"\",('Info+Engagés'!B18))","v":""},{"$f":"IF(ISBLANK('Info+Engagés'!G18),\"\",('Info+Engagés'!G18))","v":""},{"$f":"'Cav7'!D38","v":""},{"$f":"IF(ISBLANK('Info+Engagés'!H2),\"\",RANK(D16,$D$10:$D$49))","v":""},{"$f":"'Cav7'!E38","v":""},{"$f":"IF(ISBLANK('Info+Engagés'!H3),\"\",RANK(F16,$F$10:$F$49))","v":""},{"$f":"'Cav7'!F38","v":0},{"$f":"IF(ISBLANK('Info+Engagés'!H4),\"\",RANK(H16,$H$10:$H$49))","v":1},{"$f":"'Cav7'!G38","v":""},{"$f":"IF(ISBLANK('Info+Engagés'!H5),\"\",RANK(J16,$J$10:$J$49))","v":""},{"$f":"'Cav7'!H38","v":""},{"$f":"IF(ISBLANK('Info+Engagés'!H6),\"\",RANK(L16,$L$10:$L$49))","v":""},{"$f":"'Cav7'!I4","v":0},{"$f":"'Cav7'!I5","v":0},1,null,{"$f":"'Cav7'!I3","v":0},3.100000000000001,0,6,7,null,null,null,null,null,11,{"$f":"IF($R$4>30,4%,0)","v":0.04}]
[{"$f":"IF(ISBLANK('Info+Engagés'!A19),\"\",('Info+Engagés'!A19))","v":""},{"$f":"IF(ISBLANK('Info+Engagés'!B19),\"\",('Info+Engagés'!B19))","v":""},{"$f":"IF(ISBLANK('Info+Engagés'!G19),\"\",('Info+Engagés'!G19))","v":""},{"$f":"'Cav8'!D38","v":""},{"$f":"IF(ISBLANK('Info+Engagés'!H2),\"\",RANK(D17,$D$10:$D$49))","v":""},{"$f":"'Cav8'!E38","v":""},{"$f":"IF(ISBLANK('Info+Engagés'!H3),\"\",RANK(F17,$F$10:$F$49))","v":""},{"$f":"'Cav8'!F38","v":0},{"$f":"IF(ISBLANK('Info+Engagés'!H4),\"\",RANK(H17,$H$10:$H$49))","v":1},{"$f":"'Cav8'!G38","v":""},{"$f":"IF(ISBLANK('Info+Engagés'!H5),\"\",RANK(J17,$J$10:$J$49))","v":""},{"$f":"'Cav8'!H38","v":""},{"$f":"IF(ISBLANK('Info+Engagés'!H6),\"\",RANK(L17,$L$10:$L$49))","v":""},{"$f":"'Cav8'!I4","v":0},{"$f":"'Cav8'!I5","v":0},1,null,{"$f":"'Cav8'!I3","v":0},3.100000000000001,0,5,8,null,null,null,null,null,12,{"$f":"IF($R$4>33,4%,0)","v":0.04}]
[{"$f":"IF(ISBLANK('Info+Engagés'!A20),\"\",('Info+Engagés'!A20))","v":""},{"$f":"IF(ISBLANK('Info+Engagés'!B20),\"\",('Info+Engagés'!B20))","v":""},{"$f":"IF(ISBLANK('Info+Engagés'!G20),\"\",('Info+Engagés'!G20))","v":""},{"$f":"'Cav9'!D38","v":""},{"$f":"IF(ISBLANK('Info+Engagés'!H2),\"\",RANK(D18,$D$10:$D$49))","v":""},{"$f":"'Cav9'!E38","v":""},{"$f":"IF(ISBLANK('Info+Engagés'!H3),\"\",RANK(F18,$F$10:$F$49))","v":""},{"$f":"'Cav9'!F38","v":0},{"$f":"IF(ISBLANK('Info+Engagés'!H4),\"\",RANK(H18,$H$10:$H$49))","v":1},{"$f":"'Cav9'!G38","v":""},{"$f":"IF(ISBLANK('Info+Engagés'!H5),\"\",RANK(J18,$J$10:$J$49))","v":""},{"$f":"'Cav9'!H38","v":""},{"$f":"IF(ISBLANK('Info+Engagés'!H6),\"\",RANK(L18,$L$10:$L$49))","v":""},{"$f":"'Cav9'!I4","v":0},{"$f":"'Cav9'!I5","v":0},1,null,{"$f":"'Cav9'!I3","v":0},3.100000000000001,0,4,9,null,null,null,null,null,13,{"$f":"IF($R$4>36,4%,0)","v":0.04}]
[{"$f":"IF(ISBLANK('Info+Engagés'!A21),\"\",('Info+Engagés'!A21))","v":""},{"$f":"IF(ISBLANK('Info+Engagés'!B21),\"\",('Info+Engagés'!B21))","v":""},{"$f":"IF(ISBLANK('Info+Engagés'!G21),\"\",('Info+Engagés'!G21))","v":""},{"$f":"'Cav10'!D38","v":""},{"$f":"IF(ISBLANK('Info+Engagés'!H2),\"\",RANK(D19,$D$10:$D$49))","v":""},{"$f":"'Cav10'!E38","v":""},{"$f":"IF(ISBLANK('Info+Engagés'!H3),\"\",RANK(F19,$F$10:$F$49))","v":""},{"$f":"'Cav10'!F38","v":0},{"$f":"IF(ISBLANK('Info+Engagés'!H4),\"\",RANK(H19,$H$10:$H$49))","v":1},{"$f":"'Cav10'!G38","v":""},{"$f":"IF(ISBLANK('Info+Engagés'!H5),\"\",RANK(J19,$J$10:$J$49))","v":""},{"$f":"'Cav10'!H38","v":""},{"$f":"IF(ISBLANK('Info+Engagés'!H6),\"\",RANK(L19,$L$10:$L$49))","v":""},{"$f":"'Cav10'!I4","v":0},{"$f":"'Cav10'!I5","v":0},1,null,{"$f":"'Cav10'!I3","v":0},3.100000000000001,0,4,10,null,null,null,null,null,14,{"$f":"IF($R$4>39,4%,0)","v":0.04}]
[{"$f":"IF(ISBLANK('Info+Engagés'!A22),\"\",('Info+Engagés'!A22))","v":""},{"$f":"IF(ISBLANK('Info+Engagés'!B22),\"\",('Info+Engagés'!B22))","v":""},{"$f":"IF(ISBLANK('Info+Engagés'!G22),\"\",('Info+Engagés'!G22))","v":""},{"$f":"'Cav11'!D38","v":""},{"$f":"IF(ISBLANK('Info+Engagés'!H2),\"\",RANK(D20,$D$10:$D$49))","v":""},{"$f":"'Cav11'!E38","v":""},{"$f":"IF(ISBLANK('Info+Engagés'!H3),\"\",RANK(F20,$F$10:$F$49))","v":""},{"$f":"'Cav11'!F38","v":0},{"$f":"IF(ISBLANK('Info+Engagés'!H4),\"\",RANK(H20,$H$10:$H$49))","v":1},{"$f":"'Cav11'!G38","v":""},{"$f":"IF(ISBLANK('Info+Engagés'!H5),\"\",RANK(J20,$J$10:$J$49))","v":""},{"$f":"'Cav11'!H38","v":""},{"$f":"IF(ISBLANK('Info+Engagés'!H6),\"\",RANK(L20,$L$10:$L$49))","v":""},{"$f":"'Cav11'!I4","v":0},{"$f":"'Cav11'!I5","v":0},1,null,{"$f":"'Cav11'!I3","v":0},3.100000000000001,0,4,11,null,null,null,null,null,15,0]
[{"$f":"IF(ISBLANK('Info+Engagés'!A23),\"\",('Info+Engagés'!A23))","v":""},{"$f":"IF(ISBLANK('Info+Engagés'!B23),\"\",('Info+Engagés'!B23))","v":""},{"$f":"IF(ISBLANK('Info+Engagés'!G23),\"\",('Info+Engagés'!G23))","v":""},{"$f":"'Cav12'!D38","v":""},{"$f":"IF(ISBLANK('Info+Engagés'!H2),\"\",RANK(D21,$D$10:$D$49))","v":""},{"$f":"'Cav12'!E38","v":""},{"$f":"IF(ISBLANK('Info+Engagés'!H3),\"\",RANK(F21,$F$10:$F$49))","v":""},{"$f":"'Cav12'!F38","v":0},{"$f":"IF(ISBLANK('Info+Engagés'!H4),\"\",RANK(H21,$H$10:$H$49))","v":1},{"$f":"'Cav12'!G38","v":""},{"$f":"IF(ISBLANK('Info+Engagés'!H5),\"\",RANK(J21,$J$10:$J$49))","v":""},{"$f":"'Cav12'!H38","v":""},{"$f":"IF(ISBLANK('Info+Engagés'!H6),\"\",RANK(L21,$L$10:$L$49))","v":""},{"$f":"'Cav12'!I4","v":0},{"$f":"'Cav12'!I5","v":0},1,null,{"$f":"'Cav12'!I3","v":0},3.100000000000001,0,4,12,null,null,null,null,null,16,0]
[{"$f":"IF(ISBLANK('Info+Engagés'!A24),\"\",('Info+Engagés'!A24))","v":""},{"$f":"IF(ISBLANK('Info+Engagés'!B24),\"\",('Info+Engagés'!B24))","v":""},{"$f":"IF(ISBLANK('Info+Engagés'!G24),\"\",('Info+Engagés'!G24))","v":""},{"$f":"'Cav13'!D38","v":""},{"$f":"IF(ISBLANK('Info+Engagés'!H2),\"\",RANK(D22,$D$10:$D$49))","v":""},{"$f":"'Cav13'!E38","v":""},{"$f":"IF(ISBLANK('Info+Engagés'!H3),\"\",RANK(F22,$F$10:$F$49))","v":""},{"$f":"'Cav13'!F38","v":0},{"$f":"IF(ISBLANK('Info+Engagés'!H4),\"\",RANK(H22,$H$10:$H$49))","v":1},{"$f":"'Cav13'!G38","v":""},{"$f":"IF(ISBLANK('Info+Engagés'!H5),\"\",RANK(J22,$J$10:$J$49))","v":""},{"$f":"'Cav13'!H38","v":""},{"$f":"IF(ISBLANK('Info+Engagés'!H6),\"\",RANK(L22,$L$10:$L$49))","v":""},{"$f":"'Cav13'!I4","v":0},{"$f":"'Cav13'!I5","v":0},1,null,{"$f":"'Cav13'!I3","v":0},3.100000000000001,0,4,13,null,null,null,null,null,17,0]
[{"$f":"IF(ISBLANK('Info+Engagés'!A25),\"\",('Info+Engagés'!A25))","v":""},{"$f":"IF(ISBLANK('Info+Engagés'!B25),\"\",('Info+Engagés'!B25))","v":""},{"$f":"IF(ISBLANK('Info+Engagés'!G25),\"\",('Info+Engagés'!G25))","v":""},{"$f":"'Cav14'!D38","v":""},{"$f":"IF(ISBLANK('Info+Engagés'!H2),\"\",RANK(D23,$D$10:$D$49))","v":""},{"$f":"'Cav14'!E38","v":""},{"$f":"IF(ISBLANK('Info+Engagés'!H3),\"\",RANK(F23,$F$10:$F$49))","v":""},{"$f":"'Cav14'!F38","v":0},{"$f":"IF(ISBLANK('Info+Engagés'!H4),\"\",RANK(H23,$H$10:$H$49))","v":1},{"$f":"'Cav14'!G38","v":""},{"$f":"IF(ISBLANK('Info+Engagés'!H5),\"\",RANK(J23,$J$10:$J$49))","v":""},{"$f":"'Cav14'!H38","v":""},{"$f":"IF(ISBLANK('Info+Engagés'!H6),\"\",RANK(L23,$L$10:$L$49))","v":""},{"$f":"'Cav14'!I4","v":0},{"$f":"'Cav14'!I5","v":0},1,null,{"$f":"'Cav14'!I3","v":0},3.100000000000001,0,4,14,null,null,null,null,null,18,0]
[{"$f":"IF(ISBLANK('Info+Engagés'!A26),\"\",('Info+Engagés'!A26))","v":""},{"$f":"IF(ISBLANK('Info+Engagés'!B26),\"\",('Info+Engagés'!B26))","v":""},{"$f":"IF(ISBLANK('Info+Engagés'!G26),\"\",('Info+Engagés'!G26))","v":""},{"$f":"'Cav15'!D38","v":""},{"$f":"IF(ISBLANK('Info+Engagés'!H2),\"\",RANK(D24,$D$10:$D$49))","v":""},{"$f":"'Cav15'!E38","v":""},{"$f":"IF(ISBLANK('Info+Engagés'!H3),\"\",RANK(F24,$F$10:$F$49))","v":""},{"$f":"'Cav15'!F38","v":0},{"$f":"IF(ISBLANK('Info+Engagés'!H4),\"\",RANK(H24,$H$10:$H$49))","v":1},{"$f":"'Cav15'!G38","v":""},{"$f":"IF(ISBLANK('Info+Engagés'!H5),\"\",RANK(J24,$J$10:$J$49))","v":""},{"$f":"'Cav15'!H38","v":""},{"$f":"IF(ISBLANK('Info+Engagés'!H6),\"\",RANK(L24,$L$10:$L$49))","v":""},{"$f":"'Cav15'!I4","v":0},{"$f":"'Cav15'!I5","v":0},1,null,{"$f":"'Cav15'!I3","v":0},3.100000000000001,0,0,null,null,null,null,null,null,19,0]
[{"$f":"IF(ISBLANK('Info+Engagés'!A27),\"\",('Info+Engagés'!A27))","v":""},{"$f":"IF(ISBLANK('Info+Engagés'!B27),\"\",('Info+Engagés'!B27))","v":""},{"$f":"IF(ISBLANK('Info+Engagés'!G27),\"\",('Info+Engagés'!G27))","v":""},{"$f":"'Cav16'!D38","v":""},{"$f":"IF(ISBLANK('Info+Engagés'!H2),\"\",RANK(D25,$D$10:$D$49))","v":""},{"$f":"'Cav16'!E38","v":""},{"$f":"IF(ISBLANK('Info+Engagés'!H3),\"\",RANK(F25,$F$10:$F$49))","v":""},{"$f":"'Cav16'!F38","v":0},{"$f":"IF(ISBLANK('Info+Engagés'!H4),\"\",RANK(H25,$H$10:$H$49))","v":1},{"$f":"'Cav16'!G38","v":""},{"$f":"IF(ISBLANK('Info+Engagés'!H5),\"\",RANK(J25,$J$10:$J$49))","v":""},{"$f":"'Cav16'!H38","v":""},{"$f":"IF(ISBLANK('Info+Engagés'!H6),\"\",RANK(L25,$L$10:$L$49))","v":""},{"$f":"'Cav16'!I4","v":0},{"$f":"'Cav16'!I5","v":0},1,null,{"$f":"'Cav16'!I3","v":0},3.100000000000001,0,0,null,null,null,null,null,null,20,0]
[{"$f":"IF(ISBLANK('Info+Engagés'!A28),\"\",('Info+Engagés'!A28))","v":""},{"$f":"IF(ISBLANK('Info+Engagés'!B28),\"\",('Info+Engagés'!B28))","v":""},{"$f":"IF(ISBLANK('Info+Engagés'!G28),\"\",('Info+Engagés'!G28))","v":""},{"$f":"'Cav17'!D38","v":""},{"$f":"IF(ISBLANK('Info+Engagés'!H2),\"\",RANK(D26,$D$10:$D$49))","v":""},{"$f":"'Cav17'!E38","v":""},{"$f":"IF(ISBLANK('Info+Engagés'!H3),\"\",RANK(F26,$F$10:$F$49))","v":""},{"$f":"'Cav17'!F38","v":0},{"$f":"IF(ISBLANK('Info+Engagés'!H4),\"\",RANK(H26,$H$10:$H$49))","v":1},{"$f":"'Cav17'!G38","v":""},{"$f":"IF(ISBLANK('Info+Engagés'!H5),\"\",RANK(J26,$J$10:$J$49))","v":""},{"$f":"'Cav17'!H38","v":""},{"$f":"IF(ISBLANK('Info+Engagés'!H6),\"\",RANK(L26,$L$10:$L$49))","v":""},{"$f":"'Cav17'!I4","v":0},{"$f":"'Cav17'!I5","v":0},1,null,{"$f":"'Cav17'!I3","v":0},3.100000000000001,0,0,null,null,null,null,null,null,21,0]
[{"$f":"IF(ISBLANK('Info+Engagés'!A29),\"\",('Info+Engagés'!A29))","v":""},{"$f":"IF(ISBLANK('Info+Engagés'!B29),\"\",('Info+Engagés'!B29))","v":""},{"$f":"IF(ISBLANK('Info+Engagés'!G29),\"\",('Info+Engagés'!G29))","v":""},{"$f":"'Cav18'!D38","v":""},{"$f":"IF(ISBLANK('Info+Engagés'!H2),\"\",RANK(D27,$D$10:$D$49))","v":""},{"$f":"'Cav18'!E38","v":""},{"$f":"IF(ISBLANK('Info+Engagés'!H3),\"\",RANK(F27,$F$10:$F$49))","v":""},{"$f":"'Cav18'!F38","v":0},{"$f":"IF(ISBLANK('Info+Engagés'!H4),\"\",RANK(H27,$H$10:$H$49))","v":1},{"$f":"'Cav18'!G38","v":""},{"$f":"IF(ISBLANK('Info+Engagés'!H5),\"\",RANK(J27,$J$10:$J$49))","v":""},{"$f":"'Cav18'!H38","v":""},{"$f":"IF(ISBLANK('Info+Engagés'!H6),\"\",RANK(L27,$L$10:$L$49))","v":""},{"$f":"'Cav18'!I4","v":0},{"$f":"'Cav18'!I5","v":0},1,null,{"$f":"'Cav18'!I3","v":0},3.100000000000001,0,0,null,null,null,null,null,null,22,0]
[{"$f":"IF(ISBLANK('Info+Engagés'!A30),\"\",('Info+Engagés'!A30))","v":""},{"$f":"IF(ISBLANK('Info+Engagés'!B30),\"\",('Info+Engagés'!B30))","v":""},{"$f":"IF(ISBLANK('Info+Engagés'!G30),\"\",('Info+Engagés'!G30))","v":""},{"$f":"'Cav19'!D38","v":""},{"$f":"IF(ISBLANK('Info+Engagés'!H2),\"\",RANK(D28,$D$10:$D$49))","v":""},{"$f":"'Cav19'!E38","v":""},{"$f":"IF(ISBLANK('Info+Engagés'!H3),\"\",RANK(F28,$F$10:$F$49))","v":""},{"$f":"'Cav19'!F38","v":0},{"$f":"IF(ISBLANK('Info+Engagés'!H4),\"\",RANK(H28,$H$10:$H$49))","v":1},{"$f":"'Cav19'!G38","v":""},{"$f":"IF(ISBLANK('Info+Engagés'!H5),\"\",RANK(J28,$J$10:$J$49))","v":""},{"$f":"'Cav19'!H38","v":""},{"$f":"IF(ISBLANK('Info+Engagés'!H6),\"\",RANK(L28,$L$10:$L$49))","v":""},{"$f":"'Cav19'!I4","v":0},{"$f":"'Cav19'!I5","v":0},1,null,{"$f":"'Cav19'!I3","v":0},3.100000000000001,0,0,null,null,null,null,null,null,23,0]
[{"$f":"IF(ISBLANK('Info+Engagés'!A32),\"\",('Info+Engagés'!A32))","v":""},{"$f":"IF(ISBLANK('Info+Engagés'!B32),\"\",('Info+Engagés'!B32))","v":""},{"$f":"IF(ISBLANK('Info+Engagés'!G32),\"\",('Info+Engagés'!G32))","v":""},{"$f":"'Cav21'!D38","v":""},{"$f":"IF(ISBLANK('Info+Engagés'!H2),\"\",RANK(D29,$D$10:$D$49))","v":""},{"$f":"'Cav21'!E38","v":""},{"$f":"IF(ISBLANK('Info+Engagés'!H3),\"\",RANK(F29,$F$10:$F$49))","v":""},{"$f":"'Cav21'!F38","v":0},{"$f":"IF(ISBLANK('Info+Engagés'!H4),\"\",RANK(H29,$H$10:$H$49))","v":1},{"$f":"'Cav21'!G38","v":""},{"$f":"IF(ISBLANK('Info+Engagés'!H5),\"\",RANK(J29,$J$10:$J$49))","v":""},{"$f":"'Cav21'!H38","v":""},{"$f":"IF(ISBLANK('Info+Engagés'!H6),\"\",RANK(L29,$L$10:$L$49))","v":""},{"$f":"'Cav21'!I4","v":0},{"$f":"'Cav21'!I5","v":0},1,null,{"$f":"'Cav21'!I3","v":0},3.100000000000001,0,0,null,null,null,null,null,null,24,0]
[{"$f":"IF(ISBLANK('Info+Engagés'!A33),\"\",('Info+Engagés'!A33))","v":""},{"$f":"IF(ISBLANK('Info+Engagés'!B33),\"\",('Info+Engagés'!B33))","v":""},{"$f":"IF(ISBLANK('Info+Engagés'!G33),\"\",('Info+Engagés'!G33))","v":""},{"$f":"'Cav22'!D38","v":""},{"$f":"IF(ISBLANK('Info+Engagés'!H2),\"\",RANK(D30,$D$10:$D$49))","v":""},{"$f":"'Cav22'!E38","v":""},{"$f":"IF(ISBLANK('Info+Engagés'!H3),\"\",RANK(F30,$F$10:$F$49))","v":""},{"$f":"'Cav22'!F38","v":0},{"$f":"IF(ISBLANK('Info+Engagés'!H4),\"\",RANK(H30,$H$10:$H$49))","v":1},{"$f":"'Cav22'!G38","v":""},{"$f":"IF(ISBLANK('Info+Engagés'!H5),\"\",RANK(J30,$J$10:$J$49))","v":""},{"$f":"'Cav22'!H38","v":""},{"$f":"IF(ISBLANK('Info+Engagés'!H6),\"\",RANK(L30,$L$10:$L$49))","v":""},{"$f":"'Cav22'!I4","v":0},{"$f":"'Cav22'!I5","v":0},1,null,{"$f":"'Cav22'!I3","v":0},3.100000000000001,0,0,null,null,null,null,null,null,25,0]
[{"$f":"IF(ISBLANK('Info+Engagés'!A34),\"\",('Info+Engagés'!A34))","v":""},{"$f":"IF(ISBLANK('Info+Engagés'!B34),\"\",('Info+Engagés'!B34))","v":""},{"$f":"IF(ISBLANK('Info+Engagés'!G34),\"\",('Info+Engagés'!G34))","v":""},{"$f":"'Cav23'!D38","v":""},{"$f":"IF(ISBLANK('Info+Engagés'!H2),\"\",RANK(D31,$D$10:$D$49))","v":""},{"$f":"'Cav23'!E38","v":""},{"$f":"IF(ISBLANK('Info+Engagés'!H3),\"\",RANK(F31,$F$10:$F$49))","v":""},{"$f":"'Cav23'!F38","v":0},{"$f":"IF(ISBLANK('Info+Engagés'!H4),\"\",RANK(H31,$H$10:$H$49))","v":1},{"$f":"'Cav23'!G38","v":""},{"$f":"IF(ISBLANK('Info+Engagés'!H5),\"\",RANK(J31,$J$10:$J$49))","v":""},{"$f":"'Cav23'!H38","v":""},{"$f":"IF(ISBLANK('Info+Engagés'!H6),\"\",RANK(L31,$L$10:$L$49))","v":""},{"$f":"'Cav23'!I4","v":0},{"$f":"'Cav23'!I5","v":0},1,null,{"$f":"'Cav23'!I3","v":0},3.100000000000001,0,0,null,null,null,null,null,null,26,0]
[{"$f":"IF(ISBLANK('Info+Engagés'!A35),\"\",('Info+Engagés'!A35))","v":""},{"$f":"IF(ISBLANK('Info+Engagés'!B35),\"\",('Info+Engagés'!B35))","v":""},{"$f":"IF(ISBLANK('Info+Engagés'!G35),\"\",('Info+Engagés'!G35))","v":""},{"$f":"'Cav24'!D38","v":""},{"$f":"IF(ISBLANK('Info+Engagés'!H2),\"\",RANK(D32,$D$10:$D$49))","v":""},{"$f":"'Cav24'!E38","v":""},{"$f":"IF(ISBLANK('Info+Engagés'!H3),\"\",RANK(F32,$F$10:$F$49))","v":""},{"$f":"'Cav24'!F38","v":0},{"$f":"IF(ISBLANK('Info+Engagés'!H4),\"\",RANK(H32,$H$10:$H$49))","v":1},{"$f":"'Cav24'!G38","v":""},{"$f":"IF(ISBLANK('Info+Engagés'!H5),\"\",RANK(J32,$J$10:$J$49))","v":""},{"$f":"'Cav24'!H38","v":""},{"$f":"IF(ISBLANK('Info+Engagés'!H6),\"\",RANK(L32,$L$10:$L$49))","v":""},{"$f":"'Cav24'!I4","v":0},{"$f":"'Cav24'!I5","v":0},1,null,{"$f":"'Cav24'!I3","v":0},3.100000000000001,0,0,null,null,null,null,null,null,27,0]
[{"$f":"IF(ISBLANK('Info+Engagés'!A36),\"\",('Info+Engagés'!A36))","v":""},{"$f":"IF(ISBLANK('Info+Engagés'!B36),\"\",('Info+Engagés'!B36))","v":""},{"$f":"IF(ISBLANK('Info+Engagés'!G36),\"\",('Info+Engagés'!G36))","v":""},{"$f":"'Cav25'!D38","v":""},{"$f":"IF(ISBLANK('Info+Engagés'!H2),\"\",RANK(D33,$D$10:$D$49))","v":""},{"$f":"'Cav25'!E38","v":""},{"$f":"IF(ISBLANK('Info+Engagés'!H3),\"\",RANK(F33,$F$10:$F$49))","v":""},{"$f":"'Cav25'!F38","v":0},{"$f":"IF(ISBLANK('Info+Engagés'!H4),\"\",RANK(H33,$H$10:$H$49))","v":1},{"$f":"'Cav25'!G38","v":""},{"$f":"IF(ISBLANK('Info+Engagés'!H5),\"\",RANK(J33,$J$10:$J$49))","v":""},{"$f":"'Cav25'!H38","v":""},{"$f":"IF(ISBLANK('Info+Engagés'!H6),\"\",RANK(L33,$L$10:$L$49))","v":""},{"$f":"'Cav25'!I4","v":0},{"$f":"'Cav25'!I5","v":0},1,null,{"$f":"'Cav25'!I3","v":0},3.100000000000001,0,0,null,null,null,null,null,null,28,0]
[{"$f":"IF(ISBLANK('Info+Engagés'!A37),\"\",('Info+Engagés'!A37))","v":""},{"$f":"IF(ISBLANK('Info+Engagés'!B37),\"\",('Info+Engagés'!B37))","v":""},{"$f":"IF(ISBLANK('Info+Engagés'!G37),\"\",('Info+Engagés'!G37))","v":""},{"$f":"'Cav26'!D38","v":""},{"$f":"IF(ISBLANK('Info+Engagés'!H2),\"\",RANK(D34,$D$10:$D$49))","v":""},{"$f":"'Cav26'!E38","v":""},{"$f":"IF(ISBLANK('Info+Engagés'!H3),\"\",RANK(F34,$F$10:$F$49))","v":""},{"$f":"'Cav26'!F38","v":0},{"$f":"IF(ISBLANK('Info+Engagés'!H4),\"\",RANK(H34,$H$10:$H$49))","v":1},{"$f":"'Cav26'!G38","v":""},{"$f":"IF(ISBLANK('Info+Engagés'!H5),\"\",RANK(J34,$J$10:$J$49))","v":""},{"$f":"'Cav26'!H38","v":""},{"$f":"IF(ISBLANK('Info+Engagés'!H6),\"\",RANK(L34,$L$10:$L$49))","v":""},{"$f":"'Cav26'!I4","v":0},{"$f":"'Cav26'!I5","v":0},1,null,{"$f":"'Cav26'!I3","v":0},3.100000000000001,0,0,null,null,null,null,null,null,29,0]
[{"$f":"IF(ISBLANK('Info+Engagés'!A38),\"\",('Info+Engagés'!A38))","v":""},{"$f":"IF(ISBLANK('Info+Engagés'!B38),\"\",('Info+Engagés'!B38))","v":""},{"$f":"IF(ISBLANK('Info+Engagés'!G38),\"\",('Info+Engagés'!G38))","v":""},{"$f":"'Cav27'!D38","v":""},{"$f":"IF(ISBLANK('Info+Engagés'!H2),\"\",RANK(D35,$D$10:$D$49))","v":""},{"$f":"'Cav27'!E38","v":""},{"$f":"IF(ISBLANK('Info+Engagés'!H3),\"\",RANK(F35,$F$10:$F$49))","v":""},{"$f":"'Cav27'!F38","v":0},{"$f":"IF(ISBLANK('Info+Engagés'!H4),\"\",RANK(H35,$H$10:$H$49))","v":1},{"$f":"'Cav27'!G38","v":""},{"$f":"IF(ISBLANK('Info+Engagés'!H5),\"\",RANK(J35,$J$10:$J$49))","v":""},{"$f":"'Cav27'!H38","v":""},{"$f":"IF(ISBLANK('Info+Engagés'!H6),\"\",RANK(L35,$L$10:$L$49))","v":""},{"$f":"'Cav27'!I4","v":0},{"$f":"'Cav27'!I5","v":0},1,null,{"$f":"'Cav27'!I3","v":0},3.100000000000001,0,0,null,null,null,null,null,null,30,0]
[{"$f":"IF(ISBLANK('Info+Engagés'!A39),\"\",('Info+Engagés'!A39))","v":""},{"$f":"IF(ISBLANK('Info+Engagés'!B39),\"\",('Info+Engagés'!B39))","v":""},{"$f":"IF(ISBLANK('Info+Engagés'!G39),\"\",('Info+Engagés'!G39))","v":""},{"$f":"'Cav28'!D38","v":""},{"$f":"IF(ISBLANK('Info+Engagés'!H2),\"\",RANK(D36,$D$10:$D$49))","v":""},{"$f":"'Cav28'!E38","v":""},{"$f":"IF(ISBLANK('Info+Engagés'!H3),\"\",RANK(F36,$F$10:$F$49))","v":""},{"$f":"'Cav28'!F38","v":0},{"$f":"IF(ISBLANK('Info+Engagés'!H4),\"\",RANK(H36,$H$10:$H$49))","v":1},{"$f":"'Cav28'!G38","v":""},{"$f":"IF(ISBLANK('Info+Engagés'!H5),\"\",RANK(J36,$J$10:$J$49))","v":""},{"$f":"'Cav28'!H38","v":""},{"$f":"IF(ISBLANK('Info+Engagés'!H6),\"\",RANK(L36,$L$10:$L$49))","v":""},{"$f":"'Cav28'!I4","v":0},{"$f":"'Cav28'!I5","v":0},1,null,{"$f":"'Cav28'!I3","v":0},3.100000000000001,0,0,null,null,null,null,null,null,31,0]
[{"$f":"IF(ISBLANK('Info+Engagés'!A40),\"\",('Info+Engagés'!A40))","v":""},{"$f":"IF(ISBLANK('Info+Engagés'!B40),\"\",('Info+Engagés'!B40))","v":""},{"$f":"IF(ISBLANK('Info+Engagés'!G40),\"\",('Info+Engagés'!G40))","v":""},{"$f":"'Cav29'!D38","v":""},{"$f":"IF(ISBLANK('Info+Engagés'!H2),\"\",RANK(D37,$D$10:$D$49))","v":""},{"$f":"'Cav29'!E38","v":""},{"$f":"IF(ISBLANK('Info+Engagés'!H3),\"\",RANK(F37,$F$10:$F$49))","v":""},{"$f":"'Cav29'!F38","v":0},{"$f":"IF(ISBLANK('Info+Engagés'!H4),\"\",RANK(H37,$H$10:$H$49))","v":1},{"$f":"'Cav29'!G38","v":""},{"$f":"IF(ISBLANK('Info+Engagés'!H5),\"\",RANK(J37,$J$10:$J$49))","v":""},{"$f":"'Cav29'!H38","v":""},{"$f":"IF(ISBLANK('Info+Engagés'!H6),\"\",RANK(L37,$L$10:$L$49))","v":""},{"$f":"'Cav29'!I4","v":0},{"$f":"'Cav29'!I5","v":0},1,null,{"$f":"'Cav29'!I3","v":0},3.100000000000001,0,0,null,null,null,null,null,null,32,0]
[{"$f":"IF(ISBLANK('Info+Engagés'!A41),\"\",('Info+Engagés'!A41))","v":""},{"$f":"IF(ISBLANK('Info+Engagés'!B41),\"\",('Info+Engagés'!B41))","v":""},{"$f":"IF(ISBLANK('Info+Engagés'!G41),\"\",('Info+Engagés'!G41))","v":""},{"$f":"'Cav30'!D38","v":""},{"$f":"IF(ISBLANK('Info+Engagés'!H2),\"\",RANK(D38,$D$10:$D$49))","v":""},{"$f":"'Cav30'!E38","v":""},{"$f":"IF(ISBLANK('Info+Engagés'!H3),\"\",RANK(F38,$F$10:$F$49))","v":""},{"$f":"'Cav30'!F38","v":0},{"$f":"IF(ISBLANK('Info+Engagés'!H4),\"\",RANK(H38,$H$10:$H$49))","v":1},{"$f":"'Cav30'!G38","v":""},{"$f":"IF(ISBLANK('Info+Engagés'!H5),\"\",RANK(J38,$J$10:$J$49))","v":""},{"$f":"'Cav30'!H38","v":""},{"$f":"IF(ISBLANK('Info+Engagés'!H6),\"\",RANK(L38,$L$10:$L$49))","v":""},{"$f":"'Cav30'!I4","v":0},{"$f":"'Cav30'!I5","v":0},1,null,{"$f":"'Cav30'!I3","v":0},3.100000000000001,0,0,null,null,null,null,null,null,33,0]
[{"$f":"IF(ISBLANK('Info+Engagés'!A42),\"\",('Info+Engagés'!A42))","v":""},{"$f":"IF(ISBLANK('Info+Engagés'!B42),\"\",('Info+Engagés'!B42))","v":""},{"$f":"IF(ISBLANK('Info+Engagés'!G42),\"\",('Info+Engagés'!G42))","v":""},{"$f":"'Cav31'!D38","v":""},{"$f":"IF(ISBLANK('Info+Engagés'!H2),\"\",RANK(D39,$D$10:$D$49))","v":""},{"$f":"'Cav31'!E38","v":""},{"$f":"IF(ISBLANK('Info+Engagés'!H3),\"\",RANK(F39,$F$10:$F$49))","v":""},{"$f":"'Cav31'!F38","v":0},{"$f":"IF(ISBLANK('Info+Engagés'!H4),\"\",RANK(H39,$H$10:$H$49))","v":1},{"$f":"'Cav31'!G38","v":""},{"$f":"IF(ISBLANK('Info+Engagés'!H5),\"\",RANK(J39,$J$10:$J$49))","v":""},{"$f":"'Cav31'!H38","v":""},{"$f":"IF(ISBLANK('Info+Engagés'!H6),\"\",RANK(L39,$L$10:$L$49))","v":""},{"$f":"'Cav31'!I4","v":0},{"$f":"'Cav31'!I5","v":0},1,null,{"$f":"'Cav31'!I3","v":0},3.100000000000001,0,0,null,null,null,null,null,null,34,0]
[{"$f":"IF(ISBLANK('Info+Engagés'!A43),\"\",('Info+Engagés'!A43))","v":""},{"$f":"IF(ISBLANK('Info+Engagés'!B43),\"\",('Info+Engagés'!B43))","v":""},{"$f":"IF(ISBLANK('Info+Engagés'!G43),\"\",('Info+Engagés'!G43))","v":""},{"$f":"'Cav32'!D38","v":""},{"$f":"IF(ISBLANK('Info+Engagés'!H2),\"\",RANK(D40,$D$10:$D$49))","v":""},{"$f":"'Cav32'!E38","v":""},{"$f":"IF(ISBLANK('Info+Engagés'!H3),\"\",RANK(F40,$F$10:$F$49))","v":""},{"$f":"'Cav32'!F38","v":0},{"$f":"IF(ISBLANK('Info+Engagés'!H4),\"\",RANK(H40,$H$10:$H$49))","v":1},{"$f":"'Cav32'!G38","v":""},{"$f":"IF(ISBLANK('Info+Engagés'!H5),\"\",RANK(J40,$J$10:$J$49))","v":""},{"$f":"'Cav32'!H38","v":""},{"$f":"IF(ISBLANK('Info+Engagés'!H6),\"\",RANK(L40,$L$10:$L$49))","v":""},{"$f":"'Cav32'!I4","v":0},{"$f":"'Cav32'!I5","v":0},1,null,{"$f":"'Cav32'!I3","v":0},3.100000000000001,0,0,null,null,null,null,null,null,35,0]
[{"$f":"IF(ISBLANK('Info+Engagés'!A44),\"\",('Info+Engagés'!A44))","v":""},{"$f":"IF(ISBLANK('Info+Engagés'!B44),\"\",('Info+Engagés'!B44))","v":""},{"$f":"IF(ISBLANK('Info+Engagés'!G44),\"\",('Info+Engagés'!G44))","v":""},{"$f":"'Cav33'!D38","v":""},{"$f":"IF(ISBLANK('Info+Engagés'!H2),\"\",RANK(D41,$D$10:$D$49))","v":""},{"$f":"'Cav33'!E38","v":""},{"$f":"IF(ISBLANK('Info+Engagés'!H3),\"\",RANK(F41,$F$10:$F$49))","v":""},{"$f":"'Cav33'!F38","v":0},{"$f":"IF(ISBLANK('Info+Engagés'!H4),\"\",RANK(H41,$H$10:$H$49))","v":1},{"$f":"'Cav33'!G38","v":""},{"$f":"IF(ISBLANK('Info+Engagés'!H5),\"\",RANK(J41,$J$10:$J$49))","v":""},{"$f":"'Cav33'!H38","v":""},{"$f":"IF(ISBLANK('Info+Engagés'!H6),\"\",RANK(L41,$L$10:$L$49))","v":""},{"$f":"'Cav33'!I4","v":0},{"$f":"'Cav33'!I5","v":0},1,null,{"$f":"'Cav33'!I3","v":0},3.100000000000001,0,0,null,null,null,null,null,null,36,0]
[{"$f":"IF(ISBLANK('Info+Engagés'!A45),\"\",('Info+Engagés'!A45))","v":""},{"$f":"IF(ISBLANK('Info+Engagés'!B45),\"\",('Info+Engagés'!B45))","v":""},{"$f":"IF(ISBLANK('Info+Engagés'!G45),\"\",('Info+Engagés'!G45))","v":""},{"$f":"'Cav34'!D38","v":""},{"$f":"IF(ISBLANK('Info+Engagés'!H2),\"\",RANK(D42,$D$10:$D$49))","v":""},{"$f":"'Cav34'!E38","v":""},{"$f":"IF(ISBLANK('Info+Engagés'!H3),\"\",RANK(F42,$F$10:$F$49))","v":""},{"$f":"'Cav34'!F38","v":0},{"$f":"IF(ISBLANK('Info+Engagés'!H4),\"\",RANK(H42,$H$10:$H$49))","v":1},{"$f":"'Cav34'!G38","v":""},{"$f":"IF(ISBLANK('Info+Engagés'!H5),\"\",RANK(J42,$J$10:$J$49))","v":""},{"$f":"'Cav34'!H38","v":""},{"$f":"IF(ISBLANK('Info+Engagés'!H6),\"\",RANK(L42,$L$10:$L$49))","v":""},{"$f":"'Cav34'!I4","v":0},{"$f":"'Cav34'!I5","v":0},1,null,{"$f":"'Cav34'!I3","v":0},3.100000000000001,0,0,null,null,null,null,null,null,37,0]
[{"$f":"IF(ISBLANK('Info+Engagés'!A46),\"\",('Info+Engagés'!A46))","v":""},{"$f":"IF(ISBLANK('Info+Engagés'!B46),\"\",('Info+Engagés'!B46))","v":""},{"$f":"IF(ISBLANK('Info+Engagés'!G46),\"\",('Info+Engagés'!G46))","v":""},{"$f":"'Cav35'!D38","v":""},{"$f":"IF(ISBLANK('Info+Engagés'!H2),\"\",RANK(D43,$D$10:$D$49))","v":""},{"$f":"'Cav35'!E38","v":""},{"$f":"IF(ISBLANK('Info+Engagés'!H3),\"\",RANK(F43,$F$10:$F$49))","v":""},{"$f":"'Cav35'!F38","v":0},{"$f":"IF(ISBLANK('Info+Engagés'!H4),\"\",RANK(H43,$H$10:$H$49))","v":1},{"$f":"'Cav35'!G38","v":""},{"$f":"IF(ISBLANK('Info+Engagés'!H5),\"\",RANK(J43,$J$10:$J$49))","v":""},{"$f":"'Cav35'!H38","v":""},{"$f":"IF(ISBLANK('Info+Engagés'!H6),\"\",RANK(L43,$L$10:$L$49))","v":""},{"$f":"'Cav35'!I4","v":0},{"$f":"'Cav35'!I5","v":0},1,null,{"$f":"'Cav35'!I3","v":0},3.100000000000001,0,0,null,null,null,null,null,null,38,0]
[{"$f":"IF(ISBLANK('Info+Engagés'!A47),\"\",('Info+Engagés'!A47))","v":""},{"$f":"IF(ISBLANK('Info+Engagés'!B47),\"\",('Info+Engagés'!B47))","v":""},{"$f":"IF(ISBLANK('Info+Engagés'!G47),\"\",('Info+Engagés'!G47))","v":""},{"$f":"'Cav36'!D38","v":""},{"$f":"IF(ISBLANK('Info+Engagés'!H2),\"\",RANK(D44,$D$10:$D$49))","v":""},{"$f":"'Cav36'!E38","v":""},{"$f":"IF(ISBLANK('Info+Engagés'!H3),\"\",RANK(F44,$F$10:$F$49))","v":""},{"$f":"'Cav36'!F38","v":0},{"$f":"IF(ISBLANK('Info+Engagés'!H4),\"\",RANK(H44,$H$10:$H$49))","v":1},{"$f":"'Cav36'!G38","v":""},{"$f":"IF(ISBLANK('Info+Engagés'!H5),\"\",RANK(J44,$J$10:$J$49))","v":""},{"$f":"'Cav36'!H38","v":""},{"$f":"IF(ISBLANK('Info+Engagés'!H6),\"\",RANK(L44,$L$10:$L$49))","v":""},{"$f":"'Cav36'!I4","v":0},{"$f":"'Cav36'!I5","v":0},1,null,{"$f":"'Cav36'!I3","v":0},3.100000000000001,0,0,null,null,null,null,null,null,39,0]
[{"$f":"IF(ISBLANK('Info+Engagés'!A48),\"\",('Info+Engagés'!A48))","v":""},{"$f":"IF(ISBLANK('Info+Engagés'!B48),\"\",('Info+Engagés'!B48))","v":""},{"$f":"IF(ISBLANK('Info+Engagés'!G48),\"\",('Info+Engagés'!G48))","v":""},{"$f":"'Cav37'!D38","v":""},{"$f":"IF(ISBLANK('Info+Engagés'!H2),\"\",RANK(D45,$D$10:$D$49))","v":""},{"$f":"'Cav37'!E38","v":""},{"$f":"IF(ISBLANK('Info+Engagés'!H3),\"\",RANK(F45,$F$10:$F$49))","v":""},{"$f":"'Cav37'!F38","v":0},{"$f":"IF(ISBLANK('Info+Engagés'!H4),\"\",RANK(H45,$H$10:$H$49))","v":1},{"$f":"'Cav37'!G38","v":""},{"$f":"IF(ISBLANK('Info+Engagés'!H5),\"\",RANK(J45,$J$10:$J$49))","v":""},{"$f":"'Cav37'!H38","v":""},{"$f":"IF(ISBLANK('Info+Engagés'!H6),\"\",RANK(L45,$L$10:$L$49))","v":""},{"$f":"'Cav37'!I4","v":0},{"$f":"'Cav37'!I5","v":0},1,null,{"$f":"'Cav37'!I3","v":0},3.100000000000001,0,0,null,null,null,null,null,null,40,0]
[{"$f":"IF(ISBLANK('Info+Engagés'!A49),\"\",('Info+Engagés'!A49))","v":""},{"$f":"IF(ISBLANK('Info+Engagés'!B49),\"\",('Info+Engagés'!B49))","v":""},{"$f":"IF(ISBLANK('Info+Engagés'!G49),\"\",('Info+Engagés'!G49))","v":""},{"$f":"'Cav38'!D38","v":""},{"$f":"IF(ISBLANK('Info+Engagés'!H2),\"\",RANK(D46,$D$10:$D$49))","v":""},{"$f":"'Cav38'!E38","v":""},{"$f":"IF(ISBLANK('Info+Engagés'!H3),\"\",RANK(F46,$F$10:$F$49))","v":""},{"$f":"'Cav38'!F38","v":0},{"$f":"IF(ISBLANK('Info+Engagés'!H4),\"\",RANK(H46,$H$10:$H$49))","v":1},{"$f":"'Cav38'!G38","v":""},{"$f":"IF(ISBLANK('Info+Engagés'!H5),\"\",RANK(J46,$J$10:$J$49))","v":""},{"$f":"'Cav38'!H38","v":""},{"$f":"IF(ISBLANK('Info+Engagés'!H6),\"\",RANK(L46,$L$10:$L$49))","v":""},{"$f":"'Cav38'!I4","v":0},{"$f":"'Cav38'!I5","v":0},1,null,{"$f":"'Cav38'!I3","v":0},3.100000000000001,0,0,null,null,null,null,null,null,41,0]
[{"$f":"IF(ISBLANK('Info+Engagés'!A50),\"\",('Info+Engagés'!A50))","v":""},{"$f":"IF(ISBLANK('Info+Engagés'!B50),\"\",('Info+Engagés'!B50))","v":""},{"$f":"IF(ISBLANK('Info+Engagés'!G50),\"\",('Info+Engagés'!G50))","v":""},{"$f":"'Cav39'!D38","v":""},{"$f":"IF(ISBLANK('Info+Engagés'!H2),\"\",RANK(D47,$D$10:$D$49))","v":""},{"$f":"'Cav39'!E38","v":""},{"$f":"IF(ISBLANK('Info+Engagés'!H3),\"\",RANK(F47,$F$10:$F$49))","v":""},{"$f":"'Cav39'!F38","v":0},{"$f":"IF(ISBLANK('Info+Engagés'!H4),\"\",RANK(H47,$H$10:$H$49))","v":1},{"$f":"'Cav39'!G38","v":""},{"$f":"IF(ISBLANK('Info+Engagés'!H5),\"\",RANK(J47,$J$10:$J$49))","v":""},{"$f":"'Cav39'!H38","v":""},{"$f":"IF(ISBLANK('Info+Engagés'!H6),\"\",RANK(L47,$L$10:$L$49))","v":""},{"$f":"'Cav39'!I4","v":0},{"$f":"'Cav39'!I5","v":0},1,null,{"$f":"'Cav39'!I3","v":0},3.100000000000001,0,0,null,null,null,null,null,null,42,0]
[{"$f":"IF(ISBLANK('Info+Engagés'!A31),\"\",('Info+Engagés'!A31))","v":""},{"$f":"IF(ISBLANK('Info+Engagés'!B31),\"\",('Info+Engagés'!B31))","v":""},{"$f":"IF(ISBLANK('Info+Engagés'!G31),\"\",('Info+Engagés'!G31))","v":""},{"$f":"'Cav20'!D38","v":""},{"$f":"IF(ISBLANK('Info+Engagés'!H2),\"\",RANK(D48,$D$10:$D$49))","v":""},{"$f":"'Cav20'!E38","v":""},{"$f":"IF(ISBLANK('Info+Engagés'!H3),\"\",RANK(F48,$F$10:$F$49))","v":""},{"$f":"'Cav20'!F38","v":0},{"$f":"IF(ISBLANK('Info+Engagés'!H4),\"\",RANK(H48,$H$10:$H$49))","v":1},{"$f":"'Cav20'!G38","v":""},{"$f":"IF(ISBLANK('Info+Engagés'!H5),\"\",RANK(J48,$J$10:$J$49))","v":""},{"$f":"'Cav20'!H38","v":""},{"$f":"IF(ISBLANK('Info+Engagés'!H6),\"\",RANK(L48,$L$10:$L$49))","v":""},{"$f":"'Cav20'!I4","v":0},{"$f":"'Cav20'!I5","v":0},1,null,{"$f":"'Cav20'!I3","v":0},3.100000000000001,0,0,null,null,null,null,null,null,43,0]
[{"$f":"IF(ISBLANK('Info+Engagés'!A16),\"\",('Info+Engagés'!A16))","v":""},{"$f":"IF(ISBLANK('Info+Engagés'!B16),\"\",('Info+Engagés'!B16))","v":""},{"$f":"IF(ISBLANK('Info+Engagés'!G16),\"\",('Info+Engagés'!G16))","v":""},{"$f":"'Cav5'!D38","v":""},{"$f":"IF(ISBLANK('Info+Engagés'!H2),\"\",RANK(D49,$D$10:$D$49))","v":""},{"$f":"'Cav5'!E38","v":""},{"$f":"IF(ISBLANK('Info+Engagés'!H3),\"\",RANK(F49,$F$10:$F$49))","v":""},{"$f":"'Cav5'!F38","v":0},{"$f":"IF(ISBLANK('Info+Engagés'!H4),\"\",RANK(H49,$H$10:$H$49))","v":1},{"$f":"'Cav5'!G38","v":""},{"$f":"IF(ISBLANK('Info+Engagés'!H5),\"\",RANK(J49,$J$10:$J$49))","v":""},{"$f":"'Cav5'!H38","v":""},{"$f":"IF(ISBLANK('Info+Engagés'!H6),\"\",RANK(L49,$L$10:$L$49))","v":""},{"$f":"'Cav5'!I4","v":0},{"$f":"'Cav5'!I5","v":0},1,null,{"$f":"'Cav5'!I3","v":0},3.100000000000001,0,0,null,null,null,null,null,null,44,0]